Workbook

Sheet Summary
A1: PRELIMINARY ESTIMATE OF DEVELOPMENT COSTS
A2: SUMMARY SHEET
A3: CG140690
A4: Wollert PSP - Intersection Cost Estimate
A5: =TODAY() -> 2015-05-14
A6: Version 11
C7: Site 1 | D7: Site 2 | E7: Site 4 | F7: Site 5 | G7: Site 6 | H7: Site 7 | I7: Site 8 | J7: Site 9- | L7: Site 10 | M7: Site 13 | N7: Site 14 | O7: Site 15 | P7: Site 18- | S7: Site 20- | U7: Site 21 | V7: Site 22 | W7: Site 23 | X7: Site 24 | Y7: Site 26 | AA7: Site 31 | AB7: Site 31 | AC7: Site 32 | AD7: Site 33
A8: ITEM | B8: DESCRIPTION | C8: IN-1 | D8: IN-2 | E8: IN-4 | F8: IN-5 | G8: IN-6 | H8: IN-7 | I8: IN-8 | J8: ='IN-9-T04'!B4 -> IN-9-D | K8: ='IN-9-T06 '!B4 -> IN-9-VR | L8: IN-10 | M8: IN-13 | N8: IN-14 | O8: IN-15 | P8: ='IN-18-T04'!B4 -> IN-18-D | Q8: ='IN-18-T06'!B4 -> IN-18-VR | R8: ='IN-18-T07'!B4 -> IN-18-CHAN | S8: ='IN-20-T04'!B4 -> IN-20-D | T8: ='IN-20-T06'!B4 -> IN-20-VR | U8: IN-21-D | V8: IN-22 | W8: IN-23 | X8: IN-24 | Y8: ='IN-26-T04'!B4 -> IN-26-D | Z8: ='IN-26-T06'!B4 -> IN-26-VR | AA8: ='IN-31-T08'!B4 -> IN-31-VR | AB8: IN-31 | AC8: IN-32 | AD8: IN-33 | AE8: Total Precinct | AF8: Total Precinct
B9: DRAWING SHEET REFERENCE | C9: (20-VR) | D9: (26-VR) | E9: (26-VR) | F9: (9-VR) | G9: (26-VR) | H9: (26-VR) | I9: (26-VR) | J9: T04-09P3 | K9: T06-09P3 | L9: (18-D) | M9: (18-CHR) | N9: (18-CHR) | O9: (18-CHR) | P9: T04-18P3 | Q9: T06-18P3 | R9: T07-18P1 | S9: T04-20P3 | T9: T06-20P3 | U9: (20-D) | V9: (26-VR) | W9: (18-VR) | X9: (18-VR) | Y9: T04-26P3 | Z9: T06-26P3 | AA9: T08-31P1 | AB9: (18-D) | AC9: (26-VR) | AD9: (18-VR) | AE9: Developer Cost | AF9: VicRoads Cost
A10: A | B10: Project and Program Management (%) | C10: ='IN-1'!G7 -> 186831.748 | D10: ='IN-2'!G7 -> 125146.9968 | E10: ='IN-4'!G7 -> 123968.4478 | F10: ='IN-5'!G7 -> 277401.7993 | G10: ='IN-6'!G7 -> 128983.3609 | H10: ='IN-7'!G7 -> 139651.4028 | I10: ='IN-8'!G7 -> 139651.4028 | J10: ='IN-9-T04'!G7 -> 235727.86 | K10: ='IN-9-T06 '!G7 -> 261094.393 | L10: ='IN-10'!G7 -> 103893.0345 | M10: ='IN-13'!G7 -> 80880.14375 | N10: ='IN-14'!G7 -> 80880.14375 | O10: ='IN-15'!G7 -> 80290.138 | P10: ='IN-18-T04'!G7 -> 92094.49322 | Q10: ='IN-18-T06'!G7 -> 103792.9721 | R10: ='IN-18-T07'!G7 -> 85598.475 | S10: ='IN-20-T04'!G7 -> 158282.1084 | T10: ='IN-20-T06'!G7 -> 176664.3657 | U10: ='IN-21'!G7 -> 162395.4239 | V10: ='IN-22'!G7 -> 123997.1709 | W10: ='IN-23'!G7 -> 97828.72821 | X10: ='IN-24'!G7 -> 97828.72821 | Y10: ='IN-26-T04'!G7 -> 110701.3527 | Z10: ='IN-26-T06'!G7 -> 123997.1709 | AA10: ='IN-31-T08'!G7 -> 107853.3718 | AB10: ='IN-31 (18-D)'!G7 -> 92889.70583 | AC10: ='IN-32'!G7 -> 123997.1709 | AD10: ='IN-33'!G7 -> 97828.72821
A11: B | B11: Design and Investigation (%) | C11: ='IN-1'!G15 -> 373663.4959 | D11: ='IN-2'!G15 -> 250293.9936 | E11: ='IN-4'!G15 -> 247936.8956 | F11: ='IN-5'!G15 -> 554803.5987 | G11: ='IN-6'!G15 -> 257966.7217 | H11: ='IN-7'!G15 -> 279302.8056 | I11: ='IN-8'!G15 -> 279302.8056 | J11: ='IN-9-T04'!G15 -> 471455.72 | K11: ='IN-9-T06 '!G15 -> 522188.786 | L11: ='IN-10'!G15 -> 207786.069 | M11: ='IN-13'!G15 -> 161760.2875 | N11: ='IN-14'!G15 -> 161760.2875 | O11: ='IN-15'!G15 -> 160580.276 | P11: ='IN-18-T04'!G15 -> 184188.9864 | Q11: ='IN-18-T06'!G15 -> 207585.9443 | R11: ='IN-18-T07'!G15 -> 171196.95 | S11: ='IN-20-T04'!G15 -> 316564.2169 | T11: ='IN-20-T06'!G15 -> 353328.7314 | U11: ='IN-21'!G15 -> 324790.8479 | V11: ='IN-22'!G15 -> 247994.3417 | W11: ='IN-23'!G15 -> 195657.4564 | X11: ='IN-24'!G15 -> 195657.4564 | Y11: ='IN-26-T04'!G15 -> 221402.7054 | Z11: ='IN-26-T06'!G15 -> 247994.3417 | AA11: ='IN-31-T08'!G15 -> 215706.7436 | AB11: ='IN-31 (18-D)'!G15 -> 185779.4117 | AC11: ='IN-32'!G15 -> 247994.3417 | AD11: ='IN-33'!G15 -> 195657.4564
A12: C | B12: Construction including Final Design | C12: ='IN-1'!G24 -> 4406409.15 | D12: ='IN-2'!G24 -> 2790345.525 | E12: ='IN-4'!G24 -> 2757918.75 | F12: ='IN-5'!G24 -> 6926387 | G12: ='IN-6'!G24 -> 2885533.8 | H12: ='IN-7'!G24 -> 3159534 | I12: ='IN-8'!G24 -> 3159534 | J12: ='IN-9-T04'!G24 -> 5749460 | K12: ='IN-9-T06 '!G24 -> 6462732.5 | L12: ='IN-10'!G24 -> 2253645 | M12: ='IN-13'!G24 -> 1693825 | N12: ='IN-14'!G24 -> 1693825 | O12: ='IN-15'!G24 -> 1679710 | P12: ='IN-18-T04'!G24 -> 1963635.25 | Q12: ='IN-18-T06'!G24 -> 2251474.45 | R12: ='IN-18-T07'!G24 -> 1805875 | S12: ='IN-20-T04'!G24 -> 3647053.19 | T12: ='IN-20-T06'!G24 -> 4137338.775 | U12: ='IN-21'!G24 -> 3754807.49 | V12: ='IN-22'!G24 -> 2758557.75 | W12: ='IN-23'!G24 -> 2106108.25 | X12: ='IN-24'!G24 -> 2106108.25 | Y12: ='IN-26-T04'!G24 -> 2425002.25 | Z12: ='IN-26-T06'!G24 -> 2758557.75 | AA12: ='IN-31-T08'!G24 -> 2352309.09 | AB12: ='IN-31 (18-D)'!G24 -> 1982704.5 | AC12: ='IN-32'!G24 -> 2758557.75 | AD12: ='IN-33'!G24 -> 2106108.25
B14: TOTAL A - C | C14: ='IN-1'!G82 -> 4966904.394 | D14: ='IN-2'!G80 -> 3165786.515 | E14: ='IN-4'!G80 -> 3129824.093 | F14: ='IN-5'!G89 -> 7758592.398 | G14: ='IN-6'!G81 -> 3272483.883 | H14: ='IN-7'!G81 -> 3578488.208 | I14: ='IN-8'!G81 -> 3578488.208 | J14: ='IN-9-T04'!G89 -> 6456643.58 | L14: ='IN-10'!G83 -> 2565324.104 | M14: ='IN-13'!G80 -> 1936465.431 | N14: ='IN-14'!G80 -> 1936465.431 | O14: ='IN-15'!G81 -> 1920580.414 | P14: ='IN-18-T04'!G84 -> 2239918.73 | S14: ='IN-20-T04'!G82 -> 4121899.515 | U14: ='IN-21'!G84 -> 4241993.762 | V14: ='IN-22'!G80 -> 3130549.263 | W14: ='IN-23'!G80 -> 2399594.435 | X14: ='IN-24'!G80 -> 2399594.435 | Y14: ='IN-26-T04'!G81 -> 2757106.308 | AA14: ='IN-31-T08'!G83 -> 2675869.205 | AB14: ='IN-31 (18-D)'!G83 -> 2261373.617 | AC14: ='IN-32'!G80 -> 3130549.263 | AD14: ='IN-33'!G80 -> 2399594.435 | AE14: =SUM(J14:AA14) -> 38782004.61
K15: ='IN-9-T06 '!G88 -> 7246015.679 | Q15: ='IN-18-T06'!G82 -> 2562853.366 | R15: ='IN-18-T07'!G82 -> 2062670.425 | T15: ='IN-20-T06'!G81 -> 4667331.872 | Z15: ='IN-26-T06'!G80 -> 3130549.263 | AB15: ='IN-31 (18-D)'!G84 -> 0 | AC15: ='IN-32'!G81 -> 0 | AD15: ='IN-33'!G81 -> 0 | AF15: =SUM(P15:Z15)-R15 -> 10360734.5
A16: D | B16: CONTINGENCY
B17: Contingency (15% of C) | C17: ='IN-1'!G85 -> 660961.3725 | D17: ='IN-2'!G83 -> 418551.8287 | E17: ='IN-4'!G83 -> 413687.8125 | F17: ='IN-5'!G92 -> 1038958.05 | G17: ='IN-6'!G84 -> 432830.07 | H17: ='IN-7'!G84 -> 473930.1 | I17: ='IN-8'!G84 -> 473930.1 | J17: ='IN-9-T04'!G92 -> 862419 | L17: ='IN-10'!G86 -> 338046.75 | M17: ='IN-13'!G83 -> 254073.75 | N17: ='IN-14'!G83 -> 254073.75 | O17: ='IN-15'!G84 -> 251956.5 | P17: ='IN-18-T04'!G87 -> 294545.2875 | S17: ='IN-20-T04'!G85 -> 547057.9785 | U17: ='IN-21'!G87 -> 563221.1235 | V17: ='IN-22'!G83 -> 413783.6625 | W17: ='IN-23'!G83 -> 315916.2375 | X17: ='IN-24'!G83 -> 315916.2375 | Y17: ='IN-26-T04'!G84 -> 363750.3375 | AA17: ='IN-31-T08'!G86 -> 352846.3635 | AB17: ='IN-31 (18-D)'!G86 -> 297405.675 | AC17: ='IN-32'!G83 -> 413783.6625 | AD17: ='IN-33'!G83 -> 315916.2375 | AE17: =SUM(J17:AA17) -> 5127606.978
K18: ='IN-9-T06 '!G91 -> 969409.875 | Q18: ='IN-18-T06'!G85 -> 337721.1675 | R18: ='IN-18-T07'!G85 -> 270881.25 | T18: ='IN-20-T06'!G84 -> 620600.8162 | Z18: ='IN-26-T06'!G83 -> 413783.6625 | AF18: =SUM(P18:Z18)-R18 -> 1372105.646
A19: E | B19: PROJECT BUDGET
B20: Total Estimate | C20: ='IN-1'!G88 -> 5627865.766 | D20: ='IN-2'!G86 -> 3584338.344 | E20: ='IN-4'!G86 -> 3543511.906 | F20: ='IN-5'!G95 -> 8797550.448 | G20: ='IN-6'!G87 -> 3705313.953 | H20: ='IN-7'!G87 -> 4052418.308 | I20: ='IN-8'!G87 -> 4052418.308 | J20: ='IN-9-T04'!G95 -> 7319062.58 | L20: ='IN-10'!G89 -> 2903370.854 | M20: ='IN-13'!G86 -> 2190539.181 | N20: ='IN-14'!G86 -> 2190539.181 | O20: ='IN-15'!G87 -> 2172536.914 | P20: ='IN-18-T04'!G90 -> 2534464.017 | S20: ='IN-20-T04'!G88 -> 4668957.494 | U20: ='IN-21'!G90 -> 4805214.885 | V20: ='IN-22'!G86 -> 3544332.925 | W20: ='IN-23'!G86 -> 2715510.672 | X20: ='IN-24'!G86 -> 2715510.672 | Y20: ='IN-26-T04'!G87 -> 3120856.646 | AA20: ='IN-31-T08'!G89 -> 3028715.569 | AB20: ='IN-31 (18-D)'!G89 -> 2558779.292 | AC20: ='IN-32'!G86 -> 3544332.925 | AD20: ='IN-33'!G86 -> 2715510.672 | AE20: =SUM(J20:AA20) -> 43909611.59
K21: ='IN-9-T06 '!G94 -> 8215425.554 | Q21: ='IN-18-T06'!G88 -> 2900574.534 | R21: ='IN-18-T07'!G88 -> 2333551.675 | T21: ='IN-20-T06'!G87 -> 5287932.688 | Z21: ='IN-26-T06'!G86 -> 3544332.925 | AE21: =SUM(J21:Z21)-R21 -> 19948265.7
B22: PM% | C22: ='IN-1'!D3 -> 0.0848 | D22: ='IN-2'!D3 -> 0.0897 | E22: ='IN-4'!D3 -> 0.0899 | F22: ='IN-5'!D3 -> 0.0801 | G22: ='IN-6'!D3 -> 0.0894 | H22: ='IN-7'!D3 -> 0.0884 | I22: ='IN-8'!D3 -> 0.0884 | J22: ='IN-9-T04'!D3 -> 0.082 | K22: ='IN-9-T06 '!D3 -> 0.0808 | L22: ='IN-10'!D3 -> 0.0922 | M22: ='IN-13'!D3 -> 0.0955 | N22: ='IN-14'!D3 -> 0.0955 | O22: ='IN-15'!D3 -> 0.0956 | P22: ='IN-18-T04'!D3 -> 0.0938 | Q22: ='IN-18-T06'!D3 -> 0.0922 | R22: ='IN-18-T07'!D3 -> 0.0948 | S22: ='IN-20-T04'!D3 -> 0.0868 | T22: ='IN-20-T06'!D3 -> 0.0854 | U22: ='IN-21'!D3 -> 0.0865 | V22: ='IN-22'!D3 -> 0.0899 | W22: ='IN-23'!D3 -> 0.0929 | X22: ='IN-24'!D3 -> 0.0929 | Y22: ='IN-26-T04'!D3 -> 0.0913 | Z22: ='IN-26-T06'!D3 -> 0.0899 | AA22: ='IN-31-T08'!D3 -> 0.0917 | AB22: ='IN-31 (18-D)'!D3 -> 0.0937 | AC22: ='IN-32'!D3 -> 0.0899 | AD22: ='IN-33'!D3 -> 0.0929
B23: Difference Betwen VicRoads option and developer option | K23: =K21-J20 -> 896362.974 | Q23: =Q21-P20 -> 366110.5168 | T23: =T21-S20 -> 618975.1945 | Z23: =Z21-Y20 -> 423476.2795 | AE23: =AE21-AE20 -> -23961345.89
B24: Percentage VicRoads option is greater than developer option | K24: =(K21-J20)/J20 -> 0.122469642 | Q24: =(Q21-P20)/P20 -> 0.1444528367 | T24: =(T21-S20)/S20 -> 0.132572463 | Z24: =(Z21-Y20)/Y20 -> 0.1356923203 | AE24: =(AE21-AE20)/AE20 -> -0.5456970586
A25: Notes: | R25: Please note IN-18-CHAN is not included in the total precint cost column.
A26: - | B26: Due to flat topography of the area, no major cut/fill works have been included for road | F26: Gas Slab Protection | H26: Is industrial standard | I26: Is industrial standard
A28: Services
A29: 1 | B29: Service relocation / alterations have not been allowed for in the estimate
A30: 2 | B30: No allowance for water, gas, telstra, sewer
A31: Substations
A32: 3 | B32: No allowance for substations
A33: Preliminaries
A34: 4 | B34: Based on nominal rates
A35: Subsoil Drain
A36: 5 | B36: Assume same as kerb and channel
A37: Side Entry Pits
A38: 6 | B38: Based on 50 m intervals
A39: Tactile Pavers
A40: 7 | B40: Assume hazard TGSI's (no directional)
A41: Signing
A42: 8 | B42: Nominal rate
A43: Pavement
A44: 9 | B44: Assume deep lift asphalt pavement
A45: Tree Removal
A46: 10 | B46: Based on preliminary information
A47: Roads
A48: 11 | B48: Where applicable, existing road conditions based on limited crushed rock roads assumed to be of no consequence to works
A49: 12 | B49: Where applicable, existing asphalt roads to be demolished as part of intersection works
A50: Dry Stone Wall
A51: 13 | B51: Dry stone wall works allowance has assumed the wall is not heritage listed and does not need to be reconstructed
A53: AUTHOR: | B53: Graeme Stenton
A54: Date: | B54: 2014-12-18
A56: REVIEWER: | B56: Rob Henry
A57: Date:
A59: Issue | B59: Version
A60: Date | B60: Summary Sheet | J60: IN-54-09 | K60: IN-54-18
A61: 2014-08-07 | B61: 1 | J61: - | K61: 1
A62: 2014-08-08 | B62: 2 | J62: 1 | K62: 2
A63: 2014-08-21 | B63: 3 | J63: 2 | K63: 3
A64: 2014-08-27 | B64: 4 | J64: 3 | K64: 4

Sheet IN-1
A1: PRELIMINARY ESTIMATE OF DEVELOPMENT COSTS | G1: =Summary!A5 -> 2015-05-14
A2: =Summary!A3 -> CG140690 | G2: =Summary!A6 -> Version 11
A3: =Summary!A4 -> Wollert PSP - Intersection Cost Estimate | C3: PM %: | D3: 0.0848 | I3: Click here for Nearmap Screenshots taken July 2014
A4: Intersection Ref: | B4: =J7 -> IN-1 (20-VR) | E4: DRAFT | I4: Do not Delete the below info
A5: Sheet Ref: | B5: =Summary!C9 -> (20-VR)
A6: ITEM | B6: DESCRIPTION | C6: QUANTITY | D6: UNIT | E6: RATE | F6: AMOUNT | G6: SUBTOTAL | I6: Sheet Specific Information | J6: Input | K6: Cell Reference
A7: A | B7: =Summary!B10 -> Project and Program Management (%) | G7: =SUM(F7:F13) -> 186831.748 | I7: Intersection Name | J7: IN-1 (20-VR) | K7: A4
B8: Project Management | D8: 0.03 | E8: =($D$3/0.1)*D8 -> 0.02544 | F8: =E8*$G$24 -> 112099.0488 | I8: Existing road directions | J8: N-S and E-W | K8: B87
B9: Project scoping, planning, scheduling, monitoring, reporting and commissioning | I9: Previous Road area | J9: 0 | K9: m2
B10: Management of preconstruction activities, development of tender documents and management of contracts | I10: Total Roadway Area | J10: 16900 | K10: m2
B11: Managing external interfaces, including community liaison, environmental issues, traffic issues etc | I11: Island Area | J11: 7000 | K11: m2
B12: Records management | I12: Kerb and Channel | J12: =1500+300+400+300+350-735 -> 2115 | K12: Lm
B13: Program Administration | D13: 0.02 | E13: =($D$3/0.1)*D13 -> 0.01696 | F13: =E13*$G$24 -> 74732.69918 | I13: Shoulder | J13: =55+60+125+125+145+225 -> 735 | K13: Lm
I14: Footpath Length | J14: =160+160 -> 320 | K14: Lm
A15: B | B15: =Summary!B11 -> Design and Investigation (%) | G15: =SUM(F15:F22) -> 373663.4959 | I15: Pipe Length | J15: =2100 -> 2100 | K15: Lm
B16: Traffic Investigations | D16: 0.0085 | E16: =($D$3/0.1)*D16 -> 0.007208 | F16: =E16*$G$24 -> 31761.39715 | I16: Island Concrete infill | J16: =200+100+200+200+250+100+100+100 -> 1250 | K16: m2
B17: Cadastral and Engineering Survey | D17: 0.012 | E17: 0.010176 | F17: 44839.61951 | I17: Shared Path Length | J17: =180+8+225+160+5+5+200+175+5+7 -> 970 | K17: Lm
B18: Geotechnical investigations Pavement Investigations and Design | D18: 0.012 | E18: 0.010176 | F18: 44839.61951
B19: Environmental Investigations | E19: 0 | F19: 0
B20: Landscape Design | E20: 0 | F20: 0
B21: Preliminary and Final Design | D21: 0.0425 | E21: 0.03604 | F21: 158806.9858
B22: Construction Management | D22: 0.025 | E22: 0.0212 | F22: 93415.87398
I23: 2.5% of construction cost | J23: =0.025*G24 -> 110160.2288
A24: C | B24: Construction | F24: =SUM(F25:F81) -> 4406409.15 | G24: =SUM(G25:G80) -> 4406409.15
A25: 1 | B25: PRELIMINARIES | G25: =SUM(F25:F28) -> 85000
A26: 1.1 | B26: Site establishment | C26: 1 | D26: Item | E26: 10000 | F26: =E26*C26 -> 10000
A27: 1.2 | B27: Site management & supervision including QA | C27: 26 | D27: wks | E27: 2500 | F27: =SUM(E27*C27) -> 65000
A28: 1.3 | B28: Provision for traffic | C28: 1 | D28: Item | E28: 10000 | F28: =SUM(E28*C28) -> 10000
A29: 2 | B29: DEMOLITION | G29: =SUM(F29:F31) -> 27500
A30: 2.1 | B30: Trees | C30: 5 | D30: No | E30: 500 | F30: =SUM(E30*C30) -> 2500
A31: 2.2 | B31: Demolition of Dry Stone fence | C31: 1 | D31: item | E31: 25000 | F31: =SUM(E31*C31) -> 25000
A32: 3 | B32: EARTHWORKS | G32: =SUM(F33:F37) -> 960995.4
A33: 3.1 | B33: Stripping topsoil (150mm) | C33: =0.54*J10 -> 9126 | D33: m² | E33: 6 | F33: =SUM(E33*C33) -> 54756
A34: 3.2 | B34: Excavation and removal | C34: =C40*1.11 -> 12765.555 | D34: m³ | E34: 30 | F34: =SUM(E34*C34) -> 382966.65
A35: 3.3 | B35: Filling | C35: =C40*0.5 -> 5750.25 | D35: m³ | E35: 15 | F35: =C35*E35 -> 86253.75
A36: 3.4 | B36: Soft spot rectification (reclaimed FCR) | C36: =C40*20% -> 2300.1 | D36: m³ | E36: 15 | F36: =SUM(E36*C36) -> 34501.5
A37: 3.5 | B37: Rock excavation & sub-surface remediation 450mm | C37: =C40*50% -> 5750.25 | D37: m² | E37: =55+15 -> 70 | F37: =SUM(E37*C37) -> 402517.5
A38: 4 | B38: PAVEMENT | G38: =SUM(F38:F41) -> 1701427.5
A39: 4.1 | B39: Deep lift asphalt 195 mm | C39: =J10-J13-J11 -> 9165 | D39: m² | E39: =IF(C39<15000,105,85) -> 105 | F39: =SUM(E39*C39) -> 962325
A40: 4.2 | B40: Subbase course - 250 mm 3% CTCR | C40: =C39+(J12*1)+C41*0.3 -> 11500.5 | D40: m² | E40: =IF(C40<15000,55,45) -> 55 | F40: =SUM(E40*C40) -> 632527.5
A41: 4.3 | B41: Shoulder - full depth pavement | C41: =J13 -> 735 | D41: m² | E41: 145 | F41: =SUM(E41*C41) -> 106575
A42: 5 | B42: DRAINAGE | G42: =SUM(F42:F46) -> 530000
A43: 5.1 | B43: Subsoil drains 100mm dia - screenings | C43: =J12+J13 -> 2850 | D43: Lm | E43: 30 | F43: =SUM(E43*C43) -> 85500
A44: 5.2 | B44: Subsoil drains 100mm dia - no fines conc | C44: 0 | D44: Lm | E44: 45 | F44: =SUM(E44*C44) -> 0
A45: 5.3 | B45: 375 RCP (class 2) | C45: =J15 -> 2100 | D45: Lm | E45: 170 | F45: =SUM(E45*C45) -> 357000
A46: 5.4 | B46: Side entry pits | C46: 35 | D46: No | E46: 2500 | F46: =SUM(E46*C46) -> 87500
A47: 6 | B47: CONCRETE WORKS | G47: =SUM(F47:F52) -> 373300
A48: 6.1 | B48: Kerb &channel | C48: =J12 -> 2115 | D48: Lm | E48: 50 | F48: =SUM(E48*C48) -> 105750
A49: 6.2 | B49: Shared Paths (3.0m wide,125 mm, residential, as per MPA) | C49: =J17 -> 970 | D49: Lm | E49: 130 | F49: =SUM(E49*C49) -> 126100
A50: 6.3 | B50: Footpaths (1.5m wide,125 mm, residential, as per MPA) | C50: =J14 -> 320 | D50: No | E50: 65 | F50: =SUM(E50*C50) -> 20800
A51: 6.4 | B51: Laybacks and tactile pavers | C51: 12 | D51: m² | E51: 1200 | F51: =SUM(E51*C51) -> 14400
A52: 6.5 | B52: 10m concrete maintenance area end of all islands | C52: =J16 -> 1250 | D52: m² | E52: 85 | F52: =SUM(E52*C52) -> 106250
A53: 7 | B53: TRAFFIC SIGNAL WORKS | G53: =SUM(F53:F61) -> 302000
A54: 7.1 | B54: General items | C54: 1 | D54: Item | E54: 27500 | F54: =SUM(E54*C54) -> 27500
A55: 7.2 | B55: Conduits | C55: 1 | D55: Item | E55: 28000 | F55: 28000
A56: 7.3 | B56: Pedestals | C56: 1 | D56: Item | E56: 65000 | F56: 65000
A57: 7.4 | B57: Lanterns | C57: 1 | D57: Item | E57: 25000 | F57: 25000
A58: 7.5 | B58: Controller | C58: 1 | D58: Item | E58: 82500 | F58: 82500
A59: 7.6 | B59: Detectors | C59: 1 | D59: Item | E59: 15000 | F59: 15000
A60: 7.7 | B60: Cabling & connections | C60: 1 | D60: Item | E60: 48000 | F60: 48000
A61: 7.8 | B61: Clean-up | C61: 1 | D61: Item | E61: 11000 | F61: 11000
A62: 8 | B62: SIGNAL MAINTENANCE (10 YEARS) by Road Authority | C62: 1 | D62: item | E62: 100000 | F62: 100000 | G62: =F62 -> 100000
A63: 9 | B63: POWER & LIGHTING | G63: =SUM(F64:F70) -> 256500
A64: 9.1 | B64: Light pole (1-way) and luminous lights | C64: 15 | D64: No | E64: 8000 | F64: 120000
A65: 9.2 | B65: Light pole (2-way) and luminous lights | C65: 7 | D65: No | E65: 9000 | F65: 63000
A66: 9.3 | B66: JUP lighting single | C66: 4 | D66: No | E66: 4000 | F66: 16000
A67: 9.4 | B67: JUP lighting dual | C67: 1 | D67: No | E67: 5000 | F67: 5000
A68: 9.5 | B68: Cabling, conduits and pits | C68: 1 | D68: Item | E68: 30000 | F68: 30000
A69: 9.6 | B69: Electrical connection | C69: 1 | D69: Item | E69: 15000 | F69: 15000
A70: 9.7 | B70: Removal & replacement of substation | C70: 1 | D70: Item | E70: 7500 | F70: =SUM(E70*C70) -> 7500
A71: 10 | B71: LANDSCAPING WORKS | G71: =SUM(F71:F73) -> 29686.25
A72: 10.1 | B72: Topsoiling seeding | C72: =J12*1.5+J14*1 -> 3492.5 | D72: m² | E72: 8.5 | F72: =SUM(E72*C72) -> 29686.25
A73: 10.2 | B73: Landcape planting | C73: 0 | D73: NA
A74: 11 | B74: SIGNING | C74: 1 | D74: item | E74: 10000 | F74: 10000 | G74: =F74 -> 10000
A75: 12 | B75: LINEMARKING (Thermoplastic) | C75: 1 | D75: item | E75: 30000 | F75: 30000 | G75: =F75 -> 30000
A76: 13 | B76: SERVICE RELOCATION | G76: =SUM(F76:F78) -> 0
A77: 13.1 | B77: (Water, gas, telstra) No allowance | C77: 0 | D77: Item | E77: 0 | F77: =SUM(E77*C77) -> 0
A78: 13.2 | B78: (Overhead electrical) No allowance | C78: 0 | D78: Item | E78: 0 | F78: =SUM(E78*C78) -> 0
A79: 14 | B79: MISCELLANEOUS | G79: =SUM(F79:F79) -> 0
A80: 15 | B80: PROVISIONAL SUM - DAYWORK | D80: item | F80: =SUM(E80*C80) -> 0 | G80: =F80 -> 0
B82: TOTAL A - C | F82: =SUM(F25:F81,F7:F23) -> 4966904.394 | G82: =SUM(G7,G15,G24) -> 4966904.394
A84: D | B84: Contingency
B85: =Summary!B17 -> Contingency (15% of C) | F85: 0.15 | G85: =F85*G24 -> 660961.3725
A87: E | B87: PROJECT BUDGET
B88: Total Estimate | G88: =G85+G82 -> 5627865.766
A91: Notes: | B91: Earthworks based on a concept vertical grade alignment
A94: Services
A95: 1 | B95: Service relocation / alterations have not been allowed for in the estimate
A96: 2 | B96: No allowance for water, gas, telstra, sewer
A97: Substations
A98: 3 | B98: No allowance for substations
A99: Preliminaries
A100: 4 | B100: Based on nominal rates
A101: Subsoil Drain
A102: 5 | B102: Assume same as kerb and channel
A103: Side Entry Pits
A104: 6 | B104: Based on 50 m intervals (please note due to large road width dual drainage has been allowed for
A105: Tactile Pavers
A106: 7 | B106: Assume hazard TGSI's (no directional)
A107: Signing
A108: 8 | B108: Nominal rate
A109: Pavement
A110: 9 | B110: Assume deep lift asphalt pavement
A111: Tree Removal
A112: 10 | B112: Based on preliminary information
A113: Roads
A114: 11 | B114: Where applicable, existing road conditions based on limited crushed rock roads assumed to be of no consequence to works
A115: 12 | B115: Where applicable, existing asphalt roads to be demolished as part of intersection works
A116: Dry Stone Wall
A117: 13 | B117: Dry stone wall works allowance has assumed the wall is not heritage listed and does not need to be reconstructed
A119: AUTHOR: | B119: Jack Hume
A120: Date: | B120: 2014-10-21
A122: REVIEWER: | B122: Rob Henry
A123: Date: | B123: 2014-10-21

Sheet IN-2
A1: PRELIMINARY ESTIMATE OF DEVELOPMENT COSTS | G1: =Summary!A5 -> 2015-05-14
A2: =Summary!A3 -> CG140690 | G2: =Summary!A6 -> Version 11
A3: =Summary!A4 -> Wollert PSP - Intersection Cost Estimate | C3: PM %: | D3: 0.0897 | I3: Click here for Nearmap Screenshots taken July 2014
A4: Intersection Ref: | B4: =J7 -> IN-02 (26-VR) | E4: DRAFT | I4: Do not Delete the below info
A5: Sheet Ref: | B5: =Summary!D9 -> (26-VR)
A6: ITEM | B6: DESCRIPTION | C6: QUANTITY | D6: UNIT | E6: RATE | F6: AMOUNT | G6: SUBTOTAL | I6: Sheet Specific Information | J6: Input | K6: Cell Reference
A7: A | B7: =Summary!B10 -> Project and Program Management (%) | G7: =SUM(F7:F14) -> 125146.9968 | I7: Intersection Name | J7: IN-02 (26-VR) | K7: A4
B8: Project Management | D8: 0.03 | E8: =($D$3/0.1)*D8 -> 0.02691 | F8: =E8*$G$24 -> 75088.19808 | I8: Existing road directions | J8: N-S and E-W | K8: B87
B9: Project scoping, planning, scheduling, monitoring, reporting and commissioning | I9: Previous Road area | J9: 2800 | K9: m2
B10: Management of preconstruction activities, development of tender documents and management of contracts | I10: Total Roadway Area | J10: 9550 | K10: m2
B11: Managing external interfaces, including community liaison, environmental issues, traffic issues etc. | I11: Island Area | J11: 3600 | K11: m2
B12: Records management | I12: Kerb and Channel | J12: =1000+275+325+175+175-545 -> 1405 | K12: Lm
B13: Program Administration | D13: 0.02 | E13: =($D$3/0.1)*D13 -> 0.01794 | F13: =E13*$G$24 -> 50058.79872 | I13: Shoulder | J13: =85+40+100+120+115+85 -> 545 | K13: Lm
I14: Footpath Length | J14: =100+100+100 -> 300 | K14: Lm
A15: B | B15: =Summary!B11 -> Design and Investigation (%) | G15: =SUM(F15:F23) -> 250293.9936 | I15: Pipe Length | J15: 800 | K15: Lm
B16: Traffic Investigations | D16: 0.0085 | E16: =($D$3/0.1)*D16 -> 0.0076245 | F16: =E16*$G$24 -> 21274.98946 | I16: Island Concrete infill | J16: =25+25+100+125+30+30 -> 335 | K16: m2
B17: Cadastral and Engineering Survey | D17: 0.012 | E17: 0.010764 | F17: 30035.27923 | I17: Shared Path Length | J17: =150+100+175+175+100+150 -> 850 | K17: Lm
B18: Geotechnical investigations Pavement Investigations and Design | D18: 0.012 | E18: 0.010764 | F18: 30035.27923
B19: Environmental Investigations | E19: 0 | F19: 0
B20: Landscape Design | E20: 0 | F20: 0
B21: Preliminary and Final Design | D21: 0.0425 | E21: 0.0381225 | F21: 106374.9473
B22: Construction Management | D22: 0.025 | E22: 0.022425 | F22: 62573.4984
I23: 2.5% of construction cost | J23: =0.025*G24 -> 69758.63812
A24: C | B24: Construction | F24: =SUM(F25:F79) -> 2790345.525 | G24: =SUM(G25:G78) -> 2790345.525
A25: 1 | B25: PRELIMINARIES | G25: =SUM(F25:F28) -> 100000
A26: 1.1 | B26: Site establishment | C26: 1 | D26: Item | E26: 10000 | F26: =E26*C26 -> 10000
A27: 1.2 | B27: Site management & supervision including QA | C27: 20 | D27: wks | E27: 2500 | F27: =SUM(E27*C27) -> 50000
A28: 1.3 | B28: Provision for traffic | C28: 1 | D28: Item | E28: 40000 | F28: =SUM(E28*C28) -> 40000
A29: 2 | B29: DEMOLITION | G29: =SUM(F29:F32) -> 46000
A30: 2.1 | B30: Trees | C30: 17 | D30: No | E30: 500 | F30: =SUM(E30*C30) -> 8500
A31: 2.2 | B31: Demolition of existing Road | C31: 1 | D31: item | E31: 37500 | F31: =SUM(E31*C31) -> 37500
A32: 3 | B32: EARTHWORKS | G32: =SUM(F32:F37) -> 432964.275
A33: 3.1 | B33: Stripping topsoil (150mm) | C33: =0.54*J10 -> 5157 | D33: m² | E33: 6 | F33: =SUM(E33*C33) -> 30942
A34: 3.2 | B34: Excavation and removal | C34: =C39*1.11 -> 7740.585 | D34: m³ | E34: 15 | F34: =SUM(E34*C34) -> 116108.775
A35: 3.3 | B35: Soft spot rectification (reclaimed FCR) | C35: =C39*20% -> 1394.7 | D35: m³ | E35: 30 | F35: =SUM(E35*C35) -> 41841
A36: 3.4 | B36: Rock excavation & sub-surface remediation 450mm | C36: =C39*50% -> 3486.75 | D36: m² | E36: =55+15 -> 70 | F36: =SUM(E36*C36) -> 244072.5
A37: 4 | B37: PAVEMENT | G37: =SUM(F37:F40) -> 1030092.5
A38: 4.1 | B38: Deep lift asphalt 195 mm | C38: =J10-J13-J11 -> 5405 | D38: m² | E38: =IF(C38<15000,105,85) -> 105 | F38: =SUM(E38*C38) -> 567525
A39: 4.2 | B39: Subbase course - 250 mm 3% CTCR | C39: =C38+(J12*1)+C40*0.3 -> 6973.5 | D39: m² | E39: =IF(C39<15000,55,45) -> 55 | F39: =SUM(E39*C39) -> 383542.5
A40: 4.3 | B40: Shoulder - full depth pavement | C40: =J13 -> 545 | D40: m² | E40: 145 | F40: =SUM(E40*C40) -> 79025
A41: 5 | B41: DRAINAGE | G41: =SUM(F41:F45) -> 259500
A42: 5.1 | B42: Subsoil drains 100mm dia - screenings | C42: =J12+J13 -> 1950 | D42: Lm | E42: 30 | F42: =SUM(E42*C42) -> 58500
A43: 5.2 | B43: Subsoil drains 100mm dia - no fines conc | C43: 0 | D43: Lm | E43: 45 | F43: =SUM(E43*C43) -> 0
A44: 5.3 | B44: 375 RCP (class 2) | C44: =J15 -> 800 | D44: Lm | E44: 170 | F44: =SUM(E44*C44) -> 136000
A45: 5.4 | B45: Side entry pits | C45: 26 | D45: No | E45: 2500 | F45: =SUM(E45*C45) -> 65000
A46: 6 | B46: CONCRETE WORKS | G46: =SUM(F46:F51) -> 238325
A47: 6.1 | B47: Kerb &channel | C47: =J12 -> 1405 | D47: Lm | E47: 50 | F47: =SUM(E47*C47) -> 70250
A48: 6.2 | B48: Shared Paths (3.0m wide,125 mm, residential, as per MPA) | C48: =J17 -> 850 | D48: Lm | E48: 130 | F48: =SUM(E48*C48) -> 110500
A49: 6.3 | B49: Footpaths (1.5m wide,125 mm, residential, as per MPA) | C49: =J14 -> 300 | D49: No | E49: 65 | F49: =SUM(E49*C49) -> 19500
A50: 6.4 | B50: Laybacks and tactile pavers | C50: 8 | D50: m² | E50: 1200 | F50: =SUM(E50*C50) -> 9600
A51: 6.5 | B51: 10m concrete maintenance area end of all islands | C51: =J16 -> 335 | D51: m² | E51: 85 | F51: =SUM(E51*C51) -> 28475
A52: 7 | B52: TRAFFIC SIGNAL WORKS | G52: =SUM(F52:F60) -> 302000
A53: 7.1 | B53: General items | C53: 1 | D53: Item | E53: 27500 | F53: =SUM(E53*C53) -> 27500
A54: 7.2 | B54: Conduits | C54: 1 | D54: Item | E54: 28000 | F54: 28000
A55: 7.3 | B55: Pedestals | C55: 1 | D55: Item | E55: 65000 | F55: 65000
A56: 7.4 | B56: Lanterns | C56: 1 | D56: Item | E56: 25000 | F56: 25000
A57: 7.5 | B57: Controller | C57: 1 | D57: Item | E57: 82500 | F57: 82500
A58: 7.6 | B58: Detectors | C58: 1 | D58: Item | E58: 15000 | F58: 15000
A59: 7.7 | B59: Cabling & connections | C59: 1 | D59: Item | E59: 48000 | F59: 48000
A60: 7.8 | B60: Clean-up | C60: 1 | D60: Item | E60: 11000 | F60: 11000
A61: 8 | B61: SIGNAL MAINTENANCE (10 YEARS) by Road Authority | C61: 1 | D61: item | E61: 100000 | F61: 100000 | G61: =F61 -> 100000
A62: 9 | B62: POWER & LIGHTING | G62: =SUM(F63:F68) -> 221000
A63: 9.1 | B63: Light pole (1-way) and luminous lights | C63: 12 | D63: No | E63: 8000 | F63: 96000
A64: 9.2 | B64: Light pole (2-way) and luminous lights | C64: 6 | D64: No | E64: 9000 | F64: 54000
A65: 9.3 | B65: JUP lighting single | C65: 4 | D65: No | E65: 4000 | F65: 16000
A66: 9.4 | B66: JUP lighting dual | C66: 2 | D66: No | E66: 5000 | F66: 10000
A67: 9.5 | B67: Cabling, conduits and pits | C67: 1 | D67: Item | E67: 30000 | F67: 30000
A68: 9.6 | B68: Electrical connection | C68: 1 | D68: Item | E68: 15000 | F68: 15000
A69: 10 | B69: LANDSCAPING WORKS | G69: =SUM(F69:F71) -> 20463.75
A70: 10.1 | B70: Topsoiling seeding | C70: =J12*1.5+J14*1 -> 2407.5 | D70: m² | E70: 8.5 | F70: =SUM(E70*C70) -> 20463.75
A71: 10.2 | B71: Landcape planting | C71: 0 | D71: NA
A72: 11 | B72: SIGNING | C72: 1 | D72: item | E72: 10000 | F72: 10000 | G72: =F72 -> 10000
A73: 12 | B73: LINEMARKING (Thermoplastic) | C73: 1 | D73: item | E73: 30000 | F73: 30000 | G73: =F73 -> 30000
A74: 13 | B74: SERVICE RELOCATION | G74: =SUM(F74:F76) -> 0
A75: 13.1 | B75: (Water, gas, Telstra) No allowance | C75: 0 | D75: Item | E75: 0 | F75: =SUM(E75*C75) -> 0
A76: 13.2 | B76: (Overhead electrical) No allowance | C76: 0 | D76: Item | E76: 0 | F76: =SUM(E76*C76) -> 0
A77: 14 | B77: MISCELLANEOUS | G77: =SUM(F77:F77) -> 0
A78: 15 | B78: PROVISIONAL SUM - DAYWORK | D78: item | F78: =SUM(E78*C78) -> 0 | G78: =F78 -> 0
B80: TOTAL A - C | F80: =SUM(F25:F79,F7:F23) -> 3165786.515 | G80: =SUM(G24+G15+G7) -> 3165786.515
A82: D | B82: Contingency
B83: =Summary!B17 -> Contingency (15% of C) | F83: 0.15 | G83: =F83*G24 -> 418551.8287
A85: E | B85: PROJECT BUDGET
B86: Total Estimate | G86: =G83+G80 -> 3584338.344
A89: Notes:
A90: - | B90: Earthworks based on a concept vertical grade alignment
A92: Services
A93: 1 | B93: Service relocation / alterations have not been allowed for in the estimate
A94: 2 | B94: No allowance for water, gas, telstra, sewer
A95: Substations
A96: 3 | B96: No allowance for substations
A97: Preliminaries
A98: 4 | B98: Based on nominal rates
A99: Subsoil Drain
A100: 5 | B100: Assume same as kerb and channel
A101: Side Entry Pits
A102: 6 | B102: Based on 50 m intervals
A103: Tactile Pavers
A104: 7 | B104: Assume hazard TGSI's (no directional)
A105: Signing
A106: 8 | B106: Nominal rate
A107: Pavement
A108: 9 | B108: Assume deep lift asphalt pavement
A109: Tree Removal
A110: 10 | B110: Based on preliminary information
A111: Roads
A112: 11 | B112: Where applicable, existing road conditions based on limited crushed rock roads assumed to be of no consequence to works
A113: 12 | B113: Where applicable, existing asphalt roads to be demolished as part of intersection works
A114: Dry Stone Wall
A115: 13 | B115: Dry stone wall works allowance has assumed the wall is not heritage listed and does not need to be reconstructed
A117: AUTHOR: | B117: Jack Hume
A118: Date: | B118: 2014-10-21
A120: REVIEWER: | B120: Rob Henry
A121: Date: | B121: 2014-10-21

Sheet IN-4
A1: PRELIMINARY ESTIMATE OF DEVELOPMENT COSTS | G1: =Summary!A5 -> 2015-05-14
A2: =Summary!A3 -> CG140690 | G2: =Summary!A6 -> Version 11
A3: =Summary!A4 -> Wollert PSP - Intersection Cost Estimate | C3: PM %: | D3: 0.0899 | I3: Click here for Nearmap Screenshots taken July 2014
A4: Intersection Ref: | B4: =J7 -> IN-04 (26-VR) | E4: DRAFT | I4: Do not Delete the below info
A5: Sheet Ref: | B5: =Summary!E9 -> (26-VR)
A6: ITEM | B6: DESCRIPTION | C6: QUANTITY | D6: UNIT | E6: RATE | F6: AMOUNT | G6: SUBTOTAL | I6: Sheet Specific Information | J6: Input | K6: Cell Reference
A7: A | B7: =Summary!B10 -> Project and Program Management (%) | G7: =SUM(F7:F14) -> 123968.4478 | I7: Intersection Name | J7: IN-04 (26-VR) | K7: A4
B8: Project Management | D8: 0.03 | E8: =($D$3/0.1)*D8 -> 0.02697 | F8: =E8*$G$24 -> 74381.06869 | I8: Existing road directions | J8: N-S and E-W | K8: B87
B9: Project scoping, planning, scheduling, monitoring, reporting and commissioning | I9: Previous Road area | J9: 2800 | K9: m2
B10: Management of preconstruction activities, development of tender documents and management of contracts | I10: Total Roadway Area | J10: 9550 | K10: m2
B11: Managing external interfaces, including community liaison, environmental issues, traffic issues etc. | I11: Island Area | J11: 3600 | K11: m2
B12: Records management | I12: Kerb and Channel | J12: =1000+275+325+175+175-545 -> 1405 | K12: Lm
B13: Program Administration | D13: 0.02 | E13: =($D$3/0.1)*D13 -> 0.01798 | F13: =E13*$G$24 -> 49587.37912 | I13: Shoulder | J13: =85+40+100+120+115+85 -> 545 | K13: Lm
I14: Footpath Length | J14: =100+100+100 -> 300 | K14: Lm
A15: B | B15: =Summary!B11 -> Design and Investigation (%) | G15: =SUM(F15:F23) -> 247936.8956 | I15: Pipe Length | J15: 800 | K15: Lm
B16: Traffic Investigations | D16: 0.0085 | E16: =($D$3/0.1)*D16 -> 0.0076415 | F16: =E16*$G$24 -> 21074.63613 | I16: Island Concrete infill | J16: =25+25+100+125+30+30 -> 335 | K16: m2
B17: Cadastral and Engineering Survey | D17: 0.012 | E17: 0.010788 | F17: 29752.42747 | I17: Shared Path Length | J17: =150+100+175+175+100+150 -> 850 | K17: Lm
B18: Geotechnical investigations Pavement Investigations and Design | D18: 0.012 | E18: 0.010788 | F18: 29752.42747
B19: Environmental Investigations | E19: 0 | F19: 0
B20: Landscape Design | E20: 0 | F20: 0
B21: Preliminary and Final Design | D21: 0.0425 | E21: 0.0382075 | F21: 105373.1806
B22: Construction Management | D22: 0.025 | E22: 0.022475 | F22: 61984.22391
I23: 2.5% of construction cost | J23: =0.025*G24 -> 68947.96875
A24: C | B24: Construction | F24: =SUM(F25:F79) -> 2757918.75 | G24: =SUM(G25:G78) -> 2757918.75
A25: 1 | B25: PRELIMINARIES | G25: =SUM(F25:F28) -> 100000
A26: 1.1 | B26: Site establishment | C26: 1 | D26: Item | E26: 10000 | F26: =E26*C26 -> 10000
A27: 1.2 | B27: Site management & supervision including QA | C27: 20 | D27: wks | E27: 2500 | F27: =SUM(E27*C27) -> 50000
A28: 1.3 | B28: Provision for traffic | C28: 1 | D28: Item | E28: 40000 | F28: =SUM(E28*C28) -> 40000
A29: 2 | B29: DEMOLITION | G29: =SUM(F29:F32) -> 46000
A30: 2.1 | B30: Trees | C30: 17 | D30: No | E30: 500 | F30: =SUM(E30*C30) -> 8500
A31: 2.2 | B31: Demolition of existing Road | C31: 1 | D31: item | E31: 37500 | F31: =SUM(E31*C31) -> 37500
A32: 3 | B32: EARTHWORKS | G32: =SUM(F32:F37) -> 400537.5
A33: 3.1 | B33: Stripping topsoil (150mm) | C33: =0.54*J10 -> 5157 | D33: m² | E33: 6 | F33: =SUM(E33*C33) -> 30942
A34: 3.2 | B34: Excavation and removal | C34: =C39*0.5 -> 3486.75 | D34: m³ | E34: 30 | F34: =SUM(E34*C34) -> 104602.5
A35: 3.3 | B35: Soft spot rectification (reclaimed FCR) | C35: =C39*20% -> 1394.7 | D35: m³ | E35: 15 | F35: =SUM(E35*C35) -> 20920.5
A36: 3.4 | B36: Rock excavation & sub-surface remediation 450mm | C36: =C39*50% -> 3486.75 | D36: m² | E36: =55+15 -> 70 | F36: =SUM(E36*C36) -> 244072.5
A37: 4 | B37: PAVEMENT | G37: =SUM(F37:F40) -> 1030092.5
A38: 4.1 | B38: Deep lift asphalt 195 mm | C38: =J10-J13-J11 -> 5405 | D38: m² | E38: =IF(C38<15000,105,85) -> 105 | F38: =SUM(E38*C38) -> 567525
A39: 4.2 | B39: Subbase course - 250 mm 3% CTCR | C39: =C38+(J12*1)+C40*0.3 -> 6973.5 | D39: m² | E39: =IF(C39<15000,55,45) -> 55 | F39: =SUM(E39*C39) -> 383542.5
A40: 4.3 | B40: Shoulder - full depth pavement | C40: =J13 -> 545 | D40: m² | E40: 145 | F40: =SUM(E40*C40) -> 79025
A41: 5 | B41: DRAINAGE | G41: =SUM(F41:F45) -> 259500
A42: 5.1 | B42: Subsoil drains 100mm dia - screenings | C42: =J12+J13 -> 1950 | D42: Lm | E42: 30 | F42: =SUM(E42*C42) -> 58500
A43: 5.2 | B43: Subsoil drains 100mm dia - no fines conc | C43: 0 | D43: Lm | E43: 45 | F43: =SUM(E43*C43) -> 0
A44: 5.3 | B44: 375 RCP (class 2) | C44: =J15 -> 800 | D44: Lm | E44: 170 | F44: =SUM(E44*C44) -> 136000
A45: 5.4 | B45: Side entry pits | C45: 26 | D45: No | E45: 2500 | F45: =SUM(E45*C45) -> 65000
A46: 6 | B46: CONCRETE WORKS | G46: =SUM(F46:F51) -> 238325
A47: 6.1 | B47: Kerb &channel | C47: =J12 -> 1405 | D47: Lm | E47: 50 | F47: =SUM(E47*C47) -> 70250
A48: 6.2 | B48: Shared Paths (3.0m wide,125 mm, residential, as per MPA) | C48: =J17 -> 850 | D48: Lm | E48: 130 | F48: =SUM(E48*C48) -> 110500
A49: 6.3 | B49: Footpaths (1.5m wide,125 mm, residential, as per MPA) | C49: =J14 -> 300 | D49: No | E49: 65 | F49: =SUM(E49*C49) -> 19500
A50: 6.4 | B50: Laybacks and tactile pavers | C50: 8 | D50: m² | E50: 1200 | F50: =SUM(E50*C50) -> 9600
A51: 6.5 | B51: 10m concrete maintenance area end of all islands | C51: =J16 -> 335 | D51: m² | E51: 85 | F51: =SUM(E51*C51) -> 28475
A52: 7 | B52: TRAFFIC SIGNAL WORKS | G52: =SUM(F52:F60) -> 302000
A53: 7.1 | B53: General items | C53: 1 | D53: Item | E53: 27500 | F53: =SUM(E53*C53) -> 27500
A54: 7.2 | B54: Conduits | C54: 1 | D54: Item | E54: 28000 | F54: 28000
A55: 7.3 | B55: Pedestals | C55: 1 | D55: Item | E55: 65000 | F55: 65000
A56: 7.4 | B56: Lanterns | C56: 1 | D56: Item | E56: 25000 | F56: 25000
A57: 7.5 | B57: Controller | C57: 1 | D57: Item | E57: 82500 | F57: 82500
A58: 7.6 | B58: Detectors | C58: 1 | D58: Item | E58: 15000 | F58: 15000
A59: 7.7 | B59: Cabling & connections | C59: 1 | D59: Item | E59: 48000 | F59: 48000
A60: 7.8 | B60: Clean-up | C60: 1 | D60: Item | E60: 11000 | F60: 11000
A61: 8 | B61: SIGNAL MAINTENANCE (10 YEARS) by Road Authority | C61: 1 | D61: item | E61: 100000 | F61: 100000 | G61: =F61 -> 100000
A62: 9 | B62: POWER & LIGHTING | G62: =SUM(F63:F68) -> 221000
A63: 9.1 | B63: Light pole (1-way) and luminous lights | C63: 12 | D63: No | E63: 8000 | F63: 96000
A64: 9.2 | B64: Light pole (2-way) and luminous lights | C64: 6 | D64: No | E64: 9000 | F64: 54000
A65: 9.3 | B65: JUP lighting single | C65: 4 | D65: No | E65: 4000 | F65: 16000
A66: 9.4 | B66: JUP lighting dual | C66: 2 | D66: No | E66: 5000 | F66: 10000
A67: 9.5 | B67: Cabling, conduits and pits | C67: 1 | D67: Item | E67: 30000 | F67: 30000
A68: 9.6 | B68: Electrical connection | C68: 1 | D68: Item | E68: 15000 | F68: 15000
A69: 10 | B69: LANDSCAPING WORKS | G69: =SUM(F69:F71) -> 20463.75
A70: 10.1 | B70: Topsoiling seeding | C70: =J12*1.5+J14*1 -> 2407.5 | D70: m² | E70: 8.5 | F70: =SUM(E70*C70) -> 20463.75
A71: 10.2 | B71: Landcape planting | C71: 0 | D71: NA
A72: 11 | B72: SIGNING | C72: 1 | D72: item | E72: 10000 | F72: 10000 | G72: =F72 -> 10000
A73: 12 | B73: LINEMARKING (Thermoplastic) | C73: 1 | D73: item | E73: 30000 | F73: 30000 | G73: =F73 -> 30000
A74: 13 | B74: SERVICE RELOCATION | G74: =SUM(F74:F76) -> 0
A75: 13.1 | B75: (Water, gas, Telstra) No allowance | C75: 0 | D75: Item | E75: 0 | F75: =SUM(E75*C75) -> 0
A76: 13.2 | B76: (Overhead electrical) No allowance | C76: 0 | D76: Item | E76: 0 | F76: =SUM(E76*C76) -> 0
A77: 14 | B77: MISCELLANEOUS | G77: =SUM(F77:F77) -> 0
A78: 15 | B78: PROVISIONAL SUM - DAYWORK | D78: item | F78: =SUM(E78*C78) -> 0 | G78: =F78 -> 0
B80: TOTAL A - C | F80: =SUM(F25:F79,F7:F23) -> 3129824.093 | G80: =SUM(G24+G15+G7) -> 3129824.093
A82: D | B82: Contingency
B83: =Summary!B17 -> Contingency (15% of C) | F83: 0.15 | G83: =F83*G24 -> 413687.8125
A85: E | B85: PROJECT BUDGET
B86: Total Estimate | G86: =G83+G80 -> 3543511.906
A89: Notes:
A90: - | B90: Earthworks based on a concept vertical grade alignment
A92: Services
A93: 1 | B93: Service relocation / alterations have not been allowed for in the estimate
A94: 2 | B94: No allowance for water, gas, telstra, sewer
A95: Substations
A96: 3 | B96: No allowance for substations
A97: Preliminaries
A98: 4 | B98: Based on nominal rates
A99: Subsoil Drain
A100: 5 | B100: Assume same as kerb and channel
A101: Side Entry Pits
A102: 6 | B102: Based on 50 m intervals
A103: Tactile Pavers
A104: 7 | B104: Assume hazard TGSI's (no directional)
A105: Signing
A106: 8 | B106: Nominal rate
A107: Pavement
A108: 9 | B108: Assume deep lift asphalt pavement
A109: Tree Removal
A110: 10 | B110: Based on preliminary information
A111: Roads
A112: 11 | B112: Where applicable, existing road conditions based on limited crushed rock roads assumed to be of no consequence to works
A113: 12 | B113: Where applicable, existing asphalt roads to be demolished as part of intersection works
A114: Dry Stone Wall
A115: 13 | B115: Dry stone wall works allowance has assumed the wall is not heritage listed and does not need to be reconstructed
A117: AUTHOR: | B117: Jack Hume
A118: Date: | B118: 2014-10-21
A120: REVIEWER: | B120: Rob Henry
A121: Date: | B121: 2014-10-21

Sheet IN-5
A1: PRELIMINARY ESTIMATE OF DEVELOPMENT COSTS | G1: =Summary!A5 -> 2015-05-14
A2: =Summary!A3 -> CG140690 | G2: =Summary!A6 -> Version 11
A3: =Summary!A4 -> Wollert PSP - Intersection Cost Estimate | C3: PM %: | D3: 0.0801 | I3: Click here for Nearmap Screenshots taken July 2014
A4: Intersection Ref: | B4: =J7 -> IN-5 | E4: DRAFT | I4: Do not Delete the below info
A5: Sheet Ref: | B5: =Summary!F9 -> (9-VR)
A6: ITEM | B6: DESCRIPTION | C6: QUANTITY | D6: UNIT | E6: RATE | F6: AMOUNT | G6: SUBTOTAL | I6: Sheet Specific Information | J6: Input | K6: Cell Reference
A7: A | B7: =Summary!B10 -> Project and Program Management (%) | G7: =SUM(F7:F14) -> 277401.7993 | I7: Intersection Name | J7: IN-5 | K7: A4
B8: Project Management | D8: 0.03 | E8: =($D$3/0.1)*D8 -> 0.02403 | F8: =E8*$G$24 -> 166441.0796 | I8: Existing road directions | J8: N-S and E-W | K8: B87
B9: Project scoping, planning, scheduling, monitoring, reporting and commissioning | I9: Previous Road area | J9: 5750 | K9: m2
B10: Management of preconstruction activities, development of tender documents and management of contracts | I10: Total Roadway Area | J10: 25200 | K10: m2
B11: Managing external interfaces, including community liaison, environmental issues, traffic issues etc. | I11: Island Area | J11: 8800 | K11: m2
B12: Records management | I12: Kerb and Channel | J12: =1850+325+375+400+400 -> 3350 | K12: Lm
B13: Program Administration | D13: 0.02 | E13: =($D$3/0.1)*D13 -> 0.01602 | F13: =E13*$G$24 -> 110960.7197 | I13: Shoulder | J13: =210+190+120+130+200 -> 850 | K13: Lm
I14: Footpath Length | J14: 0 | K14: Lm
A15: B | B15: =Summary!B11 -> Design and Investigation (%) | G15: =SUM(F15:F23) -> 554803.5987 | I15: Pipe Length | J15: 2400 | K15: Lm
B16: Traffic Investigations | D16: 0.0085 | E16: =($D$3/0.1)*D16 -> 0.0068085 | F16: =E16*$G$24 -> 47158.30589 | I16: Island Concrete infill | J16: 350 | K16: m2
B17: Cadastral and Engineering Survey | D17: 0.012 | E17: 0.009612 | F17: 66576.43184 | I17: Shared Path Length | J17: =480+500+400+440+10+10+10 -> 1850 | K17: Lm
B18: Geotechnical investigations Pavement Investigations and Design | D18: 0.012 | E18: 0.009612 | F18: 66576.43184
B19: Environmental Investigations | E19: 0 | F19: 0
B20: Landscape Design | E20: 0 | F20: 0
B21: Preliminary and Final Design | D21: 0.0425 | E21: 0.0340425 | F21: 235791.5294
B22: Construction Management | D22: 0.025 | E22: 0.020025 | F22: 138700.8997
I23: 2.5% of construction cost | J23: =0.025*G24 -> 173159.675
A24: C | B24: Construction | F24: =SUM(F25:F88) -> 6926387 | G24: =SUM(G25:G87) -> 6926387
A25: 1 | B25: PRELIMINARIES | G25: =SUM(F25:F28) -> 170600
A26: 1.1 | B26: Site establishment | C26: 1 | D26: Item | E26: 10000 | F26: =E26*C26 -> 10000
A27: 1.2 | B27: Site management & supervision including QA | C27: 22 | D27: wks | E27: 2500 | F27: =SUM(E27*C27) -> 55000
A28: 1.3 | B28: Provision for traffic | C28: 1 | D28: Item | E28: =C27*6*800 -> 105600 | F28: =SUM(E28*C28) -> 105600
A29: 2 | B29: DEMOLITION | G29: =SUM(F29:F32) -> 37250
A30: 2.1 | B30: Trees | C30: 17 | D30: No | E30: 500 | F30: =SUM(E30*C30) -> 8500
A31: 2.2 | B31: Strip asphalt from existing pavement | C31: =J9 -> 5750 | D31: m² | E31: 5 | F31: =SUM(E31*C31) -> 28750
A32: 3 | B32: EARTHWORKS | G32: =SUM(F32:F37) -> 1447399.5
A33: 3.1 | B33: Stripping topsoil (150mm) | C33: =0.54*J10 -> 13608 | D33: m² | E33: 6 | F33: =SUM(E33*C33) -> 81648
A34: 3.2 | B34: Excavation and removal | C34: =C39*1.11 -> 21262.05 | D34: m³ | E34: 30 | F34: =SUM(E34*C34) -> 637861.5
A35: 3.3 | B35: Soft spot rectification (reclaimed FCR) | C35: =C39*20% -> 3831 | D35: m³ | E35: 15 | F35: =SUM(E35*C35) -> 57465
A36: 3.4 | B36: Rock excavation & sub-surface remediation 450mm | C36: =C39*50% -> 9577.5 | D36: m² | E36: =55+15 -> 70 | F36: =SUM(E36*C36) -> 670425
A37: 4 | B37: PAVEMENT | G37: =SUM(F37:F40) -> 2306975
A38: 4.1 | B38: Deep lift asphalt 195 mm | C38: =J10-J13-J11 -> 15550 | D38: m² | E38: =IF(C38<15000,105,85) -> 85 | F38: =SUM(E38*C38) -> 1321750
A39: 4.2 | B39: Subbase course - 250 mm 3% CTCR | C39: =C38+(J12*1)+C40*0.3 -> 19155 | D39: m² | E39: =IF(C39<15000,55,45) -> 45 | F39: =SUM(E39*C39) -> 861975
A40: 4.3 | B40: Shoulder - full depth pavement | C40: =J13 -> 850 | D40: m² | E40: 145 | F40: =SUM(E40*C40) -> 123250
A41: 5 | B41: DRAINAGE | G41: =SUM(F41:F45) -> 599000
A42: 5.1 | B42: Subsoil drains 100mm dia - screenings | C42: =J12+J13 -> 4200 | D42: Lm | E42: 30 | F42: =SUM(E42*C42) -> 126000
A43: 5.2 | B43: Subsoil drains 100mm dia - no fines conc | C43: 0 | D43: Lm | E43: 45 | F43: =SUM(E43*C43) -> 0
A44: 5.3 | B44: 375 RCP (class 2) | C44: =J15 -> 2400 | D44: Lm | E44: 170 | F44: =SUM(E44*C44) -> 408000
A45: 5.4 | B45: Side entry pits | C45: 26 | D45: No | E45: 2500 | F45: =SUM(E45*C45) -> 65000
A46: 6 | B46: CONCRETE WORKS | G46: =SUM(F46:F52) -> 569450
A47: 6.1 | B47: Kerb &channel | C47: =J12 -> 3350 | D47: Lm | E47: 50 | F47: =SUM(E47*C47) -> 167500
A48: 6.2 | B48: Shared Paths (3.0m wide,125 mm, residential, as per MPA) | C48: =J17 -> 1850 | D48: Lm | E48: 130 | F48: =SUM(E48*C48) -> 240500
A49: 6.3 | B49: Footpaths (1.5m wide,125 mm, residential, as per MPA) | C49: =J14 -> 0 | D49: No | E49: 65 | F49: =SUM(E49*C49) -> 0
A50: 6.4 | B50: Laybacks and tactile pavers | C50: 8 | D50: m² | E50: 1200 | F50: =SUM(E50*C50) -> 9600
A51: 6.5 | B51: 10m concrete maintenance area end of all islands | C51: =J16 -> 350 | D51: m² | E51: 85 | F51: =SUM(E51*C51) -> 29750
A52: 6.6 | B52: Transmission pipleline slab protection 200mm | C52: =370*2 -> 740 | D52: m² | E52: 165 | F52: =C52*E52 -> 122100
A53: 7 | B53: TRAFFIC SIGNAL WORKS | G53: =SUM(F53:F61) -> 302000
A54: 7.1 | B54: General items | C54: 1 | D54: Item | E54: 27500 | F54: =SUM(E54*C54) -> 27500
A55: 7.2 | B55: Conduits | C55: 1 | D55: Item | E55: 28000 | F55: 28000
A56: 7.3 | B56: Pedestals | C56: 1 | D56: Item | E56: 65000 | F56: 65000
A57: 7.4 | B57: Lanterns | C57: 1 | D57: Item | E57: 25000 | F57: 25000
A58: 7.5 | B58: Controller | C58: 1 | D58: Item | E58: 82500 | F58: 82500
A59: 7.6 | B59: Detectors | C59: 1 | D59: Item | E59: 15000 | F59: 15000
A60: 7.7 | B60: Cabling & connections | C60: 1 | D60: Item | E60: 48000 | F60: 48000
A61: 7.8 | B61: Clean-up | C61: 1 | D61: Item | E61: 11000 | F61: 11000
A62: 8 | B62: SIGNAL MAINTENANCE (10 YEARS) by Road Authority | C62: 1 | D62: item | E62: 100000 | F62: 100000 | G62: =F62 -> 100000
A63: 9 | B63: POWER & LIGHTING | G63: =SUM(F64:F69) -> 250000
A64: 9.1 | B64: Light pole (1-way) and luminous lights | C64: 17 | D64: No | E64: 8000 | F64: 136000
A65: 9.2 | B65: Light pole (2-way) and luminous lights | C65: 5 | D65: No | E65: 9000 | F65: 45000
A66: 9.3 | B66: JUP lighting single | C66: 6 | D66: No | E66: 4000 | F66: 24000
A67: 9.4 | B67: JUP lighting dual | C67: 0 | D67: No | E67: 5000 | F67: 0
A68: 9.5 | B68: Cabling, conduits and pits | C68: 1 | D68: Item | E68: 30000 | F68: 30000
A69: 9.6 | B69: Electrical connection | C69: 1 | D69: Item | E69: 15000 | F69: 15000
A70: 10 | B70: LANDSCAPING WORKS | G70: =SUM(F70:F72) -> 42712.5
A71: 10.1 | B71: Topsoiling seeding | C71: =J12*1.5+J14*1 -> 5025 | D71: m² | E71: 8.5 | F71: =SUM(E71*C71) -> 42712.5
A72: 10.2 | B72: Landcape planting | C72: 0 | D72: NA
A73: 11 | B73: SIGNING | C73: 1 | D73: item | E73: 10000 | F73: 10000 | G73: =F73 -> 10000
A74: 12 | B74: LINEMARKING (Thermoplastic) | C74: 1 | D74: item | E74: 30000 | F74: 30000 | G74: =F74 -> 30000
A75: 13 | B75: SERVICE RELOCATION | G75: =SUM(F75:F80) -> 980000
A76: 13.1 | B76: Water | C76: 1 | D76: Item | E76: 150000 | F76: =SUM(E76*C76) -> 150000
A77: 13.2 | B77: Gas | C77: 1 | D77: Item | E77: 100000 | F77: =SUM(E77*C77) -> 100000
A78: 13.3 | B78: Telstra | C78: 1 | D78: Item | E78: 250000 | F78: =SUM(E78*C78) -> 250000
A79: 13.4 | B79: Overhead electrical | C79: 1 | D79: Item | E79: 480000 | F79: =SUM(E79*C79) -> 480000
A80: 13.5 | B80: Sewer (no allowance) | C80: 0 | D80: Item | E80: 0 | F80: =SUM(E80*C80) -> 0
A81: 14 | B81: MISCELLANEOUS | G81: =SUM(F81:F86) -> 81000
B82: Exisiting Road outside of new road pavements
A83: 14.1 | B83: Strip asphalt | C83: 3600 | D83: m² | E83: 5 | F83: =SUM(E83*C83) -> 18000
A84: 14.2 | B84: Recycle FCR to stockpile | C84: =3600*0.3 -> 1080 | D84: m³ | E84: 10 | F84: =SUM(E84*C84) -> 10800
A85: 14.3 | B85: backfill with structural fill | C85: =C83*0.5 -> 1800 | D85: m³ | E85: 12 | F85: =SUM(E85*C85) -> 21600
A86: 14.4 | B86: Topsoiling | C86: =C83 -> 3600 | D86: m² | E86: 8.5 | F86: =SUM(E86*C86) -> 30600
A87: 15 | B87: PROVISIONAL SUM - DAYWORK | D87: item | F87: 0 | G87: =F87 -> 0
B89: TOTAL A - C | F89: =SUM(F25:F88,F7:F23) -> 7758592.398 | G89: =SUM(G24+G15+G7) -> 7758592.398
A91: D | B91: Contingency
B92: =Summary!B17 -> Contingency (15% of C) | F92: 0.15 | G92: =F92*G24 -> 1038958.05
A94: E | B94: PROJECT BUDGET
B95: Total Estimate | G95: =G92+G89 -> 8797550.448
A98: Notes:
A99: - | B99: Earthworks based on a concept vertical grade alignment
A101: Services
A102: 1 | B102: Water, gas, & telstra existing services information unavailable - assumed from site photography
A103: 2 | B103: No allowance for sewer
A104: 3 | B104: Electrical poles (66 HV, 22HV, LV & lighting)
A105: Substations
A106: 3 | B106: No allowance for substations
A107: Preliminaries
A108: 4 | B108: Based on nominal rates
A109: Subsoil Drain
A110: 5 | B110: Assume same as kerb and channel
A111: Side Entry Pits
A112: 6 | B112: Based on 50 m intervals (please note due to large road width dual drainage has been allowed for
A113: Tactile Pavers
A114: 7 | B114: Assume hazard TGSI's (no directional)
A115: Signing
A116: 8 | B116: Nominal rate
A117: Pavement
A118: 9 | B118: Assume deep lift asphalt pavement
A119: Tree Removal
A120: 10 | B120: Based on preliminary information
A121: Roads
A122: 11 | B122: Where applicable, existing asphalt roads to be demolished as part of intersection works
A127: AUTHOR: | B127: Graeme Stenton
A128: Date: | B128: 2014-12-18
A130: REVIEWER: | B130: Rob Henry
A131: Date:

Sheet IN-6
A1: PRELIMINARY ESTIMATE OF DEVELOPMENT COSTS | G1: =Summary!A5 -> 2015-05-14
A2: =Summary!A3 -> CG140690 | G2: =Summary!A6 -> Version 11
A3: =Summary!A4 -> Wollert PSP - Intersection Cost Estimate | C3: PM %: | D3: 0.0894 | I3: Click here for Nearmap Screenshots taken July 2014
A4: Intersection Ref: | B4: =J7 -> IN-6 | E4: DRAFT | I4: Do not Delete the below info
A5: Sheet Ref: | B5: =Summary!G9 -> (26-VR)
A6: ITEM | B6: DESCRIPTION | C6: QUANTITY | D6: UNIT | E6: RATE | F6: AMOUNT | G6: SUBTOTAL | I6: Sheet Specific Information | J6: Input | K6: Cell Reference
A7: A | B7: =Summary!B10 -> Project and Program Management (%) | G7: =SUM(F7:F14) -> 128983.3609 | I7: Intersection Name | J7: IN-6 | K7: A4
B8: Project Management | D8: 0.03 | E8: =($D$3/0.1)*D8 -> 0.02682 | F8: =E8*$G$24 -> 77390.01652 | I8: Existing road directions | J8: N-S and E-W | K8: B87
B9: Project scoping, planning, scheduling, monitoring, reporting and commissioning | I9: Previous Road area | J9: 2800 | K9: m2
B10: Management of preconstruction activities, development of tender documents and management of contracts | I10: Total Roadway Area | J10: 9550 | K10: m2
B11: Managing external interfaces, including community liaison, environmental issues, traffic issues etc. | I11: Island Area | J11: 3600 | K11: m2
B12: Records management | I12: Kerb and Channel | J12: =1000+275+325+175+175-545 -> 1405 | K12: Lm
B13: Program Administration | D13: 0.02 | E13: =($D$3/0.1)*D13 -> 0.01788 | F13: =E13*$G$24 -> 51593.34434 | I13: Shoulder | J13: =85+40+100+120+115+85 -> 545 | K13: Lm
I14: Footpath Length | J14: =100+100+100 -> 300 | K14: Lm
A15: B | B15: =Summary!B11 -> Design and Investigation (%) | G15: =SUM(F15:F23) -> 257966.7217 | I15: Pipe Length | J15: 800 | K15: Lm
B16: Traffic Investigations | D16: 0.0085 | E16: =($D$3/0.1)*D16 -> 0.007599 | F16: =E16*$G$24 -> 21927.17135 | I16: Island Concrete infill | J16: =25+25+100+125+30+30 -> 335 | K16: m2
B17: Cadastral and Engineering Survey | D17: 0.012 | E17: 0.010728 | F17: 30956.00661 | I17: Shared Path Length | J17: =150+100+175+175+100+150 -> 850 | K17: Lm
B18: Geotechnical investigations Pavement Investigations and Design | D18: 0.012 | E18: 0.010728 | F18: 30956.00661
B19: Environmental Investigations | E19: 0 | F19: 0
B20: Landscape Design | E20: 0 | F20: 0
B21: Preliminary and Final Design | D21: 0.0425 | E21: 0.037995 | F21: 109635.8567
B22: Construction Management | D22: 0.025 | E22: 0.02235 | F22: 64491.68043
I23: 2.5% of construction cost | J23: =0.025*G24 -> 72138.345
A24: C | B24: Construction | F24: =SUM(F25:F80) -> 2885533.8 | G24: =SUM(G25:G79) -> 2885533.8
A25: 1 | B25: PRELIMINARIES | G25: =SUM(F25:F28) -> 100000
A26: 1.1 | B26: Site establishment | C26: 1 | D26: Item | E26: 10000 | F26: =E26*C26 -> 10000
A27: 1.2 | B27: Site management & supervision including QA | C27: 20 | D27: wks | E27: 2500 | F27: =SUM(E27*C27) -> 50000
A28: 1.3 | B28: Provision for traffic | C28: 1 | D28: Item | E28: 40000 | F28: =SUM(E28*C28) -> 40000
A29: 2 | B29: DEMOLITION | G29: =SUM(F29:F32) -> 46000
A30: 2.1 | B30: Trees | C30: 17 | D30: No | E30: 500 | F30: =SUM(E30*C30) -> 8500
A31: 2.2 | B31: Demolition of existing Road | C31: 1 | D31: item | E31: 37500 | F31: =SUM(E31*C31) -> 37500
A32: 3 | B32: EARTHWORKS | G32: =SUM(F32:F38) -> 528152.55
A33: 3.1 | B33: Stripping topsoil (150mm) | C33: =0.54*J10 -> 5157 | D33: m² | E33: 6 | F33: =SUM(E33*C33) -> 30942
A34: 3.2 | B34: Excavation and removal | C34: =C40*1.11 -> 7740.585 | D34: m³ | E34: 30 | F34: =SUM(E34*C34) -> 232217.55
B35: fill | E35: 15
A36: 3.3 | B36: Soft spot rectification (reclaimed FCR) | C36: =C40*20% -> 1394.7 | D36: m³ | E36: 15 | F36: =SUM(E36*C36) -> 20920.5
A37: 3.4 | B37: Rock excavation & sub-surface remediation 450mm | C37: =C40*50% -> 3486.75 | D37: m² | E37: =55+15 -> 70 | F37: =SUM(E37*C37) -> 244072.5
A38: 4 | B38: PAVEMENT | G38: =SUM(F38:F41) -> 1030092.5
A39: 4.1 | B39: Deep lift asphalt 195 mm | C39: =J10-J13-J11 -> 5405 | D39: m² | E39: =IF(C39<15000,105,85) -> 105 | F39: =SUM(E39*C39) -> 567525
A40: 4.2 | B40: Subbase course - 250 mm 3% CTCR | C40: =C39+(J12*1)+C41*0.3 -> 6973.5 | D40: m² | E40: =IF(C40<15000,55,45) -> 55 | F40: =SUM(E40*C40) -> 383542.5
A41: 4.3 | B41: Shoulder - full depth pavement | C41: =J13 -> 545 | D41: m² | E41: 145 | F41: =SUM(E41*C41) -> 79025
A42: 5 | B42: DRAINAGE | G42: =SUM(F42:F46) -> 259500
A43: 5.1 | B43: Subsoil drains 100mm dia - screenings | C43: =J12+J13 -> 1950 | D43: Lm | E43: 30 | F43: =SUM(E43*C43) -> 58500
A44: 5.2 | B44: Subsoil drains 100mm dia - no fines conc | C44: 0 | D44: Lm | E44: 45 | F44: =SUM(E44*C44) -> 0
A45: 5.3 | B45: 375 RCP (class 2) | C45: =J15 -> 800 | D45: Lm | E45: 170 | F45: =SUM(E45*C45) -> 136000
A46: 5.4 | B46: Side entry pits | C46: 26 | D46: No | E46: 2500 | F46: =SUM(E46*C46) -> 65000
A47: 6 | B47: CONCRETE WORKS | G47: =SUM(F47:F52) -> 238325
A48: 6.1 | B48: Kerb &channel | C48: =J12 -> 1405 | D48: Lm | E48: 50 | F48: =SUM(E48*C48) -> 70250
A49: 6.2 | B49: Shared Paths (3.0m wide,125 mm, residential, as per MPA) | C49: =J17 -> 850 | D49: Lm | E49: 130 | F49: =SUM(E49*C49) -> 110500
A50: 6.3 | B50: Footpaths (1.5m wide,125 mm, residential, as per MPA) | C50: =J14 -> 300 | D50: No | E50: 65 | F50: =SUM(E50*C50) -> 19500
A51: 6.4 | B51: Laybacks and tactile pavers | C51: 8 | D51: m² | E51: 1200 | F51: =SUM(E51*C51) -> 9600
A52: 6.5 | B52: 10m concrete maintenance area end of all islands | C52: =J16 -> 335 | D52: m² | E52: 85 | F52: =SUM(E52*C52) -> 28475
A53: 7 | B53: TRAFFIC SIGNAL WORKS | G53: =SUM(F53:F61) -> 302000
A54: 7.1 | B54: General items | C54: 1 | D54: Item | E54: 27500 | F54: =SUM(E54*C54) -> 27500
A55: 7.2 | B55: Conduits | C55: 1 | D55: Item | E55: 28000 | F55: 28000
A56: 7.3 | B56: Pedestals | C56: 1 | D56: Item | E56: 65000 | F56: 65000
A57: 7.4 | B57: Lanterns | C57: 1 | D57: Item | E57: 25000 | F57: 25000
A58: 7.5 | B58: Controller | C58: 1 | D58: Item | E58: 82500 | F58: 82500
A59: 7.6 | B59: Detectors | C59: 1 | D59: Item | E59: 15000 | F59: 15000
A60: 7.7 | B60: Cabling & connections | C60: 1 | D60: Item | E60: 48000 | F60: 48000
A61: 7.8 | B61: Clean-up | C61: 1 | D61: Item | E61: 11000 | F61: 11000
A62: 8 | B62: SIGNAL MAINTENANCE (10 YEARS) by Road Authority | C62: 1 | D62: item | E62: 100000 | F62: 100000 | G62: =F62 -> 100000
A63: 9 | B63: POWER & LIGHTING | G63: =SUM(F64:F69) -> 221000
A64: 9.1 | B64: Light pole (1-way) and luminous lights | C64: 12 | D64: No | E64: 8000 | F64: 96000
A65: 9.2 | B65: Light pole (2-way) and luminous lights | C65: 6 | D65: No | E65: 9000 | F65: 54000
A66: 9.3 | B66: JUP lighting single | C66: 4 | D66: No | E66: 4000 | F66: 16000
A67: 9.4 | B67: JUP lighting dual | C67: 2 | D67: No | E67: 5000 | F67: 10000
A68: 9.5 | B68: Cabling, conduits and pits | C68: 1 | D68: Item | E68: 30000 | F68: 30000
A69: 9.6 | B69: Electrical connection | C69: 1 | D69: Item | E69: 15000 | F69: 15000
A70: 10 | B70: LANDSCAPING WORKS | G70: =SUM(F70:F72) -> 20463.75
A71: 10.1 | B71: Topsoiling seeding | C71: =J12*1.5+J14*1 -> 2407.5 | D71: m² | E71: 8.5 | F71: =C71*E71 -> 20463.75
A72: 10.2 | B72: Landcape planting | C72: 0 | D72: NA
A73: 11 | B73: SIGNING | C73: 1 | D73: item | E73: 10000 | F73: =SUM(E73*C73) -> 10000 | G73: =F73 -> 10000
A74: 12 | B74: LINEMARKING (Thermoplastic) | C74: 1 | D74: item | E74: 30000 | F74: 30000 | G74: =F74 -> 30000
A75: 13 | B75: SERVICE RELOCATION | G75: =SUM(F75:F77) -> 0
A76: 13.1 | B76: (Water, gas, Telstra) No allowance | C76: 0 | D76: Item | E76: 0 | F76: =SUM(E76*C76) -> 0
A77: 13.2 | B77: (Overhead electrical) No allowance | C77: 0 | D77: Item | E77: 0 | F77: =SUM(E77*C77) -> 0
A78: 14 | B78: MISCELLANEOUS | G78: =SUM(F78:F78) -> 0
A79: 15 | B79: PROVISIONAL SUM - DAYWORK | D79: item | F79: =SUM(E79*C79) -> 0 | G79: =F79 -> 0
B81: TOTAL A - C | F81: =SUM(F25:F80,F7:F23) -> 3272483.883 | G81: =SUM(G24+G15+G7) -> 3272483.883
A83: D | B83: Contingency
B84: =Summary!B17 -> Contingency (15% of C) | F84: 0.15 | G84: =F84*G24 -> 432830.07
A86: E | B86: PROJECT BUDGET
B87: Total Estimate | G87: =G84+G81 -> 3705313.953
A90: Notes:
A91: - | B91: Earthworks based on a concept vertical grade alignment
A93: Services
A94: 1 | B94: Service relocation / alterations have not been allowed for in the estimate
A95: 2 | B95: No allowance for water, gas, telstra, sewer
A96: Substations
A97: 3 | B97: No allowance for substations
A98: Preliminaries
A99: 4 | B99: Based on nominal rates
A100: Subsoil Drain
A101: 5 | B101: Assume same as kerb and channel
A102: Side Entry Pits
A103: 6 | B103: Based on 50 m intervals
A104: Tactile Pavers
A105: 7 | B105: Assume hazard TGSI's (no directional)
A106: Signing
A107: 8 | B107: Nominal rate
A108: Pavement
A109: 9 | B109: Assume deep lift asphalt pavement
A110: Tree Removal
A111: 10 | B111: Based on preliminary information
A112: Roads
A113: 11 | B113: Where applicable, existing road conditions based on limited crushed rock roads assumed to be of no consequence to works
A114: 12 | B114: Where applicable, existing asphalt roads to be demolished as part of intersection works
A115: Dry Stone Wall
A116: 13 | B116: Dry stone wall works allowance has assumed the wall is not heritage listed and does not need to be reconstructed
A118: AUTHOR: | B118: Jack Hume
A119: Date: | B119: 2014-10-21
A121: REVIEWER: | B121: Rob Henry
A122: Date: | B122: 2014-10-21

Sheet IN-7
A1: PRELIMINARY ESTIMATE OF DEVELOPMENT COSTS | G1: =Summary!A5 -> 2015-05-14
A2: =Summary!A3 -> CG140690 | G2: =Summary!A6 -> Version 11
A3: =Summary!A4 -> Wollert PSP - Intersection Cost Estimate | C3: PM %: | D3: 0.0884 | I3: Click here for Nearmap Screenshots taken July 2014
A4: Intersection Ref: | B4: =J7 -> IN-7 | E4: DRAFT | I4: Do not Delete the below info
A5: Sheet Ref: | B5: =Summary!H9 -> (26-VR)
A6: ITEM | B6: DESCRIPTION | C6: QUANTITY | D6: UNIT | E6: RATE | F6: AMOUNT | G6: SUBTOTAL | I6: Sheet Specific Information | J6: Input | K6: Cell Reference
A7: A | B7: =Summary!B10 -> Project and Program Management (%) | G7: =SUM(F7:F14) -> 139651.4028 | I7: Intersection Name | J7: IN-7 | K7: A4
B8: Project Management | D8: 0.03 | E8: =($D$3/0.1)*D8 -> 0.02652 | F8: =E8*$G$24 -> 83790.84168 | I8: Existing road directions | J8: N-S and E-W | K8: B87
B9: Project scoping, planning, scheduling, monitoring, reporting and commissioning | I9: Previous Road area | J9: 2800 | K9: m2
B10: Management of preconstruction activities, development of tender documents and management of contracts | I10: Total Roadway Area | J10: 9550 | K10: m2
B11: Managing external interfaces, including community liaison, environmental issues, traffic issues etc. | I11: Island Area | J11: 3600 | K11: m2
B12: Records management | I12: Kerb and Channel | J12: =1000+275+325+175+175-545 -> 1405 | K12: Lm
B13: Program Administration | D13: 0.02 | E13: =($D$3/0.1)*D13 -> 0.01768 | F13: =E13*$G$24 -> 55860.56112 | I13: Shoulder | J13: =85+40+100+120+115+85 -> 545 | K13: Lm
I14: Footpath Length | J14: =100+100+100 -> 300 | K14: Lm
A15: B | B15: =Summary!B11 -> Design and Investigation (%) | G15: =SUM(F15:F23) -> 279302.8056 | I15: Pipe Length | J15: 800 | K15: Lm
B16: Traffic Investigations | D16: 0.0085 | E16: =($D$3/0.1)*D16 -> 0.007514 | F16: =E16*$G$24 -> 23740.73848 | I16: Island Concrete infill | J16: =25+25+100+125+30+30 -> 335 | K16: m2
B17: Cadastral and Engineering Survey | D17: 0.012 | E17: 0.010608 | F17: 33516.33667 | I17: Shared Path Length | J17: =150+100+175+175+100+150 -> 850 | K17: Lm
B18: Geotechnical investigations Pavement Investigations and Design | D18: 0.012 | E18: 0.010608 | F18: 33516.33667
B19: Environmental Investigations | E19: 0 | F19: 0
B20: Landscape Design | E20: 0 | F20: 0
B21: Preliminary and Final Design | D21: 0.0425 | E21: 0.03757 | F21: 118703.6924
B22: Construction Management | D22: 0.025 | E22: 0.0221 | F22: 69825.7014
I23: 2.5% of construction cost | J23: =0.025*G24 -> 78988.35
A24: C | B24: Construction | F24: =SUM(F25:F80) -> 3159534 | G24: =SUM(G25:G79) -> 3159534
A25: 1 | B25: PRELIMINARIES | G25: =SUM(F25:F28) -> 100000
A26: 1.1 | B26: Site establishment | C26: 1 | D26: Item | E26: 10000 | F26: =E26*C26 -> 10000
A27: 1.2 | B27: Site management & supervision including QA | C27: 20 | D27: wks | E27: 2500 | F27: =SUM(E27*C27) -> 50000
A28: 1.3 | B28: Provision for traffic | C28: 1 | D28: Item | E28: 40000 | F28: =SUM(E28*C28) -> 40000
A29: 2 | B29: DEMOLITION | G29: =SUM(F29:F32) -> 46000
A30: 2.1 | B30: Trees | C30: 17 | D30: No | E30: 500 | F30: =SUM(E30*C30) -> 8500
A31: 2.2 | B31: Demolition of existing Road | C31: 1 | D31: item | E31: 37500 | F31: =SUM(E31*C31) -> 37500
A32: 3 | B32: EARTHWORKS | G32: =SUM(F32:F37) -> 453477.75
A33: 3.1 | B33: Stripping topsoil (150mm) | C33: =J10+J12*1+J13*1.3-J11-J9 -> 5263.5 | D33: m² | E33: 6 | F33: =SUM(E33*C33) -> 31581
A34: 3.2 | B34: Excavation and removal | C34: =C39*(0.45+0.3) -> 5230.125 | D34: m³ | E34: 30 | F34: =SUM(E34*C34) -> 156903.75
A35: 3.3 | B35: Soft spot rectification (reclaimed FCR) | C35: =C39*20% -> 1394.7 | D35: m³ | E35: 15 | F35: =SUM(E35*C35) -> 20920.5
A36: 3.4 | B36: Rock excavation & sub-surface remediation 450mm | C36: =C39*50% -> 3486.75 | D36: m² | E36: =55+15 -> 70 | F36: =SUM(E36*C36) -> 244072.5
A37: 4 | B37: PAVEMENT | G37: =SUM(F37:F41) -> 1378767.5
A38: 4.1 | B38: Deep lift asphalt 195 mm | C38: =J10-J13-J11 -> 5405 | D38: m² | E38: =IF(C38<15000,105,85) -> 105 | F38: =SUM(E38*C38) -> 567525
A39: 4.2 | B39: Subbase course - 250 mm 3% CTCR | C39: =C38+(J12*1)+C41*0.3 -> 6973.5 | D39: m² | E39: =IF(C39<15000,55,45) -> 55 | F39: =SUM(E39*C39) -> 383542.5
A40: 4.3 | B40: Base course - 300mm Class 3 | C40: =C39 -> 6973.5 | D40: m² | E40: 50 | F40: =SUM(E40*C40) -> 348675
A41: 4.4 | B41: Shoulder - full depth pavement | C41: =J13 -> 545 | D41: m² | E41: 145 | F41: =SUM(E41*C41) -> 79025
A42: 5 | B42: DRAINAGE | G42: =SUM(F42:F46) -> 259500
A43: 5.1 | B43: Subsoil drains 100mm dia - screenings | C43: =J12+J13 -> 1950 | D43: Lm | E43: 30 | F43: =SUM(E43*C43) -> 58500
A44: 5.2 | B44: Subsoil drains 100mm dia - no fines conc | C44: 0 | D44: Lm | E44: 45 | F44: =SUM(E44*C44) -> 0
A45: 5.3 | B45: 375 RCP (class 2) | C45: =J15 -> 800 | D45: Lm | E45: 170 | F45: =SUM(E45*C45) -> 136000
A46: 5.4 | B46: Side entry pits | C46: 26 | D46: No | E46: 2500 | F46: =SUM(E46*C46) -> 65000
A47: 6 | B47: CONCRETE WORKS | G47: =SUM(F47:F52) -> 238325
A48: 6.1 | B48: Kerb &channel | C48: =J12 -> 1405 | D48: Lm | E48: 50 | F48: =SUM(E48*C48) -> 70250
A49: 6.2 | B49: Shared Paths (3.0m wide,125 mm, residential, as per MPA) | C49: =J17 -> 850 | D49: Lm | E49: 130 | F49: =SUM(E49*C49) -> 110500
A50: 6.3 | B50: Footpaths (1.5m wide,125 mm, residential, as per MPA) | C50: =J14 -> 300 | D50: No | E50: 65 | F50: =SUM(E50*C50) -> 19500
A51: 6.4 | B51: Laybacks and tactile pavers | C51: 8 | D51: m² | E51: 1200 | F51: =SUM(E51*C51) -> 9600
A52: 6.5 | B52: 10m concrete maintenance area end of all islands | C52: =J16 -> 335 | D52: m² | E52: 85 | F52: =SUM(E52*C52) -> 28475
A53: 7 | B53: TRAFFIC SIGNAL WORKS | G53: =SUM(F53:F61) -> 302000
A54: 7.1 | B54: General items | C54: 1 | D54: Item | E54: 27500 | F54: =SUM(E54*C54) -> 27500
A55: 7.2 | B55: Conduits | C55: 1 | D55: Item | E55: 28000 | F55: 28000
A56: 7.3 | B56: Pedestals | C56: 1 | D56: Item | E56: 65000 | F56: 65000
A57: 7.4 | B57: Lanterns | C57: 1 | D57: Item | E57: 25000 | F57: 25000
A58: 7.5 | B58: Controller | C58: 1 | D58: Item | E58: 82500 | F58: 82500
A59: 7.6 | B59: Detectors | C59: 1 | D59: Item | E59: 15000 | F59: 15000
A60: 7.7 | B60: Cabling & connections | C60: 1 | D60: Item | E60: 48000 | F60: 48000
A61: 7.8 | B61: Clean-up | C61: 1 | D61: Item | E61: 11000 | F61: 11000
A62: 8 | B62: SIGNAL MAINTENANCE (10 YEARS) by Road Authority | C62: 1 | D62: item | E62: 100000 | F62: 100000 | G62: =F62 -> 100000
A63: 9 | B63: POWER & LIGHTING | G63: =SUM(F64:F69) -> 221000
A64: 9.1 | B64: Light pole (1-way) and luminous lights | C64: 12 | D64: No | E64: 8000 | F64: 96000
A65: 9.2 | B65: Light pole (2-way) and luminous lights | C65: 6 | D65: No | E65: 9000 | F65: 54000
A66: 9.3 | B66: JUP lighting single | C66: 4 | D66: No | E66: 4000 | F66: 16000
A67: 9.4 | B67: JUP lighting dual | C67: 2 | D67: No | E67: 5000 | F67: 10000
A68: 9.5 | B68: Cabling, conduits and pits | C68: 1 | D68: Item | E68: 30000 | F68: 30000
A69: 9.6 | B69: Electrical connection | C69: 1 | D69: Item | E69: 15000 | F69: 15000
A70: 10 | B70: LANDSCAPING WORKS | G70: =SUM(F70:F72) -> 20463.75
A71: 10.1 | B71: Topsoiling seeding | C71: =J12*1.5+J14*1 -> 2407.5 | D71: m² | E71: 8.5 | F71: =SUM(E71*C71) -> 20463.75
A72: 10.2 | B72: Landcape planting | C72: 0 | D72: NA
A73: 11 | B73: SIGNING | C73: 1 | D73: item | E73: 10000 | F73: 10000 | G73: =F73 -> 10000
A74: 12 | B74: LINEMARKING (Thermoplastic) | C74: 1 | D74: item | E74: 30000 | F74: 30000 | G74: =F74 -> 30000
A75: 13 | B75: SERVICE RELOCATION | G75: =SUM(F75:F77) -> 0
A76: 13.1 | B76: (Water, gas, Telstra) No allowance | C76: 0 | D76: Item | E76: 0 | F76: =SUM(E76*C76) -> 0
A77: 13.2 | B77: (Overhead electrical) No allowance | C77: 0 | D77: Item | E77: 0 | F77: =SUM(E77*C77) -> 0
A78: 14 | B78: MISCELLANEOUS | G78: =SUM(F78:F78) -> 0
A79: 15 | B79: PROVISIONAL SUM - DAYWORK | D79: item | F79: =SUM(E79*C79) -> 0 | G79: =F79 -> 0
B81: TOTAL A - C | F81: =SUM(F25:F80,F7:F23) -> 3578488.208 | G81: =SUM(G24+G15+G7) -> 3578488.208
A83: D | B83: Contingency
B84: =Summary!B17 -> Contingency (15% of C) | F84: 0.15 | G84: =F84*G24 -> 473930.1
A86: E | B86: PROJECT BUDGET
B87: Total Estimate | G87: =G84+G81 -> 4052418.308
A90: Notes:
A91: - | B91: Earthworks based on a concept vertical grade alignment
B92: Industrial standard - heavy duty pavement
A93: Services
A94: 1 | B94: Service relocation / alterations have not been allowed for in the estimate
A95: 2 | B95: No allowance for water, gas, telstra, sewer
A96: Substations
A97: 3 | B97: No allowance for substations
A98: Preliminaries
A99: 4 | B99: Based on nominal rates
A100: Subsoil Drain
A101: 5 | B101: Assume same as kerb and channel
A102: Side Entry Pits
A103: 6 | B103: Based on 50 m intervals
A104: Tactile Pavers
A105: 7 | B105: Assume hazard TGSI's (no directional)
A106: Signing
A107: 8 | B107: Nominal rate
A108: Pavement
A109: 9 | B109: Assume deep lift asphalt pavement
A110: Tree Removal
A111: 10 | B111: Based on preliminary information
A112: Roads
A113: 11 | B113: Where applicable, existing road conditions based on limited crushed rock roads assumed to be of no consequence to works
A114: 12 | B114: Where applicable, existing asphalt roads to be demolished as part of intersection works
A115: Dry Stone Wall
A116: 13 | B116: Dry stone wall works allowance has assumed the wall is not heritage listed and does not need to be reconstructed
A118: AUTHOR: | B118: Jack Hume
A119: Date: | B119: 2014-10-21
A121: REVIEWER: | B121: Rob Henry
A122: Date: | B122: 2014-10-21

Sheet IN-8
A1: PRELIMINARY ESTIMATE OF DEVELOPMENT COSTS | G1: =Summary!A5 -> 2015-05-14
A2: =Summary!A3 -> CG140690 | G2: =Summary!A6 -> Version 11
A3: =Summary!A4 -> Wollert PSP - Intersection Cost Estimate | C3: PM %: | D3: 0.0884 | I3: Click here for Nearmap Screenshots taken July 2014
A4: Intersection Ref: | B4: =J7 -> IN-8 | E4: DRAFT | I4: Do not Delete the below info
A5: Sheet Ref: | B5: =Summary!I9 -> (26-VR)
A6: ITEM | B6: DESCRIPTION | C6: QUANTITY | D6: UNIT | E6: RATE | F6: AMOUNT | G6: SUBTOTAL | I6: Sheet Specific Information | J6: Input | K6: Cell Reference
A7: A | B7: =Summary!B10 -> Project and Program Management (%) | G7: =SUM(F7:F14) -> 139651.4028 | I7: Intersection Name | J7: IN-8 | K7: A4
B8: Project Management | D8: 0.03 | E8: =($D$3/0.1)*D8 -> 0.02652 | F8: =E8*$G$24 -> 83790.84168 | I8: Existing road directions | J8: N-S and E-W | K8: B87
B9: Project scoping, planning, scheduling, monitoring, reporting and commissioning | I9: Previous Road area | J9: 2800 | K9: m2
B10: Management of preconstruction activities, development of tender documents and management of contracts | I10: Total Roadway Area | J10: 9550 | K10: m2
B11: Managing external interfaces, including community liaison, environmental issues, traffic issues etc. | I11: Island Area | J11: 3600 | K11: m2
B12: Records management | I12: Kerb and Channel | J12: =1000+275+325+175+175-545 -> 1405 | K12: Lm
B13: Program Administration | D13: 0.02 | E13: =($D$3/0.1)*D13 -> 0.01768 | F13: =E13*$G$24 -> 55860.56112 | I13: Shoulder | J13: =85+40+100+120+115+85 -> 545 | K13: Lm
I14: Footpath Length | J14: =100+100+100 -> 300 | K14: Lm
A15: B | B15: =Summary!B11 -> Design and Investigation (%) | G15: =SUM(F15:F23) -> 279302.8056 | I15: Pipe Length | J15: 800 | K15: Lm
B16: Traffic Investigations | D16: 0.0085 | E16: =($D$3/0.1)*D16 -> 0.007514 | F16: =E16*$G$24 -> 23740.73848 | I16: Island Concrete infill | J16: =25+25+100+125+30+30 -> 335 | K16: m2
B17: Cadastral and Engineering Survey | D17: 0.012 | E17: 0.010608 | F17: 33516.33667 | I17: Shared Path Length | J17: =150+100+175+175+100+150 -> 850 | K17: Lm
B18: Geotechnical investigations Pavement Investigations and Design | D18: 0.012 | E18: 0.010608 | F18: 33516.33667
B19: Environmental Investigations | E19: 0 | F19: 0
B20: Landscape Design | E20: 0 | F20: 0
B21: Preliminary and Final Design | D21: 0.0425 | E21: 0.03757 | F21: 118703.6924
B22: Construction Management | D22: 0.025 | E22: 0.0221 | F22: 69825.7014
I23: 2.5% of construction cost | J23: =0.025*G24 -> 78988.35
A24: C | B24: Construction | F24: =SUM(F25:F80) -> 3159534 | G24: =SUM(G25:G79) -> 3159534
A25: 1 | B25: PRELIMINARIES | G25: =SUM(F25:F28) -> 100000
A26: 1.1 | B26: Site establishment | C26: 1 | D26: Item | E26: 10000 | F26: =E26*C26 -> 10000
A27: 1.2 | B27: Site management & supervision including QA | C27: 20 | D27: wks | E27: 2500 | F27: =SUM(E27*C27) -> 50000
A28: 1.3 | B28: Provision for traffic | C28: 1 | D28: Item | E28: 40000 | F28: =SUM(E28*C28) -> 40000
A29: 2 | B29: DEMOLITION | G29: =SUM(F29:F32) -> 46000
A30: 2.1 | B30: Trees | C30: 17 | D30: No | E30: 500 | F30: =SUM(E30*C30) -> 8500
A31: 2.2 | B31: Demolition of existing Road | C31: 1 | D31: item | E31: 37500 | F31: =SUM(E31*C31) -> 37500
A32: 3 | B32: EARTHWORKS | G32: =SUM(F32:F37) -> 453477.75
A33: 3.1 | B33: Stripping topsoil (150mm) | C33: =J10+J12*1+J13*1.3-J11-J9 -> 5263.5 | D33: m² | E33: 6 | F33: =SUM(E33*C33) -> 31581
A34: 3.2 | B34: Excavation and removal | C34: =C39*(0.45+0.3) -> 5230.125 | D34: m³ | E34: 30 | F34: =SUM(E34*C34) -> 156903.75
A35: 3.3 | B35: Soft spot rectification (reclaimed FCR) | C35: =C39*20% -> 1394.7 | D35: m³ | E35: 15 | F35: =SUM(E35*C35) -> 20920.5
A36: 3.4 | B36: Rock excavation & sub-surface remediation 450mm | C36: =C39*50% -> 3486.75 | D36: m² | E36: =55+15 -> 70 | F36: =SUM(E36*C36) -> 244072.5
A37: 4 | B37: PAVEMENT | G37: =SUM(F37:F41) -> 1378767.5
A38: 4.1 | B38: Deep lift asphalt 195 mm | C38: =J10-J13-J11 -> 5405 | D38: m² | E38: =IF(C38<15000,105,85) -> 105 | F38: =SUM(E38*C38) -> 567525
A39: 4.2 | B39: Subbase course - 250 mm 3% CTCR | C39: =C38+(J12*1)+C41*0.3 -> 6973.5 | D39: m² | E39: =IF(C39<15000,55,45) -> 55 | F39: =SUM(E39*C39) -> 383542.5
A40: 4.3 | B40: Base course - 300mm Class 3 | C40: =C39 -> 6973.5 | D40: m² | E40: 50 | F40: 348675
A41: 4.4 | B41: Shoulder - full depth pavement | C41: =J13 -> 545 | D41: m² | E41: 145 | F41: =SUM(E41*C41) -> 79025
A42: 5 | B42: DRAINAGE | G42: =SUM(F42:F46) -> 259500
A43: 5.1 | B43: Subsoil drains 100mm dia - screenings | C43: =J12+J13 -> 1950 | D43: Lm | E43: 30 | F43: =SUM(E43*C43) -> 58500
A44: 5.2 | B44: Subsoil drains 100mm dia - no fines conc | C44: 0 | D44: Lm | E44: 45 | F44: =SUM(E44*C44) -> 0
A45: 5.3 | B45: 375 RCP (class 2) | C45: =J15 -> 800 | D45: Lm | E45: 170 | F45: =SUM(E45*C45) -> 136000
A46: 5.4 | B46: Side entry pits | C46: 26 | D46: No | E46: 2500 | F46: =SUM(E46*C46) -> 65000
A47: 6 | B47: CONCRETE WORKS | G47: =SUM(F47:F52) -> 238325
A48: 6.1 | B48: Kerb &channel | C48: =J12 -> 1405 | D48: Lm | E48: 50 | F48: =SUM(E48*C48) -> 70250
A49: 6.2 | B49: Shared Paths (3.0m wide,125 mm, residential, as per MPA) | C49: =J17 -> 850 | D49: Lm | E49: 130 | F49: =SUM(E49*C49) -> 110500
A50: 6.3 | B50: Footpaths (1.5m wide,125 mm, residential, as per MPA) | C50: =J14 -> 300 | D50: No | E50: 65 | F50: =SUM(E50*C50) -> 19500
A51: 6.4 | B51: Laybacks and tactile pavers | C51: 8 | D51: m² | E51: 1200 | F51: =SUM(E51*C51) -> 9600
A52: 6.5 | B52: 10m concrete maintenance area end of all islands | C52: =J16 -> 335 | D52: m² | E52: 85 | F52: =SUM(E52*C52) -> 28475
A53: 7 | B53: TRAFFIC SIGNAL WORKS | G53: =SUM(F53:F61) -> 302000
A54: 7.1 | B54: General items | C54: 1 | D54: Item | E54: 27500 | F54: =SUM(E54*C54) -> 27500
A55: 7.2 | B55: Conduits | C55: 1 | D55: Item | E55: 28000 | F55: 28000
A56: 7.3 | B56: Pedestals | C56: 1 | D56: Item | E56: 65000 | F56: 65000
A57: 7.4 | B57: Lanterns | C57: 1 | D57: Item | E57: 25000 | F57: 25000
A58: 7.5 | B58: Controller | C58: 1 | D58: Item | E58: 82500 | F58: 82500
A59: 7.6 | B59: Detectors | C59: 1 | D59: Item | E59: 15000 | F59: 15000
A60: 7.7 | B60: Cabling & connections | C60: 1 | D60: Item | E60: 48000 | F60: 48000
A61: 7.8 | B61: Clean-up | C61: 1 | D61: Item | E61: 11000 | F61: 11000
A62: 8 | B62: SIGNAL MAINTENANCE (10 YEARS) by Road Authority | C62: 1 | D62: item | E62: 100000 | F62: 100000 | G62: =F62 -> 100000
A63: 9 | B63: POWER & LIGHTING | G63: =SUM(F64:F69) -> 221000
A64: 9.1 | B64: Light pole (1-way) and luminous lights | C64: 12 | D64: No | E64: 8000 | F64: 96000
A65: 9.2 | B65: Light pole (2-way) and luminous lights | C65: 6 | D65: No | E65: 9000 | F65: 54000
A66: 9.3 | B66: JUP lighting single | C66: 4 | D66: No | E66: 4000 | F66: 16000
A67: 9.4 | B67: JUP lighting dual | C67: 2 | D67: No | E67: 5000 | F67: 10000
A68: 9.5 | B68: Cabling, conduits and pits | C68: 1 | D68: Item | E68: 30000 | F68: 30000
A69: 9.6 | B69: Electrical connection | C69: 1 | D69: Item | E69: 15000 | F69: 15000
A70: 10 | B70: LANDSCAPING WORKS | G70: =SUM(F70:F72) -> 20463.75
A71: 10.1 | B71: Topsoiling seeding | C71: =J12*1.5+J14*1 -> 2407.5 | D71: m² | E71: 8.5 | F71: =SUM(E71*C71) -> 20463.75
A72: 10.2 | B72: Landcape planting | C72: 0 | D72: NA
A73: 11 | B73: SIGNING | C73: 1 | D73: item | E73: 10000 | F73: 10000 | G73: =F73 -> 10000
A74: 12 | B74: LINEMARKING (Thermoplastic) | C74: 1 | D74: item | E74: 30000 | F74: 30000 | G74: =F74 -> 30000
A75: 13 | B75: SERVICE RELOCATION | G75: =SUM(F75:F77) -> 0
A76: 13.1 | B76: (Water, gas, Telstra) No allowance | C76: 0 | D76: Item | E76: 0 | F76: =SUM(E76*C76) -> 0
A77: 13.2 | B77: (Overhead electrical) No allowance | C77: 0 | D77: Item | E77: 0 | F77: =SUM(E77*C77) -> 0
A78: 14 | B78: MISCELLANEOUS | G78: =SUM(F78:F78) -> 0
A79: 15 | B79: PROVISIONAL SUM - DAYWORK | D79: item | F79: =SUM(E79*C79) -> 0 | G79: =F79 -> 0
B81: TOTAL A - C | F81: =SUM(F25:F80,F7:F23) -> 3578488.208 | G81: =SUM(G24+G15+G7) -> 3578488.208
A83: D | B83: Contingency
B84: =Summary!B17 -> Contingency (15% of C) | F84: 0.15 | G84: =F84*G24 -> 473930.1
A86: E | B86: PROJECT BUDGET
B87: Total Estimate | G87: =G84+G81 -> 4052418.308
A90: Notes:
A91: - | B91: Earthworks based on a concept vertical grade alignment
B92: Industrial standard - heavy duty pavement
A93: Services
A94: 1 | B94: Service relocation / alterations have not been allowed for in the estimate
A95: 2 | B95: No allowance for water, gas, telstra, sewer
A96: Substations
A97: 3 | B97: No allowance for substations
A98: Preliminaries
A99: 4 | B99: Based on nominal rates
A100: Subsoil Drain
A101: 5 | B101: Assume same as kerb and channel
A102: Side Entry Pits
A103: 6 | B103: Based on 50 m intervals
A104: Tactile Pavers
A105: 7 | B105: Assume hazard TGSI's (no directional)
A106: Signing
A107: 8 | B107: Nominal rate
A108: Pavement
A109: 9 | B109: Assume deep lift asphalt pavement
A110: Tree Removal
A111: 10 | B111: Based on preliminary information
A112: Roads
A113: 11 | B113: Where applicable, existing road conditions based on limited crushed rock roads assumed to be of no consequence to works
A114: 12 | B114: Where applicable, existing asphalt roads to be demolished as part of intersection works
A115: Dry Stone Wall
A116: 13 | B116: Dry stone wall works allowance has assumed the wall is not heritage listed and does not need to be reconstructed
A118: AUTHOR: | B118: Jack Hume
A119: Date: | B119: 2014-10-21
A121: REVIEWER: | B121: Rob Henry
A122: Date: | B122: 2014-10-21

Sheet IN-9-T04
A1: PRELIMINARY ESTIMATE OF DEVELOPMENT COSTS | G1: =Summary!A5 -> 2015-05-14
A2: =Summary!A3 -> CG140690 | G2: =Summary!A6 -> Version 11
A3: =Summary!A4 -> Wollert PSP - Intersection Cost Estimate | C3: PM %: | D3: 0.082 | I3: Click here for Nearmap Screenshots taken July 2014
A4: Intersection Ref: | B4: =J7 -> IN-9-D | E4: DRAFT | I4: Do not Delete the below info
A5: Sheet Ref: | B5: =Summary!J9 -> T04-09P3
A6: ITEM | B6: DESCRIPTION | C6: QUANTITY | D6: UNIT | E6: RATE | F6: AMOUNT | G6: SUBTOTAL | I6: Sheet Specific Information | J6: Input | K6: Cell Reference
A7: A | B7: =Summary!B10 -> Project and Program Management (%) | G7: =SUM(F7:F14) -> 235727.86 | I7: Intersection Name | J7: IN-9-D | K7: A4
B8: Project Management | D8: 0.03 | E8: =($D$3/0.1)*D8 -> 0.0246 | F8: =E8*$G$24 -> 141436.716 | I8: Existing road directions | J8: N-S and E-W | K8: B87
B9: Project scoping, planning, scheduling, monitoring, reporting and commissioning | I9: Previous Road area | J9: 5500 | K9: m2
B10: Management of preconstruction activities, development of tender documents and management of contracts | I10: Total Roadway Area | J10: 15800 | K10: m2
B11: Managing external interfaces, including community liaison, environmental issues, traffic issues etc | I11: Island Area | J11: 2100 | K11: m2
B12: Records management | I12: Kerb and Channel | J12: =1700+250+250+350+400-J13 -> 2400 | K12: Lm
B13: Program Administration | D13: 0.02 | E13: =($D$3/0.1)*D13 -> 0.0164 | F13: =E13*$G$24 -> 94291.144 | I13: Shoulder | J13: =100+100+100+100+150 -> 550 | K13: Lm
I14: Footpath Length | J14: 0 | K14: Lm
A15: B | B15: =Summary!B11 -> Design and Investigation (%) | G15: =SUM(F15:F23) -> 471455.72 | I15: Pipe Length | J15: 1200 | K15: Lm
B16: Traffic Investigations | D16: 0.0085 | E16: =($D$3/0.1)*D16 -> 0.00697 | F16: =E16*$G$24 -> 40073.7362 | I16: Island Concrete infill | J16: 250 | K16: m2
B17: Cadastral and Engineering Survey | D17: 0.012 | E17: 0.00984 | F17: 56574.6864 | I17: Shared Path Length | J17: =450+50+475+250+150+150+300 -> 1825 | K17: Lm
B18: Geotechnical investigations Pavement Investigations and Design | D18: 0.012 | E18: 0.00984 | F18: 56574.6864
B19: Environmental Investigations | E19: 0 | F19: 0
B20: Landscape Design | E20: 0 | F20: 0
B21: Preliminary and Final Design | D21: 0.0425 | E21: 0.03485 | F21: 200368.681
B22: Construction Management | D22: 0.025 | E22: 0.0205 | F22: 117863.93
I23: 2.5% of construction cost | J23: =0.025*G24 -> 143736.5
A24: C | B24: Construction | F24: =SUM(F25:F88) -> 5749460 | G24: =SUM(G25:G87) -> 5749460
A25: 1 | B25: PRELIMINARIES | G25: =SUM(F25:F28) -> 156000
A26: 1.1 | B26: Site establishment | C26: 1 | D26: Item | E26: 10000 | F26: =E26*C26 -> 10000
A27: 1.2 | B27: Site management & supervision including QA | C27: 20 | D27: wks | E27: 2500 | F27: =SUM(E27*C27) -> 50000
A28: 1.3 | B28: Provision for traffic | C28: 1 | D28: Item | E28: =C27*6*800 -> 96000 | F28: =SUM(E28*C28) -> 96000
A29: 2 | B29: DEMOLITION | G29: =SUM(F29:F32) -> 33000
A30: 2.1 | B30: Trees | C30: 11 | D30: No | E30: 500 | F30: =SUM(E30*C30) -> 5500
A31: 2.2 | B31: Strip asphalt from existing pavement | C31: =J9 -> 5500 | D31: m² | E31: 5 | F31: =SUM(E31*C31) -> 27500
A32: 3 | B32: EARTHWORKS | G32: =SUM(F32:F37) -> 900785
A33: 3.1 | B33: Stripping topsoil (150mm) | C33: =J10+J12*1+J13*1.3-J11-J9 -> 11315 | D33: m² | E33: 6 | F33: =SUM(E33*C33) -> 67890
A34: 3.2 | B34: Excavation and removal (inc. reclamation of FCR) | C34: =C39*0.5 -> 7857.5 | D34: m³ | E34: 30 | F34: =SUM(E34*C34) -> 235725
A35: 3.3 | B35: Soft spot rectification (reclaimed FCR) | C35: =C39*20% -> 3143 | D35: m³ | E35: 15 | F35: =SUM(E35*C35) -> 47145
A36: 3.4 | B36: Rock excavation & sub-surface remediation 450mm | C36: =C39*50% -> 7857.5 | D36: m² | E36: =55+15 -> 70 | F36: =SUM(E36*C36) -> 550025
A37: 4 | B37: PAVEMENT | G37: =SUM(F37:F40) -> 2167675
A38: 4.1 | B38: Deep lift asphalt 195 mm | C38: =J10-J13-J11 -> 13150 | D38: m² | E38: =IF(C38<15000,105,85) -> 105 | F38: =SUM(E38*C38) -> 1380750
A39: 4.2 | B39: Subbase course - 250 mm 3% CTCR | C39: =C38+(J12*1)+C40*0.3 -> 15715 | D39: m² | E39: =IF(C39<15000,55,45) -> 45 | F39: =SUM(E39*C39) -> 707175
A40: 4.3 | B40: Shoulder - full depth pavement | C40: =J13 -> 550 | D40: m² | E40: 145 | F40: =SUM(E40*C40) -> 79750
A41: 5 | B41: DRAINAGE | G41: =SUM(F41:F46) -> 439300
A42: 5.1 | B42: Subsoil drains 100mm dia - screenings | C42: =J12+J13 -> 2950 | D42: Lm | E42: 30 | F42: =SUM(E42*C42) -> 88500
A43: 5.2 | B43: Subsoil drains 100mm dia - no fines conc | C43: 0 | D43: Lm | E43: 45 | F43: =SUM(E43*C43) -> 0
A44: 5.3 | B44: 375 RCP (class 2) | C44: =J15 -> 1200 | D44: Lm | E44: 170 | F44: =SUM(E44*C44) -> 204000
A45: 5.4 | B45: Side entry pits | C45: 24 | D45: No | E45: 2500 | F45: =SUM(E45*C45) -> 60000
A46: 5.5 | B46: Allowance to modify draiange to ultimate location | C46: 1 | D46: item | E46: =14*(2500+2000+10*E44) -> 86800 | F46: =SUM(E46*C46) -> 86800
A47: 6 | B47: CONCRETE WORKS | G47: =SUM(F47:F52) -> 388100
A48: 6.1 | B48: Kerb &channel | C48: =J12 -> 2400 | D48: Lm | E48: 50 | F48: =SUM(E48*C48) -> 120000
A49: 6.2 | B49: Shared Paths (3.0m wide,125 mm, residential, as per MPA) | C49: =J17 -> 1825 | D49: Lm | E49: 130 | F49: =SUM(E49*C49) -> 237250
A50: 6.3 | B50: Footpaths (1.5m wide,125 mm, residential, as per MPA) | C50: =J14 -> 0 | D50: No | E50: 65 | F50: =SUM(E50*C50) -> 0
A51: 6.4 | B51: Laybacks and tactile pavers | C51: 8 | D51: m² | E51: 1200 | F51: =SUM(E51*C51) -> 9600
A52: 6.5 | B52: 10m concrete maintenance area end of all islands | C52: =J16 -> 250 | D52: m² | E52: 85 | F52: =SUM(E52*C52) -> 21250
A53: 7 | B53: TRAFFIC SIGNAL WORKS | G53: =SUM(F53:F61) -> 290000
A54: 7.1 | B54: General items | C54: 1 | D54: Item | E54: 27500 | F54: =SUM(E54*C54) -> 27500
A55: 7.2 | B55: Conduits | C55: 1 | D55: Item | E55: 25000 | F55: 25000
A56: 7.3 | B56: Pedestals | C56: 1 | D56: Item | E56: 60000 | F56: 60000
A57: 7.4 | B57: Lanterns | C57: 1 | D57: Item | E57: 24000 | F57: 24000
A58: 7.5 | B58: Controller | C58: 1 | D58: Item | E58: 82500 | F58: 82500
A59: 7.6 | B59: Detectors | C59: 1 | D59: Item | E59: 15000 | F59: 15000
A60: 7.7 | B60: Cabling & connections | C60: 1 | D60: Item | E60: 45000 | F60: 45000
A61: 7.8 | B61: Clean-up | C61: 1 | D61: Item | E61: 11000 | F61: 11000
A62: 8 | B62: SIGNAL MAINTENANCE (10 YEARS) by Road Authority | C62: 1 | D62: item | E62: 100000 | F62: 100000 | G62: =F62 -> 100000
A63: 9 | B63: POWER & LIGHTING | G63: =SUM(F64:F69) -> 152000
A64: 9.1 | B64: Light pole (1-way) and luminous lights | C64: 0 | D64: No | E64: 8000 | F64: 0
A65: 9.2 | B65: Light pole (2-way) and luminous lights | C65: 9 | D65: No | E65: 9000 | F65: 81000
A66: 9.3 | B66: JUP lighting single | C66: 4 | D66: No | E66: 4000 | F66: 16000
A67: 9.4 | B67: JUP lighting dual | C67: 2 | D67: No | E67: 5000 | F67: 10000
A68: 9.5 | B68: Cabling, conduits and pits | C68: 1 | D68: Item | E68: 30000 | F68: 30000
A69: 9.6 | B69: Electrical connection | C69: 1 | D69: Item | E69: 15000 | F69: 15000
A70: 10 | B70: LANDSCAPING WORKS | G70: =SUM(F70:F72) -> 30600
A71: 10.1 | B71: Topsoiling seeding | C71: =J12*1.5+J14*1 -> 3600 | D71: m² | E71: 8.5 | F71: =SUM(E71*C71) -> 30600
A72: 10.2 | B72: Landcape planting | C72: 0 | D72: NA
A73: 11 | B73: SIGNING | C73: 1 | D73: item | E73: 10000 | F73: 10000 | G73: =F73 -> 10000
A74: 12 | B74: LINEMARKING (Thermoplastic) | C74: 1 | D74: item | E74: 30000 | F74: 30000 | G74: =F74 -> 30000
A75: 13 | B75: SERVICE RELOCATION | G75: =SUM(F75:F80) -> 980000
A76: 13.1 | B76: Water | C76: 1 | D76: Item | E76: 150000 | F76: =SUM(E76*C76) -> 150000
A77: 13.2 | B77: Gas | C77: 1 | D77: Item | E77: 100000 | F77: =SUM(E77*C77) -> 100000
A78: 13.3 | B78: Telstra | C78: 1 | D78: Item | E78: 250000 | F78: =SUM(E78*C78) -> 250000
A79: 13.4 | B79: Overhead electrical | C79: 1 | D79: Item | E79: 480000 | F79: =SUM(E79*C79) -> 480000
A80: 13.5 | B80: Sewer (no allowance) | C80: 0 | D80: Item | E80: 0 | F80: =SUM(E80*C80) -> 0
A81: 14 | B81: MISCELLANEOUS | G81: =SUM(F81:F86) -> 72000
B82: Exisiting Road outside of new road pavements
A83: 14.1 | B83: Strip asphalt | C83: 3200 | D83: m² | E83: 5 | F83: =SUM(E83*C83) -> 16000
A84: 14.2 | B84: Recycle FCR to stockpile | C84: =C83*0.3 -> 960 | D84: m³ | E84: 10 | F84: =SUM(E84*C84) -> 9600
A85: 14.3 | B85: backfill with structural fill | C85: =C83*0.5 -> 1600 | D85: m³ | E85: 12 | F85: =SUM(E85*C85) -> 19200
A86: 14.4 | B86: Topsoiling | C86: =C83 -> 3200 | D86: m² | E86: 8.5 | F86: =SUM(E86*C86) -> 27200
A87: 15 | B87: PROVISIONAL SUM - DAYWORK | D87: item | F87: =SUM(E87*C87) -> 0 | G87: =F87 -> 0
B89: TOTAL A - C | F89: =SUM(F25:F88,F7:F23) -> 6456643.58 | G89: =SUM(G24+G15+G7) -> 6456643.58
A91: D | B91: Contingency
B92: =Summary!B17 -> Contingency (15% of C) | F92: 0.15 | G92: =F92*G24 -> 862419
A94: E | B94: PROJECT BUDGET
B95: Total Estimate | G95: =G92+G89 -> 7319062.58
A98: Notes:
A99: - | B99: Earthworks based on a concept vertical grade alignment
A101: Services
A102: 1 | B102: Water, gas, & telstra existing services information unavailable - assumed from site photography
A103: 2 | B103: No allowance for sewer
A104: 3 | B104: Electrical poles (66 HV, 22HV, LV & lighting)
A105: Substations
A106: 3 | B106: No allowance for substations
A107: Preliminaries
A108: 4 | B108: Based on nominal rates
A109: Subsoil Drain
A110: 5 | B110: Assume same as kerb and channel
A111: Side Entry Pits
A112: 6 | B112: Based on 50 m intervals
A113: Tactile Pavers
A114: 7 | B114: Assume hazard TGSI's (no directional)
A115: Signing
A116: 8 | B116: Nominal rate
A117: Pavement
A118: 9 | B118: Assume deep lift asphalt pavement
A119: Tree Removal
A120: 10 | B120: Based on preliminary information
A121: Roads
A122: 11 | B122: Where applicable, existing asphalt roads to be demolished as part of intersection works
A127: AUTHOR: | B127: Graham Stenton
A128: Date: | B128: 2014-12-15
A130: REVIEWER: | B130: Rob Henry
A131: Date: | B131: 2014-12-15

Sheet IN-9-T06
A1: PRELIMINARY ESTIMATE OF DEVELOPMENT COSTS | G1: =Summary!A5 -> 2015-05-14
A2: =Summary!A3 -> CG140690 | G2: =Summary!A6 -> Version 11
A3: =Summary!A4 -> Wollert PSP - Intersection Cost Estimate | C3: PM %: | D3: 0.0808 | I3: Click here for Nearmap Screenshots taken July 2014
A4: Intersection Ref: | B4: =J7 -> IN-9-VR | E4: DRAFT | I4: Do not Delete the below info
A5: Sheet Ref: | B5: =Summary!K9 -> T06-09P3
A6: ITEM | B6: DESCRIPTION | C6: QUANTITY | D6: UNIT | E6: RATE | F6: AMOUNT | G6: SUBTOTAL | I6: Sheet Specific Information | J6: Input | K6: Cell Reference
A7: A | B7: =Summary!B10 -> Project and Program Management (%) | G7: =SUM(F7:F14) -> 261094.393 | I7: Intersection Name | J7: IN-9-VR | K7: A4
B8: Project Management | D8: 0.03 | E8: =($D$3/0.1)*D8 -> 0.02424 | F8: =E8*$G$24 -> 156656.6358 | I8: Existing road directions | J8: N-S and E-W | K8: B87
B9: Project scoping, planning, scheduling, monitoring, reporting and commissioning | I9: Previous Road area | J9: 5750 | K9: m2
B10: Management of preconstruction activities, development of tender documents and management of contracts | I10: Total Roadway Area | J10: 25200 | K10: m2
B11: Managing external interfaces, including community liaison, environmental issues, traffic issues etc. | I11: Island Area | J11: 8800 | K11: m2
B12: Records management | I12: Kerb and Channel | J12: =1850+325+375+400+400 -> 3350 | K12: Lm
B13: Program Administration | D13: 0.02 | E13: =($D$3/0.1)*D13 -> 0.01616 | F13: =E13*$G$24 -> 104437.7572 | I13: Shoulder | J13: =210+190+120+130+200 -> 850 | K13: Lm
I14: Footpath Length | J14: 0 | K14: Lm
A15: B | B15: =Summary!B11 -> Design and Investigation (%) | G15: =SUM(F15:F23) -> 522188.786 | I15: Pipe Length | J15: 2400 | K15: Lm
B16: Traffic Investigations | D16: 0.0085 | E16: =($D$3/0.1)*D16 -> 0.006868 | F16: =E16*$G$24 -> 44386.04681 | I16: Island Concrete infill | J16: 350 | K16: m2
B17: Cadastral and Engineering Survey | D17: 0.012 | E17: 0.009696 | F17: 62662.65432 | I17: Shared Path Length | J17: =480+500+400+440+10+10+10 -> 1850 | K17: Lm
B18: Geotechnical investigations Pavement Investigations and Design | D18: 0.012 | E18: 0.009696 | F18: 62662.65432
B19: Environmental Investigations | E19: 0 | F19: 0
B20: Landscape Design | E20: 0 | F20: 0
B21: Preliminary and Final Design | D21: 0.0425 | E21: 0.03434 | F21: 221930.2341
B22: Construction Management | D22: 0.025 | E22: 0.0202 | F22: 130547.1965
I23: 2.5% of construction cost | J23: =0.025*G24 -> 161568.3125
A24: C | B24: Construction | F24: =SUM(F25:F87) -> 6462732.5 | G24: =SUM(G25:G86) -> 6462732.5
A25: 1 | B25: PRELIMINARIES | G25: =SUM(F25:F28) -> 170600
A26: 1.1 | B26: Site establishment | C26: 1 | D26: Item | E26: 10000 | F26: =E26*C26 -> 10000
A27: 1.2 | B27: Site management & supervision including QA | C27: 22 | D27: wks | E27: 2500 | F27: =SUM(E27*C27) -> 55000
A28: 1.3 | B28: Provision for traffic | C28: 1 | D28: Item | E28: =C27*6*800 -> 105600 | F28: =SUM(E28*C28) -> 105600
A29: 2 | B29: DEMOLITION | G29: =SUM(F29:F32) -> 37250
A30: 2.1 | B30: Trees | C30: 17 | D30: No | E30: 500 | F30: =SUM(E30*C30) -> 8500
A31: 2.2 | B31: Strip asphalt from existing pavement | C31: =J9 -> 5750 | D31: m² | E31: 5 | F31: =SUM(E31*C31) -> 28750
A32: 3 | B32: EARTHWORKS | G32: =SUM(F32:F37) -> 1105845
A33: 3.1 | B33: Stripping topsoil (150mm) | C33: =J10+J12*1+J13*1.3-J11-J9 -> 15105 | D33: m² | E33: 6 | F33: =SUM(E33*C33) -> 90630
A34: 3.2 | B34: Excavation and removal (inc. reclamation of FCR) | C34: =C39*0.5 -> 9577.5 | D34: m³ | E34: 30 | F34: =SUM(E34*C34) -> 287325
A35: 3.3 | B35: Soft spot rectification (reclaimed FCR) | C35: =C39*20% -> 3831 | D35: m³ | E35: 15 | F35: =SUM(E35*C35) -> 57465
A36: 3.4 | B36: Rock excavation & sub-surface remediation 450mm | C36: =C39*50% -> 9577.5 | D36: m² | E36: =55+15 -> 70 | F36: =SUM(E36*C36) -> 670425
A37: 4 | B37: PAVEMENT | G37: =SUM(F37:F40) -> 2306975
A38: 4.1 | B38: Deep lift asphalt 195 mm | C38: =J10-J13-J11 -> 15550 | D38: m² | E38: =IF(C38<15000,105,85) -> 85 | F38: =SUM(E38*C38) -> 1321750
A39: 4.2 | B39: Subbase course - 250 mm 3% CTCR | C39: =C38+(J12*1)+C40*0.3 -> 19155 | D39: m² | E39: =IF(C39<15000,55,45) -> 45 | F39: =SUM(E39*C39) -> 861975
A40: 4.3 | B40: Shoulder - full depth pavement | C40: =J13 -> 850 | D40: m² | E40: 145 | F40: =SUM(E40*C40) -> 123250
A41: 5 | B41: DRAINAGE | G41: =SUM(F41:F45) -> 599000
A42: 5.1 | B42: Subsoil drains 100mm dia - screenings | C42: =J12+J13 -> 4200 | D42: Lm | E42: 30 | F42: =SUM(E42*C42) -> 126000
A43: 5.2 | B43: Subsoil drains 100mm dia - no fines conc | C43: 0 | D43: Lm | E43: 45 | F43: =SUM(E43*C43) -> 0
A44: 5.3 | B44: 375 RCP (class 2) | C44: =J15 -> 2400 | D44: Lm | E44: 170 | F44: =SUM(E44*C44) -> 408000
A45: 5.4 | B45: Side entry pits | C45: 26 | D45: No | E45: 2500 | F45: =SUM(E45*C45) -> 65000
A46: 6 | B46: CONCRETE WORKS | G46: =SUM(F46:F51) -> 447350
A47: 6.1 | B47: Kerb &channel | C47: =J12 -> 3350 | D47: Lm | E47: 50 | F47: =SUM(E47*C47) -> 167500
A48: 6.2 | B48: Shared Paths (3.0m wide,125 mm, residential, as per MPA) | C48: =J17 -> 1850 | D48: Lm | E48: 130 | F48: =SUM(E48*C48) -> 240500
A49: 6.3 | B49: Footpaths (1.5m wide,125 mm, residential, as per MPA) | C49: =J14 -> 0 | D49: No | E49: 65 | F49: =SUM(E49*C49) -> 0
A50: 6.4 | B50: Laybacks and tactile pavers | C50: 8 | D50: m² | E50: 1200 | F50: =SUM(E50*C50) -> 9600
A51: 6.5 | B51: 10m concrete maintenance area end of all islands | C51: =J16 -> 350 | D51: m² | E51: 85 | F51: =SUM(E51*C51) -> 29750
A52: 7 | B52: TRAFFIC SIGNAL WORKS | G52: =SUM(F52:F60) -> 302000
A53: 7.1 | B53: General items | C53: 1 | D53: Item | E53: 27500 | F53: =SUM(E53*C53) -> 27500
A54: 7.2 | B54: Conduits | C54: 1 | D54: Item | E54: 28000 | F54: 28000
A55: 7.3 | B55: Pedestals | C55: 1 | D55: Item | E55: 65000 | F55: 65000
A56: 7.4 | B56: Lanterns | C56: 1 | D56: Item | E56: 25000 | F56: 25000
A57: 7.5 | B57: Controller | C57: 1 | D57: Item | E57: 82500 | F57: 82500
A58: 7.6 | B58: Detectors | C58: 1 | D58: Item | E58: 15000 | F58: 15000
A59: 7.7 | B59: Cabling & connections | C59: 1 | D59: Item | E59: 48000 | F59: 48000
A60: 7.8 | B60: Clean-up | C60: 1 | D60: Item | E60: 11000 | F60: 11000
A61: 8 | B61: SIGNAL MAINTENANCE (10 YEARS) by Road Authority | C61: 1 | D61: item | E61: 100000 | F61: 100000 | G61: =F61 -> 100000
A62: 9 | B62: POWER & LIGHTING | G62: =SUM(F63:F68) -> 250000
A63: 9.1 | B63: Light pole (1-way) and luminous lights | C63: 17 | D63: No | E63: 8000 | F63: 136000
A64: 9.2 | B64: Light pole (2-way) and luminous lights | C64: 5 | D64: No | E64: 9000 | F64: 45000
A65: 9.3 | B65: JUP lighting single | C65: 6 | D65: No | E65: 4000 | F65: 24000
A66: 9.4 | B66: JUP lighting dual | C66: 0 | D66: No | E66: 5000 | F66: 0
A67: 9.5 | B67: Cabling, conduits and pits | C67: 1 | D67: Item | E67: 30000 | F67: 30000
A68: 9.6 | B68: Electrical connection | C68: 1 | D68: Item | E68: 15000 | F68: 15000
A69: 10 | B69: LANDSCAPING WORKS | G69: =SUM(F69:F71) -> 42712.5
A70: 10.1 | B70: Topsoiling seeding | C70: =J12*1.5+J14*1 -> 5025 | D70: m² | E70: 8.5 | F70: =SUM(E70*C70) -> 42712.5
A71: 10.2 | B71: Landcape planting | C71: 0 | D71: NA
A72: 11 | B72: SIGNING | C72: 1 | D72: item | E72: 10000 | F72: 10000 | G72: =F72 -> 10000
A73: 12 | B73: LINEMARKING (Thermoplastic) | C73: 1 | D73: item | E73: 30000 | F73: 30000 | G73: =F73 -> 30000
A74: 13 | B74: SERVICE RELOCATION | G74: =SUM(F74:F79) -> 980000
A75: 13.1 | B75: Water | C75: 1 | D75: Item | E75: 150000 | F75: =SUM(E75*C75) -> 150000
A76: 13.2 | B76: Gas | C76: 1 | D76: Item | E76: 100000 | F76: =SUM(E76*C76) -> 100000
A77: 13.3 | B77: Telstra | C77: 1 | D77: Item | E77: 250000 | F77: =SUM(E77*C77) -> 250000
A78: 13.4 | B78: Overhead electrical | C78: 1 | D78: Item | E78: 480000 | F78: =SUM(E78*C78) -> 480000
A79: 13.5 | B79: Sewer (no allowance) | C79: 0 | D79: Item | E79: 0 | F79: =SUM(E79*C79) -> 0
A80: 14 | B80: MISCELLANEOUS | G80: =SUM(F80:F85) -> 81000
B81: Exisiting Road outside of new road pavements
A82: 14.1 | B82: Strip asphalt | C82: 3600 | D82: m² | E82: 5 | F82: =SUM(E82*C82) -> 18000
A83: 14.2 | B83: Recycle FCR to stockpile | C83: =3600*0.3 -> 1080 | D83: m³ | E83: 10 | F83: =SUM(E83*C83) -> 10800
A84: 14.3 | B84: backfill with structural fill | C84: =C82*0.5 -> 1800 | D84: m³ | E84: 12 | F84: =SUM(E84*C84) -> 21600
A85: 14.4 | B85: Topsoiling | C85: =C82 -> 3600 | D85: m² | E85: 8.5 | F85: =SUM(E85*C85) -> 30600
A86: 15 | B86: PROVISIONAL SUM - DAYWORK | D86: item | F86: =SUM(E86*C86) -> 0 | G86: =F86 -> 0
B88: TOTAL A - C | F88: =SUM(F25:F87,F7:F23) -> 7246015.679 | G88: =SUM(G24+G15+G7) -> 7246015.679
A90: D | B90: Contingency
B91: =Summary!B17 -> Contingency (15% of C) | F91: 0.15 | G91: =F91*G24 -> 969409.875
A93: E | B93: PROJECT BUDGET
B94: Total Estimate | G94: =G91+G88 -> 8215425.554
A97: Notes:
A98: - | B98: Earthworks based on a concept vertical grade alignment
A100: Services
A101: 1 | B101: Water, gas, & telstra existing services information unavailable - assumed from site photography
A102: 2 | B102: No allowance for sewer
A103: 3 | B103: Electrical poles (66 HV, 22HV, LV & lighting)
A104: Substations
A105: 3 | B105: No allowance for substations
A106: Preliminaries
A107: 4 | B107: Based on nominal rates
A108: Subsoil Drain
A109: 5 | B109: Assume same as kerb and channel
A110: Side Entry Pits
A111: 6 | B111: Based on 50 m intervals (please note due to large road width dual drainage has been allowed for
A112: Tactile Pavers
A113: 7 | B113: Assume hazard TGSI's (no directional)
A114: Signing
A115: 8 | B115: Nominal rate
A116: Pavement
A117: 9 | B117: Assume deep lift asphalt pavement
A118: Tree Removal
A119: 10 | B119: Based on preliminary information
A120: Roads
A121: 11 | B121: Where applicable, existing asphalt roads to be demolished as part of intersection works
A126: AUTHOR: | B126: Graeme Stenton
A127: Date: | B127: 2014-12-18
A129: REVIEWER: | B129: Rob Henry
A130: Date:

Sheet IN-10
A1: PRELIMINARY ESTIMATE OF DEVELOPMENT COSTS | G1: =Summary!A5 -> 2015-05-14
A2: =Summary!A3 -> CG140690 | G2: =Summary!A6 -> Version 11
A3: =Summary!A4 -> Wollert PSP - Intersection Cost Estimate | C3: PM %: | D3: 0.0922
A4: Intersection Ref: | B4: =J7 -> IN-10 | E4: DRAFT | I4: Do not Delete the below info
A5: Sheet Ref: | B5: =Summary!L9 -> (18-D)
A6: ITEM | B6: DESCRIPTION | C6: QUANTITY | D6: UNIT | E6: RATE | F6: AMOUNT | G6: SUBTOTAL | I6: Sheet Specific Information | J6: Input | K6: Unit | L6: Cell Reference
A7: A | B7: =Summary!B10 -> Project and Program Management (%) | G7: =SUM(F7:F14) -> 103893.0345 | I7: Intersection Name | J7: IN-10 | L7: A4
B8: Project Management | D8: 0.03 | E8: =($D$3/0.1)*D8 -> 0.02766 | F8: =E8*$G$24 -> 62335.8207 | I8: Existing Road Directions | J8: N-S | L8: B105
B9: Project scoping, planning, scheduling, monitoring, reporting and commissioning | I9: Previous Road area | K9: m2
B10: Management of preconstruction activities, development of tender documents and management of contracts | I10: Total Roadway Area | J10: 4650 | K10: m2
B11: Managing external interfaces, including community liaison, environmental issues, traffic issues etc | I11: Island Area | J11: 575 | K11: m2
B12: Records management | I12: Kerb and Channel | J12: =700+200+120 -> 1020 | K12: Lm
B13: Program Administration | D13: 0.02 | E13: =($D$3/0.1)*D13 -> 0.01844 | F13: =E13*$G$24 -> 41557.2138 | I13: Shoulder | J13: 0 | K13: Lm
I14: Footpath Length | J14: =100+85 -> 185 | K14: Lm
A15: B | B15: =Summary!B11 -> Design and Investigation (%) | G15: =SUM(F15:F23) -> 207786.069 | I15: Pipe Length | J15: 380 | K15: Lm
B16: Traffic Investigations | D16: 0.0085 | E16: =($D$3/0.1)*D16 -> 0.007837 | F16: =E16*$G$24 -> 17661.81587 | I16: Island Concrete infill | J16: =25+25+30+40+150 -> 270 | K16: m2
B17: Cadastral and Engineering Survey | D17: 0.012 | E17: 0.011064 | F17: 24934.32828 | I17: Shared Path Length | J17: =270+15+105 -> 390 | K17: Lm
B18: Geotechnical investigations Pavement Investigations and Design | D18: 0.012 | E18: 0.011064 | F18: 24934.32828
B19: Environmental Investigations | E19: 0 | F19: 0
B20: Landscape Design | E20: 0 | F20: 0
B21: Preliminary and Final Design | D21: 0.0425 | E21: 0.039185 | F21: 88309.07933
B22: Construction Management | D22: 0.025 | E22: 0.02305 | F22: 51946.51725 | I22: 2.5% of construction cost | J22: =0.025*G24 -> 56341.125
A24: C | B24: Construction | F24: =SUM(F25:F82) -> 2253645 | G24: =SUM(G25:G81) -> 2253645
A25: 1 | G25: =SUM(F25:F28) -> 53000
A26: 1.1 | B26: Site establishment | C26: 1 | D26: Item | E26: 8000 | F26: =SUM(E26*C26) -> 8000
A27: 1.2 | B27: Site management & supervision including QA | C27: 14 | D27: wks | E27: 2500 | F27: =SUM(E27*C27) -> 35000
A28: 1.3 | B28: Provision for traffic | C28: 1 | D28: Item | E28: 10000 | F28: =SUM(E28*C28) -> 10000
A29: 2 | B29: DEMOLITION | G29: =SUM(F29:F32) -> 7000
A30: 2.1 | B30: Trees | C30: 4 | D30: No | E30: 500 | F30: =SUM(E30*C30) -> 2000
A31: 2.2 | B31: Dry stone wall demolition & make good | C31: 1 | D31: item | E31: 5000 | F31: =SUM(E31*C31) -> 5000
A32: 3 | B32: EARTHWORKS | G32: =SUM(F32:F37) -> 338817.5
A33: 3.1 | B33: Stripping topsoil (150mm) | C33: =J10+J12*1+J13*1.3-J11-J9 -> 5095 | D33: m² | E33: 6 | F33: =SUM(E33*C33) -> 30570
A34: 3.2 | B34: Excavation and removal | C34: =C39*(0.45+0.3) -> 3821.25 | D34: m³ | E34: 30 | F34: =SUM(E34*C34) -> 114637.5
A35: 3.4 | B35: Soft spot rectification | C35: =C39*20% -> 1019 | D35: m³ | E35: 15 | F35: =SUM(E35*C35) -> 15285
A36: 3.4 | B36: Rock excavation & sub-surface remediation 450mm | C36: =C39*50% -> 2547.5 | D36: m² | E36: =55+15 -> 70 | F36: =SUM(E36*C36) -> 178325
A37: 4 | B37: PAVEMENT | G37: =SUM(F37:F42) -> 1056775
A38: 4.1 | B38: Deep lift asphalt 195 mm | C38: =J10-J11-J13 -> 4075 | D38: m² | E38: =IF(C38<15000,105,85) -> 105 | F38: =SUM(E38*C38) -> 427875
A39: 4.2 | B39: Subbase course - 250 mm 3% CTCR | C39: =C38+(J12*1)+C41*0.3 -> 5095 | D39: m² | E39: 55 | F39: =SUM(E39*C39) -> 280225
A40: 4.3 | B40: Base course - 300mm Class 3 | C40: =C39 -> 5095 | D40: m² | E40: 50 | F40: 348675
A41: 4.3 | B41: Shoulder 1m wide - full depth pavement | C41: =J13 -> 0 | D41: m | E41: 145 | F41: =SUM(E41*C41) -> 0
A42: 5 | B42: DRAINAGE | G42: =SUM(F43:F48) -> 158700
A43: 5.1 | B43: Subsoil drains 100mm dia - screenings | C43: =J12+J13 -> 1020 | D43: Lm | E43: 30 | F43: =SUM(E43*C43) -> 30600
A44: 5.2 | B44: Subsoil drains 100mm dia - no fines conc | C44: 0 | D44: Lm | E44: 45 | F44: =SUM(E44*C44) -> 0
A45: 5.3 | B45: 375 RCP (class 2) | C45: =J15 -> 380 | D45: Lm | E45: 170 | F45: =SUM(E45*C45) -> 64600
A46: 5.4 | B46: Side entry pits | C46: 13 | D46: No | E46: 2500 | F46: =SUM(E46*C46) -> 32500
A47: 5.5 | B47: Allowance tomodify draiange to ultimate location | C47: 1 | D47: item | E47: =5*(2500+2000+10*E45) -> 31000 | F47: =SUM(E47*C47) -> 31000
A48: 6 | B48: CONCRETE WORKS | G48: =SUM(F48:F53) -> 141775
A49: 6.1 | B49: Kerb &channel | C49: =J12 -> 1020 | D49: Lm | E49: 50 | F49: =SUM(E49*C49) -> 51000
A50: 6.2 | B50: Shared Paths (3.0m wide,125 mm, residential, as per MPA) | C50: =J17 -> 390 | D50: Lm | E50: 130 | F50: =SUM(E50*C50) -> 50700
A51: 6.3 | B51: Footpaths (1.5m wide,125 mm, residential, as per MPA) | C51: =J14 -> 185 | D51: Lm | E51: 65 | F51: =SUM(E51*C51) -> 12025
A52: 6.4 | B52: Laybacks and tactile pavers | C52: 6 | D52: No | E52: 850 | F52: =SUM(E52*C52) -> 5100
A53: 6.5 | B53: 10m concrete maintenance area end of all islands | C53: =J16 -> 270 | D53: m² | E53: 85 | F53: =SUM(E53*C53) -> 22950
A54: 7 | B54: TRAFFIC SIGNAL WORKS | G54: =SUM(F54:F62) -> 237500
A55: 7.1 | B55: General items | C55: 1 | D55: Item | E55: 23000 | F55: =SUM(E55*C55) -> 23000
A56: 7.2 | B56: Conduits | C56: 1 | D56: Item | E56: 18000 | F56: 18000
A57: 7.3 | B57: Pedestals | C57: 1 | D57: Item | E57: 45000 | F57: 45000
A58: 7.4 | B58: Lanterns | C58: 1 | D58: Item | E58: 18000 | F58: 18000
A59: 7.5 | B59: Controller | C59: 1 | D59: Item | E59: 75000 | F59: 75000
A60: 7.6 | B60: Detectors | C60: 1 | D60: Item | E60: 9500 | F60: 9500
A61: 7.7 | B61: Cabling & connections | C61: 1 | D61: Item | E61: 40000 | F61: 40000
A62: 7.8 | B62: Clean-up | C62: 1 | D62: Item | E62: 9000 | F62: 9000
A63: 8 | B63: SIGNAL MAINTENANCE (10 YEARS) by Road Authority | C63: 1 | D63: item | E63: 100000 | F63: 100000 | G63: =F63 -> 100000
A64: 9 | B64: POWER & LIGHTING | G64: =SUM(F65:F70) -> 118000
A65: 9.1 | B65: Light pole (1-way) and luminous lights | C65: 3 | D65: No | E65: 8000 | F65: 24000
A66: 9.2 | B66: Light pole (2-way) and luminous lights | C66: 4 | D66: No | E66: 9000 | F66: 36000
A67: 9.3 | B67: JUP lighting single | C67: 2 | D67: No | E67: 4000 | F67: 8000
A68: 9.4 | B68: JUP lighting dual | C68: 1 | D68: No | E68: 5000 | F68: 5000
A69: 9.5 | B69: Cabling, conduits and pits | C69: 1 | D69: Item | E69: 30000 | F69: 30000
A70: 9.6 | B70: Electrical connection | C70: 1 | D70: Item | E70: 15000 | F70: 15000
A71: 10 | B71: LANDSCAPING WORKS | G71: =SUM(F71:F72) -> 14577.5
A72: 10.1 | B72: Topsoiling seeding | C72: =J12*1.5+J14*1 -> 1715 | D72: m² | E72: 8.5 | F72: =SUM(E72*C72) -> 14577.5
A73: 10.2 | B73: Landcape planting | C73: 0 | D73: NA
A74: 11 | B74: SIGNING | C74: 1 | D74: item | E74: 7500 | F74: 7500 | G74: =F74 -> 7500
A75: 12 | B75: LINEMARKING (Thermoplastic) | C75: 1 | D75: item | E75: 20000 | F75: 20000 | G75: =F75 -> 20000
A76: 13 | B76: SERVICE RELOCATION | G76: =SUM(F76:F78) -> 0
A77: 13.1 | B77: (Water, gas, telstra) No allowance | D77: item
A78: 13.2 | B78: (Overhead electrical) No allowance | D78: item
A79: 14 | B79: MISCELLANEOUS | G79: =F79 -> 0
A80: 14.1 | B80: (Water, gas, telstra) No allowance | D80: item
A81: 15 | B81: PROVISIONAL SUM - DAYWORK | D81: item | F81: =SUM(E81*C81) -> 0 | G81: =F81 -> 0
B83: TOTAL A - C | F83: =SUM(F25:F82,F7:F23) -> 2565324.103 | G83: =SUM(G24+G15+G7) -> 2565324.104
A85: D | B85: Contingency
B86: =Summary!B17 -> Contingency (15% of C) | F86: 0.15 | G86: =F86*G24 -> 338046.75
A88: E | B88: PROJECT BUDGET
B89: Total Estimate | G89: =G86+G83 -> 2903370.854
A92: Notes:
A93: - | B93: Earthworks based on a concept vertical grade alignment
B94: Industrial standard - heavy duty pavement
A95: Services
A96: 1 | B96: Service relocation / alterations have not been allowed for in the estimate
A97: 2 | B97: No allowance for water, gas, telstra, sewer
A98: Substations
A99: 3 | B99: No allowance for substations
A100: Preliminaries
A101: 4 | B101: Based on nominal rates
A102: Subsoil Drain
A103: 5 | B103: Assume same as kerb and channel
A104: Side Entry Pits
A105: 6 | B105: Based on 50 m intervals
A106: Tactile Pavers
A107: 7 | B107: Assume hazard TGSI's (no directional)
A108: Signing
A109: 8 | B109: Nominal rate
A110: Pavement
A111: 9 | B111: Assume deep lift asphalt pavement
A112: Tree Removal
A113: 10 | B113: Based on preliminary information
A114: Roads
A115: 11 | B115: Where applicable, existing road conditions based on limited crushed rock roads assumed to be of no consequence to works
A116: 12 | B116: Where applicable, existing asphalt roads to be demolished as part of intersection works
A117: Dry Stone Wall
A118: 13 | B118: Dry stone wall works allowance has assumed the wall is not heritage listed and does not need to be reconstructed
A120: AUTHOR: | B120: Jack Hume
A121: Date: | B121: 2014-12-05
A123: REVIEWER: | B123: Rob Henry
A124: Date: | B124: 2014-12-05

Sheet IN-13
A1: PRELIMINARY ESTIMATE OF DEVELOPMENT COSTS | G1: =Summary!A5 -> 2015-05-14
A2: =Summary!A3 -> CG140690 | G2: =Summary!A6 -> Version 11
A3: =Summary!A4 -> Wollert PSP - Intersection Cost Estimate | C3: PM %: | D3: 0.0955
A4: Intersection Ref: | B4: =J7 -> IN-13 | E4: DRAFT | I4: Do not Delete the below info
A5: Sheet Ref: | B5: =Summary!M9 -> (18-CHR)
A6: ITEM | B6: DESCRIPTION | C6: QUANTITY | D6: UNIT | E6: RATE | F6: AMOUNT | G6: SUBTOTAL | I6: Sheet Specific Information | J6: Input | K6: Unit | L6: Cell Reference
A7: A | B7: =Summary!B10 -> Project and Program Management (%) | G7: =SUM(F7:F14) -> 80880.14375 | I7: Intersection Name | J7: IN-13 | L7: A4
B8: Project Management | D8: 0.03 | E8: =($D$3/0.1)*D8 -> 0.02865 | F8: =E8*$G$24 -> 48528.08625 | I8: Existing Road Directions | J8: N-S | L8: B105
B9: Project scoping, planning, scheduling, monitoring, reporting and commissioning | I9: Previous Road area | K9: m2
B10: Management of preconstruction activities, development of tender documents and management of contracts | I10: Total Roadway Area | J10: 4000 | K10: m2
B11: Managing external interfaces, including community liaison, environmental issues, traffic issues etc | I11: Island Area | J11: 300 | K11: m2
B12: Records management | I12: Kerb and Channel | J12: 800 | K12: Lm
B13: Program Administration | D13: 0.02 | E13: =($D$3/0.1)*D13 -> 0.0191 | F13: =E13*$G$24 -> 32352.0575 | I13: Shoulder | J13: 0 | K13: Lm
I14: Footpath Length | J14: 200 | K14: Lm
A15: B | B15: =Summary!B11 -> Design and Investigation (%) | G15: =SUM(F15:F23) -> 161760.2875 | I15: Pipe Length | J15: 450 | K15: Lm
B16: Traffic Investigations | D16: 0.0085 | E16: =($D$3/0.1)*D16 -> 0.0081175 | F16: =E16*$G$24 -> 13749.62444 | I16: Island Concrete infill | J16: 25 | K16: m2
B17: Cadastral and Engineering Survey | D17: 0.012 | E17: 0.01146 | F17: 19411.2345 | I17: Shared Path Length | J17: 340 | K17: Lm
B18: Geotechnical investigations Pavement Investigations and Design | D18: 0.012 | E18: 0.01146 | F18: 19411.2345
B19: Environmental Investigations | E19: 0 | F19: 0
B20: Landscape Design | E20: 0 | F20: 0
B21: Preliminary and Final Design | D21: 0.0425 | E21: 0.0405875 | F21: 68748.12219
B22: Construction Management | D22: 0.025 | E22: 0.023875 | F22: 40440.07188 | I22: 2.5% of construction cost | J22: =0.025*G24 -> 42345.625
A24: C | B24: Construction | F24: =SUM(F25:F79) -> 1693825 | G24: =SUM(G25:G78) -> 1693825
A25: 1 | G25: =SUM(F25:F28) -> 50500
A26: 1.1 | B26: Site establishment | C26: 1 | D26: Item | E26: 8000 | F26: =SUM(E26*C26) -> 8000
A27: 1.2 | B27: Site management & supervision including QA | C27: 13 | D27: wks | E27: 2500 | F27: =SUM(E27*C27) -> 32500
A28: 1.3 | B28: Provision for traffic | C28: 1 | D28: Item | E28: 10000 | F28: =SUM(E28*C28) -> 10000
A29: 2 | B29: DEMOLITION | G29: =SUM(F29:F32) -> 7000
A30: 2.1 | B30: Trees | C30: 4 | D30: No | E30: 500 | F30: =SUM(E30*C30) -> 2000
A31: 2.2 | B31: Dry stone wall demolition & make good | C31: 1 | D31: item | E31: 5000 | F31: =SUM(E31*C31) -> 5000
A32: 3 | B32: EARTHWORKS | G32: =SUM(F32:F37) -> 265500
A33: 3.1 | B33: Stripping topsoil (150mm) | C33: =J10+J12*1+J13*1.3-J11-J9 -> 4500 | D33: m² | E33: 6 | F33: =SUM(E33*C33) -> 27000
A34: 3.2 | B34: Excavation and removal | C34: =C39*0.5 -> 2250 | D34: m³ | E34: 30 | F34: =SUM(E34*C34) -> 67500
A35: 3.4 | B35: Soft spot rectification | C35: =C39*20% -> 900 | D35: m³ | E35: 15 | F35: =SUM(E35*C35) -> 13500
A36: 3.4 | B36: Rock excavation & sub-surface remediation 450mm | C36: =C39*50% -> 2250 | D36: m² | E36: =55+15 -> 70 | F36: =SUM(E36*C36) -> 157500
A37: 4 | B37: PAVEMENT | G37: =SUM(F37:F41) -> 636000
A38: 4.1 | B38: Deep lift asphalt 195 mm | C38: =J10-J11-J13 -> 3700 | D38: m² | E38: =IF(C38<15000,105,85) -> 105 | F38: =SUM(E38*C38) -> 388500
A39: 4.2 | B39: Subbase course - 250 mm 3% CTCR | C39: =C38+(J12*1)+C40*0.3 -> 4500 | D39: m² | E39: 55 | F39: =SUM(E39*C39) -> 247500
A40: 4.3 | B40: Shoulder 1m wide - full depth pavement | C40: =J13 -> 0 | D40: m | E40: 145 | F40: =SUM(E40*C40) -> 0
A41: 5 | B41: DRAINAGE | G41: =SUM(F42:F46) -> 130500
A42: 5.1 | B42: Subsoil drains 100mm dia - screenings | C42: =J12+J13 -> 800 | D42: Lm | E42: 30 | F42: =SUM(E42*C42) -> 24000
A43: 5.2 | B43: Subsoil drains 100mm dia - no fines conc | C43: 0 | D43: Lm | E43: 45 | F43: =SUM(E43*C43) -> 0
A44: 5.3 | B44: 375 RCP (class 2) | C44: =J15 -> 450 | D44: Lm | E44: 170 | F44: =SUM(E44*C44) -> 76500
A45: 5.4 | B45: Side entry pits | C45: 12 | D45: No | E45: 2500 | F45: =SUM(E45*C45) -> 30000
A46: 6 | B46: CONCRETE WORKS | G46: =SUM(F46:F51) -> 104425
A47: 6.1 | B47: Kerb &channel | C47: =J12 -> 800 | D47: Lm | E47: 50 | F47: =SUM(E47*C47) -> 40000
A48: 6.2 | B48: Shared Paths (3.0m wide,125 mm, residential, as per MPA) | C48: =J17 -> 340 | D48: Lm | E48: 130 | F48: =SUM(E48*C48) -> 44200
A49: 6.3 | B49: Footpaths (1.5m wide,125 mm, residential, as per MPA) | C49: =J14 -> 200 | D49: Lm | E49: 65 | F49: =SUM(E49*C49) -> 13000
A50: 6.4 | B50: Laybacks and tactile pavers | C50: 6 | D50: No | E50: 850 | F50: =SUM(E50*C50) -> 5100
A51: 6.5 | B51: 10m concrete maintenance area end of all islands | C51: =J16 -> 25 | D51: m² | E51: 85 | F51: =SUM(E51*C51) -> 2125
A52: 7 | B52: TRAFFIC SIGNAL WORKS | G52: =SUM(F52:F60) -> 248500
A53: 7.1 | B53: General items | C53: 1 | D53: Item | E53: 23000 | F53: =SUM(E53*C53) -> 23000
A54: 7.2 | B54: Conduits | C54: 1 | D54: Item | E54: 20000 | F54: 20000
A55: 7.3 | B55: Pedestals | C55: 1 | D55: Item | E55: 47000 | F55: 47000
A56: 7.4 | B56: Lanterns | C56: 1 | D56: Item | E56: 20000 | F56: 20000
A57: 7.5 | B57: Controller | C57: 1 | D57: Item | E57: 75000 | F57: 75000
A58: 7.6 | B58: Detectors | C58: 1 | D58: Item | E58: 9500 | F58: 9500
A59: 7.7 | B59: Cabling & connections | C59: 1 | D59: Item | E59: 45000 | F59: 45000
A60: 7.8 | B60: Clean-up | C60: 1 | D60: Item | E60: 9000 | F60: 9000
A61: 8 | B61: SIGNAL MAINTENANCE (10 YEARS) by Road Authority | C61: 1 | D61: item | E61: 100000 | F61: 100000 | G61: =F61 -> 100000
A62: 9 | B62: POWER & LIGHTING | G62: =SUM(F63:F68) -> 112000
A63: 9.1 | B63: Light pole (1-way) and luminous lights | C63: 4 | D63: No | E63: 8000 | F63: 32000
A64: 9.2 | B64: Light pole (2-way) and luminous lights | C64: 2 | D64: No | E64: 9000 | F64: 18000
A65: 9.3 | B65: JUP lighting single | C65: 3 | D65: No | E65: 4000 | F65: 12000
A66: 9.4 | B66: JUP lighting dual | C66: 1 | D66: No | E66: 5000 | F66: 5000
A67: 9.5 | B67: Cabling, conduits and pits | C67: 1 | D67: Item | E67: 30000 | F67: 30000
A68: 9.6 | B68: Electrical connection | C68: 1 | D68: Item | E68: 15000 | F68: 15000
A69: 10 | B69: LANDSCAPING WORKS | G69: =SUM(F69:F71) -> 11900
A70: 10.1 | B70: Topsoiling seeding | C70: =J12*1.5+J14*1 -> 1400 | D70: m² | E70: 8.5 | F70: =SUM(E70*C70) -> 11900
A71: 10.2 | B71: Landcape planting | C71: 0 | D71: NA
A72: 11 | B72: SIGNING | C72: 1 | D72: item | E72: 7500 | F72: 7500 | G72: =F72 -> 7500
A73: 12 | B73: LINEMARKING (Thermoplastic) | C73: 1 | D73: item | E73: 20000 | F73: 20000 | G73: =F73 -> 20000
A74: 13 | B74: SERVICE RELOCATION | G74: =SUM(F74:F76) -> 0
A75: 13.1 | B75: (Water, gas, telstra) No allowance | D75: item
A76: 13.2 | B76: (Overhead electrical) No allowance | D76: item
A77: 14 | B77: MISCELLANEOUS | G77: =F77 -> 0
A78: 15 | B78: PROVISIONAL SUM - DAYWORK | D78: item | F78: =SUM(E78*C78) -> 0 | G78: =F78 -> 0
B80: TOTAL A - C | F80: =SUM(F25:F79,F7:F23) -> 1936465.431 | G80: =SUM(G24+G15+G7) -> 1936465.431
A82: D | B82: Contingency
B83: =Summary!B17 -> Contingency (15% of C) | F83: 0.15 | G83: =F83*G24 -> 254073.75
A85: E | B85: PROJECT BUDGET
B86: Total Estimate | G86: =G83+G80 -> 2190539.181
A89: Notes:
A90: - | B90: Earthworks based on a concept vertical grade alignment
A92: Services
A93: 1 | B93: Service relocation / alterations have not been allowed for in the estimate
A94: 2 | B94: No allowance for water, gas, telstra, sewer
A95: Substations
A96: 3 | B96: No allowance for substations
A97: Preliminaries
A98: 4 | B98: Based on nominal rates
A99: Subsoil Drain
A100: 5 | B100: Assume same as kerb and channel
A101: Side Entry Pits
A102: 6 | B102: Based on 50 m intervals
A103: Tactile Pavers
A104: 7 | B104: Assume hazard TGSI's (no directional)
A105: Signing
A106: 8 | B106: Nominal rate
A107: Pavement
A108: 9 | B108: Assume deep lift asphalt pavement
A109: Tree Removal
A110: 10 | B110: Based on preliminary information
A111: Roads
A112: 11 | B112: Where applicable, existing road conditions based on limited crushed rock roads assumed to be of no consequence to works
A113: 12 | B113: Where applicable, existing asphalt roads to be demolished as part of intersection works
A114: Dry Stone Wall
A115: 13 | B115: Dry stone wall works allowance has assumed the wall is not heritage listed and does not need to be reconstructed
A117: AUTHOR: | B117: Jack Hume
A118: Date: | B118: 2014-12-05
A120: REVIEWER: | B120: Rob Henry
A121: Date: | B121: 2014-12-05

Sheet IN-14
A1: PRELIMINARY ESTIMATE OF DEVELOPMENT COSTS | G1: =Summary!A5 -> 2015-05-14
A2: =Summary!A3 -> CG140690 | G2: =Summary!A6 -> Version 11
A3: =Summary!A4 -> Wollert PSP - Intersection Cost Estimate | C3: PM %: | D3: 0.0955
A4: Intersection Ref: | B4: =J7 -> IN-14 | E4: DRAFT | I4: Do not Delete the below info
A5: Sheet Ref: | B5: =Summary!N9 -> (18-CHR)
A6: ITEM | B6: DESCRIPTION | C6: QUANTITY | D6: UNIT | E6: RATE | F6: AMOUNT | G6: SUBTOTAL | I6: Sheet Specific Information | J6: Input | K6: Unit | L6: Cell Reference
A7: A | B7: =Summary!B10 -> Project and Program Management (%) | G7: =SUM(F7:F14) -> 80880.14375 | I7: Intersection Name | J7: IN-14 | L7: A4
B8: Project Management | D8: 0.03 | E8: =($D$3/0.1)*D8 -> 0.02865 | F8: =E8*$G$24 -> 48528.08625 | I8: Existing Road Directions | J8: N-S | L8: B105
B9: Project scoping, planning, scheduling, monitoring, reporting and commissioning | I9: Previous Road area | K9: m2
B10: Management of preconstruction activities, development of tender documents and management of contracts | I10: Total Roadway Area | J10: 4000 | K10: m2
B11: Managing external interfaces, including community liaison, environmental issues, traffic issues etc | I11: Island Area | J11: 300 | K11: m2
B12: Records management | I12: Kerb and Channel | J12: 800 | K12: Lm
B13: Program Administration | D13: 0.02 | E13: =($D$3/0.1)*D13 -> 0.0191 | F13: =E13*$G$24 -> 32352.0575 | I13: Shoulder | J13: 0 | K13: Lm
I14: Footpath Length | J14: 200 | K14: Lm
A15: B | B15: =Summary!B11 -> Design and Investigation (%) | G15: =SUM(F15:F23) -> 161760.2875 | I15: Pipe Length | J15: 450 | K15: Lm
B16: Traffic Investigations | D16: 0.0085 | E16: =($D$3/0.1)*D16 -> 0.0081175 | F16: =E16*$G$24 -> 13749.62444 | I16: Island Concrete infill | J16: 25 | K16: m2
B17: Cadastral and Engineering Survey | D17: 0.012 | E17: 0.01146 | F17: 19411.2345 | I17: Shared Path Length | J17: 340 | K17: Lm
B18: Geotechnical investigations Pavement Investigations and Design | D18: 0.012 | E18: 0.01146 | F18: 19411.2345
B19: Environmental Investigations | E19: 0 | F19: 0
B20: Landscape Design | E20: 0 | F20: 0
B21: Preliminary and Final Design | D21: 0.0425 | E21: 0.0405875 | F21: 68748.12219
B22: Construction Management | D22: 0.025 | E22: 0.023875 | F22: 40440.07188 | I22: 2.5% of construction cost | J22: =0.025*G24 -> 42345.625
A24: C | B24: Construction | F24: =SUM(F25:F79) -> 1693825 | G24: =SUM(G25:G78) -> 1693825
A25: 1 | G25: =SUM(F25:F28) -> 50500
A26: 1.1 | B26: Site establishment | C26: 1 | D26: Item | E26: 8000 | F26: =SUM(E26*C26) -> 8000
A27: 1.2 | B27: Site management & supervision including QA | C27: 13 | D27: wks | E27: 2500 | F27: =SUM(E27*C27) -> 32500
A28: 1.3 | B28: Provision for traffic | C28: 1 | D28: Item | E28: 10000 | F28: =SUM(E28*C28) -> 10000
A29: 2 | B29: DEMOLITION | G29: =SUM(F29:F32) -> 7000
A30: 2.1 | B30: Trees | C30: 4 | D30: No | E30: 500 | F30: =SUM(E30*C30) -> 2000
A31: 2.2 | B31: Dry stone wall demolition & make good | C31: 1 | D31: item | E31: 5000 | F31: =SUM(E31*C31) -> 5000
A32: 3 | B32: EARTHWORKS | G32: =SUM(F32:F37) -> 265500
A33: 3.1 | B33: Stripping topsoil (150mm) | C33: =J10+J12*1+J13*1.3-J11-J9 -> 4500 | D33: m² | E33: 6 | F33: =SUM(E33*C33) -> 27000
A34: 3.2 | B34: Excavation and removal | C34: =C39*0.5 -> 2250 | D34: m³ | E34: 30 | F34: =SUM(E34*C34) -> 67500
A35: 3.4 | B35: Soft spot rectification | C35: =C39*20% -> 900 | D35: m³ | E35: 15 | F35: =SUM(E35*C35) -> 13500
A36: 3.4 | B36: Rock excavation & sub-surface remediation 450mm | C36: =C39*50% -> 2250 | D36: m² | E36: =55+15 -> 70 | F36: =SUM(E36*C36) -> 157500
A37: 4 | B37: PAVEMENT | G37: =SUM(F37:F41) -> 636000
A38: 4.1 | B38: Deep lift asphalt 195 mm | C38: =J10-J11-J13 -> 3700 | D38: m² | E38: =IF(C38<15000,105,85) -> 105 | F38: =SUM(E38*C38) -> 388500
A39: 4.2 | B39: Subbase course - 250 mm 3% CTCR | C39: =C38+(J12*1)+C40*0.3 -> 4500 | D39: m² | E39: 55 | F39: =SUM(E39*C39) -> 247500
A40: 4.3 | B40: Shoulder 1m wide - full depth pavement | C40: =J13 -> 0 | D40: m | E40: 145 | F40: =SUM(E40*C40) -> 0
A41: 5 | B41: DRAINAGE | G41: =SUM(F42:F46) -> 130500
A42: 5.1 | B42: Subsoil drains 100mm dia - screenings | C42: =J12+J13 -> 800 | D42: Lm | E42: 30 | F42: =SUM(E42*C42) -> 24000
A43: 5.2 | B43: Subsoil drains 100mm dia - no fines conc | C43: 0 | D43: Lm | E43: 45 | F43: =SUM(E43*C43) -> 0
A44: 5.3 | B44: 375 RCP (class 2) | C44: =J15 -> 450 | D44: Lm | E44: 170 | F44: =SUM(E44*C44) -> 76500
A45: 5.4 | B45: Side entry pits | C45: 12 | D45: No | E45: 2500 | F45: =SUM(E45*C45) -> 30000
A46: 6 | B46: CONCRETE WORKS | G46: =SUM(F46:F51) -> 104425
A47: 6.1 | B47: Kerb &channel | C47: =J12 -> 800 | D47: Lm | E47: 50 | F47: =SUM(E47*C47) -> 40000
A48: 6.2 | B48: Shared Paths (3.0m wide,125 mm, residential, as per MPA) | C48: =J17 -> 340 | D48: Lm | E48: 130 | F48: =SUM(E48*C48) -> 44200
A49: 6.3 | B49: Footpaths (1.5m wide,125 mm, residential, as per MPA) | C49: =J14 -> 200 | D49: Lm | E49: 65 | F49: =SUM(E49*C49) -> 13000
A50: 6.4 | B50: Laybacks and tactile pavers | C50: 6 | D50: No | E50: 850 | F50: =SUM(E50*C50) -> 5100
A51: 6.5 | B51: 10m concrete maintenance area end of all islands | C51: =J16 -> 25 | D51: m² | E51: 85 | F51: =SUM(E51*C51) -> 2125
A52: 7 | B52: TRAFFIC SIGNAL WORKS | G52: =SUM(F52:F60) -> 248500
A53: 7.1 | B53: General items | C53: 1 | D53: Item | E53: 23000 | F53: =SUM(E53*C53) -> 23000
A54: 7.2 | B54: Conduits | C54: 1 | D54: Item | E54: 20000 | F54: 20000
A55: 7.3 | B55: Pedestals | C55: 1 | D55: Item | E55: 47000 | F55: 47000
A56: 7.4 | B56: Lanterns | C56: 1 | D56: Item | E56: 20000 | F56: 20000
A57: 7.5 | B57: Controller | C57: 1 | D57: Item | E57: 75000 | F57: 75000
A58: 7.6 | B58: Detectors | C58: 1 | D58: Item | E58: 9500 | F58: 9500
A59: 7.7 | B59: Cabling & connections | C59: 1 | D59: Item | E59: 45000 | F59: 45000
A60: 7.8 | B60: Clean-up | C60: 1 | D60: Item | E60: 9000 | F60: 9000
A61: 8 | B61: SIGNAL MAINTENANCE (10 YEARS) by Road Authority | C61: 1 | D61: item | E61: 100000 | F61: 100000 | G61: =F61 -> 100000
A62: 9 | B62: POWER & LIGHTING | G62: =SUM(F63:F68) -> 112000
A63: 9.1 | B63: Light pole (1-way) and luminous lights | C63: 4 | D63: No | E63: 8000 | F63: 32000
A64: 9.2 | B64: Light pole (2-way) and luminous lights | C64: 2 | D64: No | E64: 9000 | F64: 18000
A65: 9.3 | B65: JUP lighting single | C65: 3 | D65: No | E65: 4000 | F65: 12000
A66: 9.4 | B66: JUP lighting dual | C66: 1 | D66: No | E66: 5000 | F66: 5000
A67: 9.5 | B67: Cabling, conduits and pits | C67: 1 | D67: Item | E67: 30000 | F67: 30000
A68: 9.6 | B68: Electrical connection | C68: 1 | D68: Item | E68: 15000 | F68: 15000
A69: 10 | B69: LANDSCAPING WORKS | G69: =SUM(F69:F71) -> 11900
A70: 10.1 | B70: Topsoiling seeding | C70: =J12*1.5+J14*1 -> 1400 | D70: m² | E70: 8.5 | F70: =SUM(E70*C70) -> 11900
A71: 10.2 | B71: Landcape planting | C71: 0 | D71: NA
A72: 11 | B72: SIGNING | C72: 1 | D72: item | E72: 7500 | F72: 7500 | G72: =F72 -> 7500
A73: 12 | B73: LINEMARKING (Thermoplastic) | C73: 1 | D73: item | E73: 20000 | F73: 20000 | G73: =F73 -> 20000
A74: 13 | B74: SERVICE RELOCATION | G74: =SUM(F74:F76) -> 0
A75: 13.1 | B75: (Water, gas, telstra) No allowance | D75: item
A76: 13.2 | B76: (Overhead electrical) No allowance | D76: item
A77: 14 | B77: MISCELLANEOUS | G77: =F77 -> 0
A78: 15 | B78: PROVISIONAL SUM - DAYWORK | D78: item | F78: =SUM(E78*C78) -> 0 | G78: =F78 -> 0
B80: TOTAL A - C | F80: =SUM(F25:F79,F7:F23) -> 1936465.431 | G80: =SUM(G24+G15+G7) -> 1936465.431
A82: D | B82: Contingency
B83: =Summary!B17 -> Contingency (15% of C) | F83: 0.15 | G83: =F83*G24 -> 254073.75
A85: E | B85: PROJECT BUDGET
B86: Total Estimate | G86: =G83+G80 -> 2190539.181
A89: Notes:
A90: - | B90: Earthworks based on a concept vertical grade alignment
A92: Services
A93: 1 | B93: Service relocation / alterations have not been allowed for in the estimate
A94: 2 | B94: No allowance for water, gas, telstra, sewer
A95: Substations
A96: 3 | B96: No allowance for substations
A97: Preliminaries
A98: 4 | B98: Based on nominal rates
A99: Subsoil Drain
A100: 5 | B100: Assume same as kerb and channel
A101: Side Entry Pits
A102: 6 | B102: Based on 50 m intervals
A103: Tactile Pavers
A104: 7 | B104: Assume hazard TGSI's (no directional)
A105: Signing
A106: 8 | B106: Nominal rate
A107: Pavement
A108: 9 | B108: Assume deep lift asphalt pavement
A109: Tree Removal
A110: 10 | B110: Based on preliminary information
A111: Roads
A112: 11 | B112: Where applicable, existing road conditions based on limited crushed rock roads assumed to be of no consequence to works
A113: 12 | B113: Where applicable, existing asphalt roads to be demolished as part of intersection works
A114: Dry Stone Wall
A115: 13 | B115: Dry stone wall works allowance has assumed the wall is not heritage listed and does not need to be reconstructed
A117: AUTHOR: | B117: Jack Hume
A118: Date: | B118: 2014-12-05
A120: REVIEWER: | B120: Rob Henry
A121: Date: | B121: 2014-12-05

Sheet IN-15
A1: PRELIMINARY ESTIMATE OF DEVELOPMENT COSTS | G1: =Summary!A5 -> 2015-05-14
A2: =Summary!A3 -> CG140690 | G2: =Summary!A6 -> Version 11
A3: =Summary!A4 -> Wollert PSP - Intersection Cost Estimate | C3: PM %: | D3: 0.0956
A4: Intersection Ref: | B4: =J7 -> IN-15 | E4: DRAFT | I4: Do not Delete the below info
A5: Sheet Ref: | B5: =Summary!O9 -> (18-CHR)
A6: ITEM | B6: DESCRIPTION | C6: QUANTITY | D6: UNIT | E6: RATE | F6: AMOUNT | G6: SUBTOTAL | I6: Sheet Specific Information | J6: Input | K6: Unit | L6: Cell Reference
A7: A | B7: =Summary!B10 -> Project and Program Management (%) | G7: =SUM(F7:F14) -> 80290.138 | I7: Intersection Name | J7: IN-15 | L7: A4
B8: Project Management | D8: 0.03 | E8: =($D$3/0.1)*D8 -> 0.02868 | F8: =E8*$G$24 -> 48174.0828 | I8: Existing Road Directions | J8: N-S | L8: B105
B9: Project scoping, planning, scheduling, monitoring, reporting and commissioning | I9: Previous Road area | K9: m2
B10: Management of preconstruction activities, development of tender documents and management of contracts | I10: Total Roadway Area | J10: 4000 | K10: m2
B11: Managing external interfaces, including community liaison, environmental issues, traffic issues etc | I11: Island Area | J11: 300 | K11: m2
B12: Records management | I12: Kerb and Channel | J12: 800 | K12: Lm
B13: Program Administration | D13: 0.02 | E13: =($D$3/0.1)*D13 -> 0.01912 | F13: =E13*$G$24 -> 32116.0552 | I13: Shoulder | J13: 0 | K13: Lm
I14: Footpath Length | J14: 200 | K14: Lm
A15: B | B15: =Summary!B11 -> Design and Investigation (%) | G15: =SUM(F15:F23) -> 160580.276 | I15: Pipe Length | J15: 450 | K15: Lm
B16: Traffic Investigations | D16: 0.0085 | E16: =($D$3/0.1)*D16 -> 0.008126 | F16: =E16*$G$24 -> 13649.32346 | I16: Island Concrete infill | J16: 25 | K16: m2
B17: Cadastral and Engineering Survey | D17: 0.012 | E17: 0.011472 | F17: 19269.63312 | I17: Shared Path Length | J17: 340 | K17: Lm
B18: Geotechnical investigations Pavement Investigations and Design | D18: 0.012 | E18: 0.011472 | F18: 19269.63312
B19: Environmental Investigations | E19: 0 | F19: 0
B20: Landscape Design | E20: 0 | F20: 0
B21: Preliminary and Final Design | D21: 0.0425 | E21: 0.04063 | F21: 68246.6173
B22: Construction Management | D22: 0.025 | E22: 0.0239 | F22: 40145.069 | I22: 2.5% of construction cost | J22: =0.025*G24 -> 41992.75
A24: C | B24: Construction | F24: =SUM(F25:F80) -> 1679710 | G24: =SUM(G25:G79) -> 1679710
A25: 1 | G25: =SUM(F25:F28) -> 50500
A26: 1.1 | B26: Site establishment | C26: 1 | D26: Item | E26: 8000 | F26: =SUM(E26*C26) -> 8000
A27: 1.2 | B27: Site management & supervision including QA | C27: 13 | D27: wks | E27: 2500 | F27: =SUM(E27*C27) -> 32500
A28: 1.3 | B28: Provision for traffic | C28: 1 | D28: Item | E28: 10000 | F28: =SUM(E28*C28) -> 10000
A29: 2 | B29: DEMOLITION | G29: =SUM(F29:F32) -> 7000
A30: 2.1 | B30: Trees | C30: 4 | D30: No | E30: 500 | F30: =SUM(E30*C30) -> 2000
A31: 2.2 | B31: Dry stone wall demolition & make good | C31: 1 | D31: item | E31: 5000 | F31: =SUM(E31*C31) -> 5000
A32: 3 | B32: EARTHWORKS | G32: =SUM(F32:F38) -> 251385
A33: 3.1 | B33: Stripping topsoil (150mm) | C33: =0.34*J10 -> 1360 | D33: m² | E33: 6 | F33: =SUM(E33*C33) -> 8160
A34: 3.2 | B34: Excavation and removal | C34: =C40*0.18 -> 810 | D34: m³ | E34: 30 | F34: =SUM(E34*C34) -> 24300
A35: 3.3 | B35: Filling | C35: =C40*0.71 -> 3195 | D35: m³ | E35: 15 | F35: =C35*E35 -> 47925
A36: 3.4 | B36: Soft spot rectification | C36: =C40*20% -> 900 | D36: m³ | E36: 15 | F36: =SUM(E36*C36) -> 13500
A37: 3.5 | B37: Rock excavation & sub-surface remediation 450mm | C37: =C40*50% -> 2250 | D37: m² | E37: =55+15 -> 70 | F37: =SUM(E37*C37) -> 157500
A38: 4 | B38: PAVEMENT | G38: =SUM(F38:F42) -> 636000
A39: 4.1 | B39: Deep lift asphalt 195 mm | C39: =J10-J11-J13 -> 3700 | D39: m² | E39: =IF(C39<15000,105,85) -> 105 | F39: =SUM(E39*C39) -> 388500
A40: 4.2 | B40: Subbase course - 250 mm 3% CTCR | C40: =C39+(J12*1)+C41*0.3 -> 4500 | D40: m² | E40: 55 | F40: =SUM(E40*C40) -> 247500
A41: 4.3 | B41: Shoulder 1m wide - full depth pavement | C41: =J13 -> 0 | D41: m | E41: 145 | F41: =SUM(E41*C41) -> 0
A42: 5 | B42: DRAINAGE | G42: =SUM(F43:F47) -> 130500
A43: 5.1 | B43: Subsoil drains 100mm dia - screenings | C43: =J12+J13 -> 800 | D43: Lm | E43: 30 | F43: =SUM(E43*C43) -> 24000
A44: 5.2 | B44: Subsoil drains 100mm dia - no fines conc | C44: 0 | D44: Lm | E44: 45 | F44: =SUM(E44*C44) -> 0
A45: 5.3 | B45: 375 RCP (class 2) | C45: =J15 -> 450 | D45: Lm | E45: 170 | F45: =SUM(E45*C45) -> 76500
A46: 5.4 | B46: Side entry pits | C46: 12 | D46: No | E46: 2500 | F46: =SUM(E46*C46) -> 30000
A47: 6 | B47: CONCRETE WORKS | G47: =SUM(F47:F52) -> 104425
A48: 6.1 | B48: Kerb &channel | C48: =J12 -> 800 | D48: Lm | E48: 50 | F48: =SUM(E48*C48) -> 40000
A49: 6.2 | B49: Shared Paths (3.0m wide,125 mm, residential, as per MPA) | C49: =J17 -> 340 | D49: Lm | E49: 130 | F49: =SUM(E49*C49) -> 44200
A50: 6.3 | B50: Footpaths (1.5m wide,125 mm, residential, as per MPA) | C50: =J14 -> 200 | D50: Lm | E50: 65 | F50: =SUM(E50*C50) -> 13000
A51: 6.4 | B51: Laybacks and tactile pavers | C51: 6 | D51: No | E51: 850 | F51: =SUM(E51*C51) -> 5100
A52: 6.5 | B52: 10m concrete maintenance area end of all islands | C52: =J16 -> 25 | D52: m² | E52: 85 | F52: =SUM(E52*C52) -> 2125
A53: 7 | B53: TRAFFIC SIGNAL WORKS | G53: =SUM(F53:F61) -> 248500
A54: 7.1 | B54: General items | C54: 1 | D54: Item | E54: 23000 | F54: =SUM(E54*C54) -> 23000
A55: 7.2 | B55: Conduits | C55: 1 | D55: Item | E55: 20000 | F55: 20000
A56: 7.3 | B56: Pedestals | C56: 1 | D56: Item | E56: 47000 | F56: 47000
A57: 7.4 | B57: Lanterns | C57: 1 | D57: Item | E57: 20000 | F57: 20000
A58: 7.5 | B58: Controller | C58: 1 | D58: Item | E58: 75000 | F58: 75000
A59: 7.6 | B59: Detectors | C59: 1 | D59: Item | E59: 9500 | F59: 9500
A60: 7.7 | B60: Cabling & connections | C60: 1 | D60: Item | E60: 45000 | F60: 45000
A61: 7.8 | B61: Clean-up | C61: 1 | D61: Item | E61: 9000 | F61: 9000
A62: 8 | B62: SIGNAL MAINTENANCE (10 YEARS) by Road Authority | C62: 1 | D62: item | E62: 100000 | F62: 100000 | G62: =F62 -> 100000
A63: 9 | B63: POWER & LIGHTING | G63: =SUM(F64:F69) -> 112000
A64: 9.1 | B64: Light pole (1-way) and luminous lights | C64: 4 | D64: No | E64: 8000 | F64: 32000
A65: 9.2 | B65: Light pole (2-way) and luminous lights | C65: 2 | D65: No | E65: 9000 | F65: 18000
A66: 9.3 | B66: JUP lighting single | C66: 3 | D66: No | E66: 4000 | F66: 12000
A67: 9.4 | B67: JUP lighting dual | C67: 1 | D67: No | E67: 5000 | F67: 5000
A68: 9.5 | B68: Cabling, conduits and pits | C68: 1 | D68: Item | E68: 30000 | F68: 30000
A69: 9.6 | B69: Electrical connection | C69: 1 | D69: Item | E69: 15000 | F69: 15000
A70: 10 | B70: LANDSCAPING WORKS | G70: =SUM(F70:F72) -> 11900
A71: 10.1 | B71: Topsoiling seeding | C71: =J12*1.5+J14*1 -> 1400 | D71: m² | E71: 8.5 | F71: =SUM(E71*C71) -> 11900
A72: 10.2 | B72: Landcape planting | C72: 0 | D72: NA
A73: 11 | B73: SIGNING | C73: 1 | D73: item | E73: 7500 | F73: 7500 | G73: =F73 -> 7500
A74: 12 | B74: LINEMARKING (Thermoplastic) | C74: 1 | D74: item | E74: 20000 | F74: 20000 | G74: =F74 -> 20000
A75: 13 | B75: SERVICE RELOCATION | G75: =SUM(F75:F77) -> 0
A76: 13.1 | B76: (Water, gas, telstra) No allowance | D76: item
A77: 13.2 | B77: (Overhead electrical) No allowance | D77: item
A78: 14 | B78: MISCELLANEOUS | G78: =F78 -> 0
A79: 15 | B79: PROVISIONAL SUM - DAYWORK | D79: item | F79: =SUM(E79*C79) -> 0 | G79: =F79 -> 0
B81: TOTAL A - C | F81: =SUM(F25:F80,F7:F23) -> 1920580.414 | G81: =SUM(G24+G15+G7) -> 1920580.414
A83: D | B83: Contingency
B84: =Summary!B17 -> Contingency (15% of C) | F84: 0.15 | G84: =F84*G24 -> 251956.5
A86: E | B86: PROJECT BUDGET
B87: Total Estimate | G87: =G84+G81 -> 2172536.914
A90: Notes:
A91: - | B91: Earthworks based on a concept vertical grade alignment
A93: Services
A94: 1 | B94: Service relocation / alterations have not been allowed for in the estimate
A95: 2 | B95: No allowance for water, gas, telstra, sewer
A96: Substations
A97: 3 | B97: No allowance for substations
A98: Preliminaries
A99: 4 | B99: Based on nominal rates
A100: Subsoil Drain
A101: 5 | B101: Assume same as kerb and channel
A102: Side Entry Pits
A103: 6 | B103: Based on 50 m intervals
A104: Tactile Pavers
A105: 7 | B105: Assume hazard TGSI's (no directional)
A106: Signing
A107: 8 | B107: Nominal rate
A108: Pavement
A109: 9 | B109: Assume deep lift asphalt pavement
A110: Tree Removal
A111: 10 | B111: Based on preliminary information
A112: Roads
A113: 11 | B113: Where applicable, existing road conditions based on limited crushed rock roads assumed to be of no consequence to works
A114: 12 | B114: Where applicable, existing asphalt roads to be demolished as part of intersection works
A115: Dry Stone Wall
A116: 13 | B116: Dry stone wall works allowance has assumed the wall is not heritage listed and does not need to be reconstructed
A118: AUTHOR: | B118: Jack Hume
A119: Date: | B119: 2014-12-05
A121: REVIEWER: | B121: Rob Henry
A122: Date: | B122: 2014-12-05

Sheet IN-18-T04
A1: PRELIMINARY ESTIMATE OF DEVELOPMENT COSTS | G1: =Summary!A5 -> 2015-05-14
A2: =Summary!A3 -> CG140690 | G2: =Summary!A6 -> Version 11
A3: =Summary!A4 -> Wollert PSP - Intersection Cost Estimate | C3: PM %: | D3: 0.0938
A4: Intersection Ref: | B4: =J7 -> IN-18-D | E4: DRAFT | I4: Do not Delete the below info
A5: Sheet Ref: | B5: =Summary!P9 -> T04-18P3
A6: ITEM | B6: DESCRIPTION | C6: QUANTITY | D6: UNIT | E6: RATE | F6: AMOUNT | G6: SUBTOTAL | I6: Sheet Specific Information | J6: Input | K6: Unit | L6: Cell Reference
A7: A | B7: =Summary!B10 -> Project and Program Management (%) | G7: =SUM(F7:F14) -> 92094.49322 | I7: Intersection Name | J7: IN-18-D | L7: A4
B8: Project Management | D8: 0.03 | E8: =($D$3/0.1)*D8 -> 0.02814 | F8: =E8*$G$24 -> 55256.69593 | I8: Existing Road Directions | J8: N-S | L8: B105
B9: Project scoping, planning, scheduling, monitoring, reporting and commissioning | I9: Previous Road area | K9: m2
B10: Management of preconstruction activities, development of tender documents and management of contracts | I10: Total Roadway Area | J10: 4650 | K10: m2
B11: Managing external interfaces, including community liaison, environmental issues, traffic issues etc | I11: Island Area | J11: 575 | K11: m2
B12: Records management | I12: Kerb and Channel | J12: =700+200+120 -> 1020 | K12: Lm
B13: Program Administration | D13: 0.02 | E13: =($D$3/0.1)*D13 -> 0.01876 | F13: =E13*$G$24 -> 36837.79729 | I13: Shoulder | J13: 0 | K13: Lm
I14: Footpath Length | J14: =100+85 -> 185 | K14: Lm
A15: B | B15: =Summary!B11 -> Design and Investigation (%) | G15: =SUM(F15:F23) -> 184188.9864 | I15: Pipe Length | J15: 380 | K15: Lm
B16: Traffic Investigations | D16: 0.0085 | E16: =($D$3/0.1)*D16 -> 0.007973 | F16: =E16*$G$24 -> 15656.06385 | I16: Island Concrete infill | J16: =25+25+30+40+150 -> 270 | K16: m2
B17: Cadastral and Engineering Survey | D17: 0.012 | E17: 0.011256 | F17: 22102.67837 | I17: Shared Path Length | J17: =270+15+105 -> 390 | K17: Lm
B18: Geotechnical investigations Pavement Investigations and Design | D18: 0.012 | E18: 0.011256 | F18: 22102.67837
B19: Environmental Investigations | E19: 0 | F19: 0
B20: Landscape Design | E20: 0 | F20: 0
B21: Preliminary and Final Design | D21: 0.0425 | E21: 0.039865 | F21: 78280.31924
B22: Construction Management | D22: 0.025 | E22: 0.02345 | F22: 46047.24661 | I22: 2.5% of construction cost | J22: =0.025*G24 -> 49090.88125
A24: C | B24: Construction | F24: =SUM(F25:F83) -> 1963635.25 | G24: =SUM(G25:G82) -> 1963635.25
A25: 1 | G25: =SUM(F25:F28) -> 53000
A26: 1.1 | B26: Site establishment | C26: 1 | D26: Item | E26: 8000 | F26: =SUM(E26*C26) -> 8000
A27: 1.2 | B27: Site management & supervision including QA | C27: 14 | D27: wks | E27: 2500 | F27: =SUM(E27*C27) -> 35000
A28: 1.3 | B28: Provision for traffic | C28: 1 | D28: Item | E28: 10000 | F28: =SUM(E28*C28) -> 10000
A29: 2 | B29: DEMOLITION | G29: =SUM(F29:F32) -> 7000
A30: 2.1 | B30: Trees | C30: 4 | D30: No | E30: 500 | F30: =SUM(E30*C30) -> 2000
A31: 2.2 | B31: Dry stone wall demolition & make good | C31: 1 | D31: item | E31: 5000 | F31: =SUM(E31*C31) -> 5000
A32: 3 | B32: EARTHWORKS | G32: =SUM(F32:F39) -> 406386.5
A33: 3.1 | B33: Stripping topsoil (150mm) | C33: =0.34*J10 -> 1581 | D33: m² | E33: 6 | F33: =SUM(E33*C33) -> 9486
A34: 3.2 | B34: Excavation and removal | C34: =C41*0.18 -> 917.1 | D34: m³ | E34: 30 | F34: =SUM(E34*C34) -> 27513
A35: 3.3 | B35: Filling | C35: =C41*0.71 -> 3617.45 | D35: m³ | E35: 15 | F35: =C35*E35 -> 54261.75
A36: 3.4 | B36: Import Fill material | C36: =C35-C34 -> 2700.35 | D36: m³ | E36: 45 | F36: =C36*E36 -> 121515.75
A37: 3.5 | B37: Soft spot rectification | C37: =C41*20% -> 1019 | D37: m³ | E37: 15 | F37: =SUM(E37*C37) -> 15285
A38: 3.6 | B38: Rock excavation & sub-surface remediation 450mm | C38: =C41*50% -> 2547.5 | D38: m² | E38: =55+15 -> 70 | F38: =SUM(E38*C38) -> 178325
A39: 4 | B39: PAVEMENT | G39: =SUM(F39:F43) -> 708100
A40: 4.1 | B40: Deep lift asphalt 195 mm | C40: =J10-J11-J13 -> 4075 | D40: m² | E40: =IF(C40<15000,105,85) -> 105 | F40: =SUM(E40*C40) -> 427875
A41: 4.2 | B41: Subbase course - 250 mm 3% CTCR | C41: =C40+(J12*1)+C42*0.3 -> 5095 | D41: m² | E41: 55 | F41: =SUM(E41*C41) -> 280225
A42: 4.3 | B42: Shoulder 1m wide - full depth pavement | C42: =J13 -> 0 | D42: m | E42: 145 | F42: =SUM(E42*C42) -> 0
A43: 5 | B43: DRAINAGE | G43: =SUM(F44:F49) -> 158700
A44: 5.1 | B44: Subsoil drains 100mm dia - screenings | C44: =J12+J13 -> 1020 | D44: Lm | E44: 30 | F44: =SUM(E44*C44) -> 30600
A45: 5.2 | B45: Subsoil drains 100mm dia - no fines conc | C45: 0 | D45: Lm | E45: 45 | F45: =SUM(E45*C45) -> 0
A46: 5.3 | B46: 375 RCP (class 2) | C46: =J15 -> 380 | D46: Lm | E46: 170 | F46: =SUM(E46*C46) -> 64600
A47: 5.4 | B47: Side entry pits | C47: 13 | D47: No | E47: 2500 | F47: =SUM(E47*C47) -> 32500
A48: 5.5 | B48: Allowance tomodify draiange to ultimate location | C48: 1 | D48: item | E48: =5*(2500+2000+10*E46) -> 31000 | F48: =SUM(E48*C48) -> 31000
A49: 6 | B49: CONCRETE WORKS | G49: =SUM(F49:F54) -> 141775
A50: 6.1 | B50: Kerb &channel | C50: =J12 -> 1020 | D50: Lm | E50: 50 | F50: =SUM(E50*C50) -> 51000
A51: 6.2 | B51: Shared Paths (3.0m wide,125 mm, residential, as per MPA) | C51: =J17 -> 390 | D51: Lm | E51: 130 | F51: =SUM(E51*C51) -> 50700
A52: 6.3 | B52: Footpaths (1.5m wide,125 mm, residential, as per MPA) | C52: =J14 -> 185 | D52: Lm | E52: 65 | F52: =SUM(E52*C52) -> 12025
A53: 6.4 | B53: Laybacks and tactile pavers | C53: 6 | D53: No | E53: 850 | F53: =SUM(E53*C53) -> 5100
A54: 6.5 | B54: 10m concrete maintenance area end of all islands | C54: =J16 -> 270 | D54: m² | E54: 85 | F54: =SUM(E54*C54) -> 22950
A55: 7 | B55: TRAFFIC SIGNAL WORKS | G55: =SUM(F55:F63) -> 237500
A56: 7.1 | B56: General items | C56: 1 | D56: Item | E56: 23000 | F56: =SUM(E56*C56) -> 23000
A57: 7.2 | B57: Conduits | C57: 1 | D57: Item | E57: 18000 | F57: 18000
A58: 7.3 | B58: Pedestals | C58: 1 | D58: Item | E58: 45000 | F58: 45000
A59: 7.4 | B59: Lanterns | C59: 1 | D59: Item | E59: 18000 | F59: 18000
A60: 7.5 | B60: Controller | C60: 1 | D60: Item | E60: 75000 | F60: 75000
A61: 7.6 | B61: Detectors | C61: 1 | D61: Item | E61: 9500 | F61: 9500
A62: 7.7 | B62: Cabling & connections | C62: 1 | D62: Item | E62: 40000 | F62: 40000
A63: 7.8 | B63: Clean-up | C63: 1 | D63: Item | E63: 9000 | F63: 9000
A64: 8 | B64: SIGNAL MAINTENANCE (10 YEARS) by Road Authority | C64: 1 | D64: item | E64: 100000 | F64: 100000 | G64: =F64 -> 100000
A65: 9 | B65: POWER & LIGHTING | G65: =SUM(F66:F71) -> 118000
A66: 9.1 | B66: Light pole (1-way) and luminous lights | C66: 3 | D66: No | E66: 8000 | F66: 24000
A67: 9.2 | B67: Light pole (2-way) and luminous lights | C67: 4 | D67: No | E67: 9000 | F67: 36000
A68: 9.3 | B68: JUP lighting single | C68: 2 | D68: No | E68: 4000 | F68: 8000
A69: 9.4 | B69: JUP lighting dual | C69: 1 | D69: No | E69: 5000 | F69: 5000
A70: 9.5 | B70: Cabling, conduits and pits | C70: 1 | D70: Item | E70: 30000 | F70: 30000
A71: 9.6 | B71: Electrical connection | C71: 1 | D71: Item | E71: 15000 | F71: 15000
A72: 10 | B72: LANDSCAPING WORKS | G72: =SUM(F72:F73) -> 5673.75
A73: 10.1 | B73: Topsoiling seeding | C73: =J14*1.5+J17*1 -> 667.5 | D73: m² | E73: 8.5 | F73: =SUM(E73*C73) -> 5673.75
A74: 10.2 | B74: Landcape planting | C74: 0 | D74: NA
A75: 11 | B75: SIGNING | C75: 1 | D75: item | E75: 7500 | F75: 7500 | G75: =F75 -> 7500
A76: 12 | B76: LINEMARKING (Thermoplastic) | C76: 1 | D76: item | E76: 20000 | F76: 20000 | G76: =F76 -> 20000
A77: 13 | B77: SERVICE RELOCATION | G77: =SUM(F77:F79) -> 0
A78: 13.1 | B78: (Water, gas, telstra) No allowance | D78: item
A79: 13.2 | B79: (Overhead electrical) No allowance | D79: item
A80: 14 | B80: MISCELLANEOUS | G80: =F80 -> 0
A81: 14.1 | B81: (Water, gas, telstra) No allowance | D81: item
A82: 15 | B82: PROVISIONAL SUM - DAYWORK | D82: item | F82: =SUM(E82*C82) -> 0 | G82: =F82 -> 0
B84: TOTAL A - C | F84: =SUM(F25:F83,F7:F23) -> 2239918.73 | G84: =SUM(G24+G15+G7) -> 2239918.73
A86: D | B86: Contingency
B87: =Summary!B17 -> Contingency (15% of C) | F87: 0.15 | G87: =F87*G24 -> 294545.2875
A89: E | B89: PROJECT BUDGET
B90: Total Estimate | G90: =G87+G84 -> 2534464.017
A93: Notes:
A94: - | B94: Earthworks based on a concept vertical grade alignment
A96: Services
A97: 1 | B97: Service relocation / alterations have not been allowed for in the estimate
A98: 2 | B98: No allowance for water, gas, telstra, sewer
A99: Substations
A100: 3 | B100: No allowance for substations
A101: Preliminaries
A102: 4 | B102: Based on nominal rates
A103: Subsoil Drain
A104: 5 | B104: Assume same as kerb and channel
A105: Side Entry Pits
A106: 6 | B106: Based on 50 m intervals
A107: Tactile Pavers
A108: 7 | B108: Assume hazard TGSI's (no directional)
A109: Signing
A110: 8 | B110: Nominal rate
A111: Pavement
A112: 9 | B112: Assume deep lift asphalt pavement
A113: Tree Removal
A114: 10 | B114: Based on preliminary information
A115: Roads
A116: 11 | B116: Where applicable, existing road conditions based on limited crushed rock roads assumed to be of no consequence to works
A117: 12 | B117: Where applicable, existing asphalt roads to be demolished as part of intersection works
A118: Dry Stone Wall
A119: 13 | B119: Dry stone wall works allowance has assumed the wall is not heritage listed and does not need to be reconstructed
A121: AUTHOR: | B121: Jack Hume
A122: Date: | B122: 2014-12-05
A124: REVIEWER: | B124: Rob Henry
A125: Date: | B125: 2014-12-05

Sheet IN-18-T06
A1: PRELIMINARY ESTIMATE OF DEVELOPMENT COSTS | G1: =Summary!A5 -> 2015-05-14
A2: =Summary!A3 -> CG140690 | G2: =Summary!A6 -> Version 11
A3: =Summary!A4 -> Wollert PSP - Intersection Cost Estimate | C3: PM %: | D3: 0.0922
A4: Intersection Ref: | B4: =J7 -> IN-18-VR | E4: DRAFT | I4: Do not Delete the below info
A5: Sheet Ref: | B5: =Summary!Q9 -> T06-18P3
A6: ITEM | B6: DESCRIPTION | C6: QUANTITY | D6: UNIT | E6: RATE | F6: AMOUNT | G6: SUBTOTAL | I6: Sheet Specific Information | J6: Input | K6: Unit | L6: Cell Reference
A7: A | B7: =Summary!B10 -> Project and Program Management (%) | G7: =SUM(F7:F14) -> 103792.9721 | I7: Intersection Name | J7: IN-18-VR | L7: A4
B8: Project Management | D8: 0.03 | E8: =($D$3/0.1)*D8 -> 0.02766 | F8: =E8*$G$24 -> 62275.78329 | I8: Existing Road Directions | J8: N-S | L8: B105
B9: Project scoping, planning, scheduling, monitoring, reporting and commissioning | I9: Previous Road area | K9: m2
B10: Management of preconstruction activities, development of tender documents and management of contracts | I10: Total Roadway Area | J10: 6900 | K10: m2
B11: Managing external interfaces, including community liaison, environmental issues, traffic issues etc | I11: Island Area | J11: 2300 | K11: m2
B12: Records management | I12: Kerb and Channel | J12: =830+180+75+275+235-210 -> 1385 | K12: Lm
B13: Program Administration | D13: 0.02 | E13: =($D$3/0.1)*D13 -> 0.01844 | F13: =E13*$G$24 -> 41517.18886 | I13: Shoulder | J13: 210 | K13: Lm
I14: Footpath Length | J14: 185 | K14: Lm
A15: B | B15: =Summary!B11 -> Design and Investigation (%) | G15: =SUM(F15:F23) -> 207585.9443 | I15: Pipe Length | J15: 450 | K15: Lm
B16: Traffic Investigations | D16: 0.0085 | E16: =($D$3/0.1)*D16 -> 0.007837 | F16: =E16*$G$24 -> 17644.80526 | I16: Island Concrete infill | J16: =100+25+25+150+30+170 -> 500 | K16: m2
B17: Cadastral and Engineering Survey | D17: 0.012 | E17: 0.011064 | F17: 24910.31331 | I17: Shared Path Length | J17: 390 | K17: Lm
B18: Geotechnical investigations Pavement Investigations and Design | D18: 0.012 | E18: 0.011064 | F18: 24910.31331
B19: Environmental Investigations | E19: 0 | F19: 0
B20: Landscape Design | E20: 0 | F20: 0
B21: Preliminary and Final Design | D21: 0.0425 | E21: 0.039185 | F21: 88224.02632
B22: Construction Management | D22: 0.025 | E22: 0.02305 | F22: 51896.48607 | I22: 2.5% of construction cost | J22: =0.025*G24 -> 56286.86125
A24: C | B24: Construction | F24: =SUM(F25:F81) -> 2251474.45 | G24: =SUM(G25:G80) -> 2251474.45
A25: 1 | G25: =SUM(F25:F28) -> 58000
A26: 1.1 | B26: Site establishment | C26: 1 | D26: Item | E26: 8000 | F26: =SUM(E26*C26) -> 8000
A27: 1.2 | B27: Site management & supervision including QA | C27: 16 | D27: wks | E27: 2500 | F27: =SUM(E27*C27) -> 40000
A28: 1.3 | B28: Provision for traffic | C28: 1 | D28: Item | E28: 10000 | F28: =SUM(E28*C28) -> 10000
A29: 2 | B29: DEMOLITION | G29: =SUM(F29:F32) -> 7000
A30: 2.1 | B30: Trees | C30: 4 | D30: No | E30: 500 | F30: =SUM(E30*C30) -> 2000
A31: 2.2 | B31: Dry stone wall demolition & make good | C31: 1 | D31: item | E31: 5000 | F31: =SUM(E31*C31) -> 5000
A32: 3 | B32: EARTHWORKS | G32: =SUM(F32:F39) -> 492328.2
A33: 3.1 | B33: Stripping topsoil (150mm) | C33: =J10+J12*1+J13*1.3-J11-J9 -> 6258 | D33: m² | E33: 6 | F33: =SUM(E33*C33) -> 37548
A34: 3.2 | B34: Excavation and removal | C34: =C41*0.18 -> 1050.84 | D34: m³ | E34: 30 | F34: =SUM(E34*C34) -> 31525.2
A35: 3.3 | B35: Filling | C35: =C41*0.71 -> 4144.98 | D35: m³ | E35: 15 | F35: =C35*E35 -> 62174.7
A36: 3.4 | B36: Import Fill material | C36: =C35-C34 -> 3094.14 | D36: m³ | E36: 45 | F36: =C36*E36 -> 139236.3
A37: 3.4 | B37: Soft spot rectification | C37: =C41*20% -> 1167.6 | D37: m³ | E37: 15 | F37: =SUM(E37*C37) -> 17514
A38: 3.5 | B38: Rock excavation & sub-surface remediation 450mm | C38: =C41*50% -> 2919 | D38: m² | E38: =55+15 -> 70 | F38: =SUM(E38*C38) -> 204330
A39: 4 | B39: PAVEMENT | G39: =SUM(F39:F43) -> 812490
A40: 4.1 | B40: Deep lift asphalt 195 mm | C40: =J10-J11-J13 -> 4390 | D40: m² | E40: =IF(C40<15000,105,85) -> 105 | F40: =SUM(E40*C40) -> 460950
A41: 4.2 | B41: Subbase course - 250 mm 3% CTCR | C41: =C40+(J12*1)+C42*0.3 -> 5838 | D41: m² | E41: 55 | F41: =SUM(E41*C41) -> 321090
A42: 4.3 | B42: Shoulder 1m wide - full depth pavement | C42: =J13 -> 210 | D42: m | E42: 145 | F42: =SUM(E42*C42) -> 30450
A43: 5 | B43: DRAINAGE | G43: =SUM(F44:F48) -> 156850
A44: 5.1 | B44: Subsoil drains 100mm dia - screenings | C44: =J12+J13 -> 1595 | D44: Lm | E44: 30 | F44: =SUM(E44*C44) -> 47850
A45: 5.2 | B45: Subsoil drains 100mm dia - no fines conc | C45: 0 | D45: Lm | E45: 45 | F45: =SUM(E45*C45) -> 0
A46: 5.3 | B46: 375 RCP (class 2) | C46: =J15 -> 450 | D46: Lm | E46: 170 | F46: =SUM(E46*C46) -> 76500
A47: 5.4 | B47: Side entry pits | C47: 13 | D47: No | E47: 2500 | F47: =SUM(E47*C47) -> 32500
A48: 6 | B48: CONCRETE WORKS | G48: =SUM(F48:F53) -> 179575
A49: 6.1 | B49: Kerb &channel | C49: =J12 -> 1385 | D49: Lm | E49: 50 | F49: =SUM(E49*C49) -> 69250
A50: 6.2 | B50: Shared Paths (3.0m wide,125 mm, residential, as per MPA) | C50: =J17 -> 390 | D50: Lm | E50: 130 | F50: =SUM(E50*C50) -> 50700
A51: 6.3 | B51: Footpaths (1.5m wide,125 mm, residential, as per MPA) | C51: =J14 -> 185 | D51: Lm | E51: 65 | F51: =SUM(E51*C51) -> 12025
A52: 6.4 | B52: Laybacks and tactile pavers | C52: 6 | D52: No | E52: 850 | F52: =SUM(E52*C52) -> 5100
A53: 6.5 | B53: 10m concrete maintenance area end of all islands | C53: =J16 -> 500 | D53: m² | E53: 85 | F53: =SUM(E53*C53) -> 42500
A54: 7 | B54: TRAFFIC SIGNAL WORKS | G54: =SUM(F54:F62) -> 248500
A55: 7.1 | B55: General items | C55: 1 | D55: Item | E55: 23000 | F55: =SUM(E55*C55) -> 23000
A56: 7.2 | B56: Conduits | C56: 1 | D56: Item | E56: 20000 | F56: 20000
A57: 7.3 | B57: Pedestals | C57: 1 | D57: Item | E57: 47000 | F57: 47000
A58: 7.4 | B58: Lanterns | C58: 1 | D58: Item | E58: 20000 | F58: 20000
A59: 7.5 | B59: Controller | C59: 1 | D59: Item | E59: 75000 | F59: 75000
A60: 7.6 | B60: Detectors | C60: 1 | D60: Item | E60: 9500 | F60: 9500
A61: 7.7 | B61: Cabling & connections | C61: 1 | D61: Item | E61: 45000 | F61: 45000
A62: 7.8 | B62: Clean-up | C62: 1 | D62: Item | E62: 9000 | F62: 9000
A63: 8 | B63: SIGNAL MAINTENANCE (10 YEARS) by Road Authority | C63: 1 | D63: item | E63: 100000 | F63: 100000 | G63: =F63 -> 100000
A64: 9 | B64: POWER & LIGHTING | G64: =SUM(F65:F70) -> 150000
A65: 9.1 | B65: Light pole (1-way) and luminous lights | C65: 2 | D65: No | E65: 8000 | F65: 16000
A66: 9.2 | B66: Light pole (2-way) and luminous lights | C66: 7 | D66: No | E66: 9000 | F66: 63000
A67: 9.3 | B67: JUP lighting single | C67: 4 | D67: No | E67: 4000 | F67: 16000
A68: 9.4 | B68: JUP lighting dual | C68: 2 | D68: No | E68: 5000 | F68: 10000
A69: 9.5 | B69: Cabling, conduits and pits | C69: 1 | D69: Item | E69: 30000 | F69: 30000
A70: 9.6 | B70: Electrical connection | C70: 1 | D70: Item | E70: 15000 | F70: 15000
A71: 10 | B71: LANDSCAPING WORKS | G71: =SUM(F71:F73) -> 19231.25
A72: 10.1 | B72: Topsoiling seeding | C72: =J12*1.5+J14*1 -> 2262.5 | D72: m² | E72: 8.5 | F72: =SUM(E72*C72) -> 19231.25
A73: 10.2 | B73: Landcape planting | C73: 0 | D73: NA
A74: 11 | B74: SIGNING | C74: 1 | D74: item | E74: 7500 | F74: 7500 | G74: =F74 -> 7500
A75: 12 | B75: LINEMARKING (Thermoplastic) | C75: 1 | D75: item | E75: 20000 | F75: 20000 | G75: =F75 -> 20000
A76: 13 | B76: SERVICE RELOCATION | G76: =SUM(F76:F78) -> 0
A77: 13.1 | B77: (Water, gas, telstra) No allowance | D77: item
A78: 13.2 | B78: (Overhead electrical) No allowance | D78: item
A79: 14 | B79: MISCELLANEOUS | G79: =F79 -> 0
A80: 15 | B80: PROVISIONAL SUM - DAYWORK | D80: item | F80: =SUM(E80*C80) -> 0 | G80: =F80 -> 0
B82: TOTAL A - C | F82: =SUM(F25:F81,F7:F23) -> 2562853.366 | G82: =SUM(G24+G15+G7) -> 2562853.366
A84: D | B84: Contingency
B85: =Summary!B17 -> Contingency (15% of C) | F85: 0.15 | G85: =F85*G24 -> 337721.1675
A87: E | B87: PROJECT BUDGET
B88: Total Estimate | G88: =G85+G82 -> 2900574.534
A91: Notes:
A92: - | B92: Earthworks based on a concept vertical grade alignment
A94: Services
A95: 1 | B95: Service relocation / alterations have not been allowed for in the estimate
A96: 2 | B96: No allowance for water, gas, telstra, sewer
A97: Substations
A98: 3 | B98: No allowance for substations
A99: Preliminaries
A100: 4 | B100: Based on nominal rates
A101: Subsoil Drain
A102: 5 | B102: Assume same as kerb and channel
A103: Side Entry Pits
A104: 6 | B104: Based on 50 m intervals
A105: Tactile Pavers
A106: 7 | B106: Assume hazard TGSI's (no directional)
A107: Signing
A108: 8 | B108: Nominal rate
A109: Pavement
A110: 9 | B110: Assume deep lift asphalt pavement
A111: Tree Removal
A112: 10 | B112: Based on preliminary information
A113: Roads
A114: 11 | B114: Where applicable, existing road conditions based on limited crushed rock roads assumed to be of no consequence to works
A115: 12 | B115: Where applicable, existing asphalt roads to be demolished as part of intersection works
A116: Dry Stone Wall
A117: 13 | B117: Dry stone wall works allowance has assumed the wall is not heritage listed and does not need to be reconstructed
A119: AUTHOR: | B119: Jack Hume
A120: Date: | B120: 2014-10-21
A122: REVIEWER: | B122: Rob Henry
A123: Date: | B123: 2014-10-21

Sheet IN-18-T07
A1: PRELIMINARY ESTIMATE OF DEVELOPMENT COSTS | G1: =Summary!A5 -> 2015-05-14
A2: =Summary!A3 -> CG140690 | G2: =Summary!A6 -> Version 11
A3: =Summary!A4 -> Wollert PSP - Intersection Cost Estimate | C3: PM %: | D3: 0.0948
A4: Intersection Ref: | B4: =J7 -> IN-18-CHAN | E4: DRAFT | I4: Do not Delete the below info
A5: Sheet Ref: | B5: =Summary!R9 -> T07-18P1
A6: ITEM | B6: DESCRIPTION | C6: QUANTITY | D6: UNIT | E6: RATE | F6: AMOUNT | G6: SUBTOTAL | I6: Sheet Specific Information | J6: Input | K6: Unit | L6: Cell Reference
A7: A | B7: =Summary!B10 -> Project and Program Management (%) | G7: =SUM(F7:F14) -> 85598.475 | I7: Intersection Name | J7: IN-18-CHAN | L7: A4
B8: Project Management | D8: 0.03 | E8: =($D$3/0.1)*D8 -> 0.02844 | F8: =E8*$G$24 -> 51359.085 | I8: Existing Road Directions | J8: N-S | L8: B105
B9: Project scoping, planning, scheduling, monitoring, reporting and commissioning | I9: Previous Road area | K9: m2
B10: Management of preconstruction activities, development of tender documents and management of contracts | I10: Total Roadway Area | J10: 4000 | K10: m2
B11: Managing external interfaces, including community liaison, environmental issues, traffic issues etc | I11: Island Area | J11: 300 | K11: m2
B12: Records management | I12: Kerb and Channel | J12: 800 | K12: Lm
B13: Program Administration | D13: 0.02 | E13: =($D$3/0.1)*D13 -> 0.01896 | F13: =E13*$G$24 -> 34239.39 | I13: Shoulder | J13: 0 | K13: Lm
I14: Footpath Length | J14: 200 | K14: Lm
A15: B | B15: =Summary!B11 -> Design and Investigation (%) | G15: =SUM(F15:F23) -> 171196.95 | I15: Pipe Length | J15: 450 | K15: Lm
B16: Traffic Investigations | D16: 0.0085 | E16: =($D$3/0.1)*D16 -> 0.008058 | F16: =E16*$G$24 -> 14551.74075 | I16: Island Concrete infill | J16: 25 | K16: m2
B17: Cadastral and Engineering Survey | D17: 0.012 | E17: 0.011376 | F17: 20543.634 | I17: Shared Path Length | J17: 340 | K17: Lm
B18: Geotechnical investigations Pavement Investigations and Design | D18: 0.012 | E18: 0.011376 | F18: 20543.634
B19: Environmental Investigations | E19: 0 | F19: 0
B20: Landscape Design | E20: 0 | F20: 0
B21: Preliminary and Final Design | D21: 0.0425 | E21: 0.04029 | F21: 72758.70375
B22: Construction Management | D22: 0.025 | E22: 0.0237 | F22: 42799.2375 | I22: 2.5% of construction cost | J22: =0.025*G24 -> 45146.875
A24: C | B24: Construction | F24: =SUM(F25:F81) -> 1805875 | G24: =SUM(G25:G80) -> 1805875
A25: 1 | G25: =SUM(F25:F28) -> 50500
A26: 1.1 | B26: Site establishment | C26: 1 | D26: Item | E26: 8000 | F26: =SUM(E26*C26) -> 8000
A27: 1.2 | B27: Site management & supervision including QA | C27: 13 | D27: wks | E27: 2500 | F27: =SUM(E27*C27) -> 32500
A28: 1.3 | B28: Provision for traffic | C28: 1 | D28: Item | E28: 10000 | F28: =SUM(E28*C28) -> 10000
A29: 2 | B29: DEMOLITION | G29: =SUM(F29:F32) -> 7000
A30: 2.1 | B30: Trees | C30: 4 | D30: No | E30: 500 | F30: =SUM(E30*C30) -> 2000
A31: 2.2 | B31: Dry stone wall demolition & make good | C31: 1 | D31: item | E31: 5000 | F31: =SUM(E31*C31) -> 5000
A32: 3 | B32: EARTHWORKS | G32: =SUM(F32:F39) -> 377550
A33: 3.1 | B33: Stripping topsoil (150mm) | C33: =J10+J12*1+J13*1.3-J11-J9 -> 4500 | D33: m² | E33: 6 | F33: =SUM(E33*C33) -> 27000
A34: 3.2 | B34: Excavation and removal | C34: =C41*0.18 -> 810 | D34: m³ | E34: 30 | F34: =SUM(E34*C34) -> 24300
A35: 3.3 | B35: Filling | C35: =C41*0.71 -> 3195 | D35: m³ | E35: 15 | F35: =C35*E35 -> 47925
A36: 3.4 | B36: Import Fill material | C36: =C35-C34 -> 2385 | D36: m³ | E36: 45 | F36: =C36*E36 -> 107325
A37: 3.5 | B37: Soft spot rectification | C37: =C41*20% -> 900 | D37: m³ | E37: 15 | F37: =SUM(E37*C37) -> 13500
A38: 3.6 | B38: Rock excavation & sub-surface remediation 450mm | C38: =C41*50% -> 2250 | D38: m² | E38: =55+15 -> 70 | F38: =SUM(E38*C38) -> 157500
A39: 4 | B39: PAVEMENT | G39: =SUM(F39:F43) -> 636000
A40: 4.1 | B40: Deep lift asphalt 195 mm | C40: =J10-J11-J13 -> 3700 | D40: m² | E40: =IF(C40<15000,105,85) -> 105 | F40: =SUM(E40*C40) -> 388500
A41: 4.2 | B41: Subbase course - 250 mm 3% CTCR | C41: =C40+(J12*1)+C42*0.3 -> 4500 | D41: m² | E41: 55 | F41: =SUM(E41*C41) -> 247500
A42: 4.3 | B42: Shoulder 1m wide - full depth pavement | C42: =J13 -> 0 | D42: m | E42: 145 | F42: =SUM(E42*C42) -> 0
A43: 5 | B43: DRAINAGE | G43: =SUM(F44:F48) -> 130500
A44: 5.1 | B44: Subsoil drains 100mm dia - screenings | C44: =J12+J13 -> 800 | D44: Lm | E44: 30 | F44: =SUM(E44*C44) -> 24000
A45: 5.2 | B45: Subsoil drains 100mm dia - no fines conc | C45: 0 | D45: Lm | E45: 45 | F45: =SUM(E45*C45) -> 0
A46: 5.3 | B46: 375 RCP (class 2) | C46: =J15 -> 450 | D46: Lm | E46: 170 | F46: =SUM(E46*C46) -> 76500
A47: 5.4 | B47: Side entry pits | C47: 12 | D47: No | E47: 2500 | F47: =SUM(E47*C47) -> 30000
A48: 6 | B48: CONCRETE WORKS | G48: =SUM(F48:F53) -> 104425
A49: 6.1 | B49: Kerb &channel | C49: =J12 -> 800 | D49: Lm | E49: 50 | F49: =SUM(E49*C49) -> 40000
A50: 6.2 | B50: Shared Paths (3.0m wide,125 mm, residential, as per MPA) | C50: =J17 -> 340 | D50: Lm | E50: 130 | F50: =SUM(E50*C50) -> 44200
A51: 6.3 | B51: Footpaths (1.5m wide,125 mm, residential, as per MPA) | C51: =J14 -> 200 | D51: Lm | E51: 65 | F51: =SUM(E51*C51) -> 13000
A52: 6.4 | B52: Laybacks and tactile pavers | C52: 6 | D52: No | E52: 850 | F52: =SUM(E52*C52) -> 5100
A53: 6.5 | B53: 10m concrete maintenance area end of all islands | C53: =J16 -> 25 | D53: m² | E53: 85 | F53: =SUM(E53*C53) -> 2125
A54: 7 | B54: TRAFFIC SIGNAL WORKS | G54: =SUM(F54:F62) -> 248500
A55: 7.1 | B55: General items | C55: 1 | D55: Item | E55: 23000 | F55: =SUM(E55*C55) -> 23000
A56: 7.2 | B56: Conduits | C56: 1 | D56: Item | E56: 20000 | F56: 20000
A57: 7.3 | B57: Pedestals | C57: 1 | D57: Item | E57: 47000 | F57: 47000
A58: 7.4 | B58: Lanterns | C58: 1 | D58: Item | E58: 20000 | F58: 20000
A59: 7.5 | B59: Controller | C59: 1 | D59: Item | E59: 75000 | F59: 75000
A60: 7.6 | B60: Detectors | C60: 1 | D60: Item | E60: 9500 | F60: 9500
A61: 7.7 | B61: Cabling & connections | C61: 1 | D61: Item | E61: 45000 | F61: 45000
A62: 7.8 | B62: Clean-up | C62: 1 | D62: Item | E62: 9000 | F62: 9000
A63: 8 | B63: SIGNAL MAINTENANCE (10 YEARS) by Road Authority | C63: 1 | D63: item | E63: 100000 | F63: 100000 | G63: =F63 -> 100000
A64: 9 | B64: POWER & LIGHTING | G64: =SUM(F65:F70) -> 112000
A65: 9.1 | B65: Light pole (1-way) and luminous lights | C65: 4 | D65: No | E65: 8000 | F65: 32000
A66: 9.2 | B66: Light pole (2-way) and luminous lights | C66: 2 | D66: No | E66: 9000 | F66: 18000
A67: 9.3 | B67: JUP lighting single | C67: 3 | D67: No | E67: 4000 | F67: 12000
A68: 9.4 | B68: JUP lighting dual | C68: 1 | D68: No | E68: 5000 | F68: 5000
A69: 9.5 | B69: Cabling, conduits and pits | C69: 1 | D69: Item | E69: 30000 | F69: 30000
A70: 9.6 | B70: Electrical connection | C70: 1 | D70: Item | E70: 15000 | F70: 15000
A71: 10 | B71: LANDSCAPING WORKS | G71: =SUM(F71:F73) -> 11900
A72: 10.1 | B72: Topsoiling seeding | C72: =J12*1.5+J14*1 -> 1400 | D72: m² | E72: 8.5 | F72: =SUM(E72*C72) -> 11900
A73: 10.2 | B73: Landcape planting | C73: 0 | D73: NA
A74: 11 | B74: SIGNING | C74: 1 | D74: item | E74: 7500 | F74: 7500 | G74: =F74 -> 7500
A75: 12 | B75: LINEMARKING (Thermoplastic) | C75: 1 | D75: item | E75: 20000 | F75: 20000 | G75: =F75 -> 20000
A76: 13 | B76: SERVICE RELOCATION | G76: =SUM(F76:F78) -> 0
A77: 13.1 | B77: (Water, gas, telstra) No allowance | D77: item
A78: 13.2 | B78: (Overhead electrical) No allowance | D78: item
A79: 14 | B79: MISCELLANEOUS | G79: =F79 -> 0
A80: 15 | B80: PROVISIONAL SUM - DAYWORK | D80: item | F80: =SUM(E80*C80) -> 0 | G80: =F80 -> 0
B82: TOTAL A - C | F82: =SUM(F25:F81,F7:F23) -> 2062670.425 | G82: =SUM(G24+G15+G7) -> 2062670.425
A84: D | B84: Contingency
B85: =Summary!B17 -> Contingency (15% of C) | F85: 0.15 | G85: =F85*G24 -> 270881.25
A87: E | B87: PROJECT BUDGET
B88: Total Estimate | G88: =G85+G82 -> 2333551.675
A91: Notes:
A92: - | B92: Earthworks based on a concept vertical grade alignment
A94: Services
A95: 1 | B95: Service relocation / alterations have not been allowed for in the estimate
A96: 2 | B96: No allowance for water, gas, telstra, sewer
A97: Substations
A98: 3 | B98: No allowance for substations
A99: Preliminaries
A100: 4 | B100: Based on nominal rates
A101: Subsoil Drain
A102: 5 | B102: Assume same as kerb and channel
A103: Side Entry Pits
A104: 6 | B104: Based on 50 m intervals
A105: Tactile Pavers
A106: 7 | B106: Assume hazard TGSI's (no directional)
A107: Signing
A108: 8 | B108: Nominal rate
A109: Pavement
A110: 9 | B110: Assume deep lift asphalt pavement
A111: Tree Removal
A112: 10 | B112: Based on preliminary information
A113: Roads
A114: 11 | B114: Where applicable, existing road conditions based on limited crushed rock roads assumed to be of no consequence to works
A115: 12 | B115: Where applicable, existing asphalt roads to be demolished as part of intersection works
A116: Dry Stone Wall
A117: 13 | B117: Dry stone wall works allowance has assumed the wall is not heritage listed and does not need to be reconstructed
A119: AUTHOR: | B119: Jack Hume
A120: Date: | B120: 2014-12-05
A122: REVIEWER: | B122: Rob Henry
A123: Date: | B123: 2014-12-05

Sheet IN-20-T04
A1: PRELIMINARY ESTIMATE OF DEVELOPMENT COSTS | G1: =Summary!A5 -> 2015-05-14
A2: =Summary!A3 -> CG140690 | G2: =Summary!A6 -> Version 11
A3: =Summary!A4 -> Wollert PSP - Intersection Cost Estimate | C3: PM %: | D3: 0.0868 | I3: Click here for Nearmap Screenshots taken July 2014
A4: Intersection Ref: | B4: =J7 -> IN-20-D | E4: DRAFT | I4: Do not Delete the below info
A5: Sheet Ref: | B5: =Summary!S9 -> T04-20P3
A6: ITEM | B6: DESCRIPTION | C6: QUANTITY | D6: UNIT | E6: RATE | F6: AMOUNT | G6: SUBTOTAL | I6: Sheet Specific Information | J6: Input | K6: Cell Reference
A7: A | B7: =Summary!B10 -> Project and Program Management (%) | G7: =SUM(F7:F14) -> 158282.1084 | I7: Intersection Name | J7: IN-20-D | K7: A4
B8: Project Management | D8: 0.03 | E8: =($D$3/0.1)*D8 -> 0.02604 | F8: =E8*$G$24 -> 94969.26507 | I8: Existing road directions | J8: N-S and E-W | K8: B87
B9: Project scoping, planning, scheduling, monitoring, reporting and commissioning | I9: Previous Road area | J9: 0 | K9: m2
B10: Management of preconstruction activities, development of tender documents and management of contracts | I10: Total Roadway Area | J10: 9500 | K10: m2
B11: Managing external interfaces, including community liaison, environmental issues, traffic issues etc | I11: Island Area | J11: 1290 | K11: m2
B12: Records management | I12: Kerb and Channel | J12: =1350+375+225+225+250-657 -> 1768 | K12: Lm
B13: Program Administration | D13: 0.02 | E13: =($D$3/0.1)*D13 -> 0.01736 | F13: =E13*$G$24 -> 63312.84338 | I13: Shoulder | J13: =91+216+130+220 -> 657 | K13: Lm
I14: Footpath Length | J14: 300 | K14: Lm
A15: B | B15: =Summary!B11 -> Design and Investigation (%) | G15: =SUM(F15:F23) -> 316564.2169 | I15: Pipe Length | J15: 1200 | K15: Lm
B16: Traffic Investigations | D16: 0.0085 | E16: =($D$3/0.1)*D16 -> 0.007378 | F16: =E16*$G$24 -> 26907.95844 | I16: Island Concrete infill | J16: 250 | K16: m2
B17: Cadastral and Engineering Survey | D17: 0.012 | E17: 0.010416 | F17: 37987.70603 | I17: Shared Path Length | J17: =140+5+5+150+405+135+5 -> 845 | K17: Lm
B18: Geotechnical investigations Pavement Investigations and Design | D18: 0.012 | E18: 0.010416 | F18: 37987.70603
B19: Environmental Investigations | E19: 0 | F19: 0
B20: Landscape Design | E20: 0 | F20: 0
B21: Preliminary and Final Design | D21: 0.0425 | E21: 0.03689 | F21: 134539.7922
B22: Construction Management | D22: 0.025 | E22: 0.0217 | F22: 79141.05422
I23: 2.5% of construction cost | J23: =0.025*G24 -> 91176.32975
A24: C | B24: Construction | F24: =SUM(F25:F81) -> 3647053.19 | G24: =SUM(G25:G80) -> 3647053.19
A25: 1 | B25: PRELIMINARIES | G25: =SUM(F25:F28) -> 75000
A26: 1.1 | B26: Site establishment | C26: 1 | D26: Item | E26: 10000 | F26: =E26*C26 -> 10000
A27: 1.2 | B27: Site management & supervision including QA | C27: 22 | D27: wks | E27: 2500 | F27: =SUM(E27*C27) -> 55000
A28: 1.3 | B28: Provision for traffic | C28: 1 | D28: Item | E28: 10000 | F28: =SUM(E28*C28) -> 10000
A29: 2 | B29: DEMOLITION | G29: =SUM(F29:F32) -> 27500
A30: 2.1 | B30: Trees | C30: 5 | D30: No | E30: 500 | F30: =SUM(E30*C30) -> 2500
A31: 2.2 | B31: Demolition of Dry Stone fence | C31: 1 | D31: item | E31: 25000 | F31: =SUM(E31*C31) -> 25000
A32: 3 | B32: EARTHWORKS | G32: =SUM(F32:F38) -> 732285.69
A33: 3.1 | B33: Stripping topsoil (150mm) | C33: =0.34*J10 -> 3230 | D33: m² | E33: 6 | F33: =SUM(E33*C33) -> 19380
A34: 3.2 | B34: Excavation and removal | C34: =C40*0.18 -> 1713.258 | D34: m³ | E34: 30 | F34: =SUM(E34*C34) -> 51397.74
A35: 3.3 | B35: Filling | C35: =C40*0.71 -> 6757.851 | D35: m³ | E35: 15 | F35: =C35*E35 -> 101367.765
A36: 3.5 | B36: Import Fill material | C36: =C35-C34 -> 5044.593 | D36: m³ | E36: 45 | F36: =C36*E36 -> 227006.685
A37: 3.6 | B37: Rock excavation & sub-surface remediation 450mm | C37: =C40*50% -> 4759.05 | D37: m² | E37: =55+15 -> 70 | F37: =SUM(E37*C37) -> 333133.5
A38: 4 | B38: PAVEMENT | G38: =SUM(F38:F41) -> 1411825.5
A39: 4.1 | B39: Deep lift asphalt 195 mm | C39: =J10-J13-J11 -> 7553 | D39: m² | E39: =IF(C39<15000,105,85) -> 105 | F39: =SUM(E39*C39) -> 793065
A40: 4.2 | B40: Subbase course - 250 mm 3% CTCR | C40: =C39+(J12*1)+C41*0.3 -> 9518.1 | D40: m² | E40: =IF(C40<15000,55,45) -> 55 | F40: =SUM(E40*C40) -> 523495.5
A41: 4.3 | B41: Shoulder 1m wide - full depth pavement | C41: =J13 -> 657 | D41: m | E41: 145 | F41: =SUM(E41*C41) -> 95265
A42: 5 | B42: DRAINAGE | G42: =SUM(F42:F47) -> 475750
A43: 5.1 | B43: Subsoil drains 100mm dia - screenings | C43: =J12+J13 -> 2425 | D43: Lm | E43: 30 | F43: =SUM(E43*C43) -> 72750
A44: 5.2 | B44: Subsoil drains 100mm dia - no fines conc | C44: 0 | D44: Lm | E44: 45 | F44: =SUM(E44*C44) -> 0
A45: 5.3 | B45: 375 RCP (class 2) | C45: =J15 -> 1200 | D45: Lm | E45: 170 | F45: =SUM(E45*C45) -> 204000
A46: 5.4 | B46: Side entry pits | C46: 30 | D46: No | E46: 2500 | F46: =SUM(E46*C46) -> 75000
A47: 5.5 | B47: Allowance tomodify draiange to ultimate location | C47: 1 | D47: item | E47: =20*(2500+2000+10*E45) -> 124000 | F47: =SUM(E47*C47) -> 124000
A48: 6 | B48: CONCRETE WORKS | G48: =SUM(F48:F53) -> 248600
A49: 6.1 | B49: Kerb &channel | C49: =J12 -> 1768 | D49: Lm | E49: 50 | F49: =SUM(E49*C49) -> 88400
A50: 6.2 | B50: Shared Paths (3.0m wide,125 mm, residential, as per MPA) | C50: =J17 -> 845 | D50: Lm | E50: 130 | F50: =SUM(E50*C50) -> 109850
A51: 6.3 | B51: Footpaths (1.5m wide,125 mm, residential, as per MPA) | C51: =J14 -> 300 | D51: No | E51: 65 | F51: =SUM(E51*C51) -> 19500
A52: 6.4 | B52: Laybacks and tactile pavers | C52: 8 | D52: m² | E52: 1200 | F52: =SUM(E52*C52) -> 9600
A53: 6.5 | B53: 10m concrete maintenance area end of all islands | C53: =J16 -> 250 | D53: m² | E53: 85 | F53: =SUM(E53*C53) -> 21250
A54: 7 | B54: TRAFFIC SIGNAL WORKS | G54: =SUM(F54:F62) -> 290000
A55: 7.1 | B55: General items | C55: 1 | D55: Item | E55: 27500 | F55: =SUM(E55*C55) -> 27500
A56: 7.2 | B56: Conduits | C56: 1 | D56: Item | E56: 25000 | F56: 25000
A57: 7.3 | B57: Pedestals | C57: 1 | D57: Item | E57: 60000 | F57: 60000
A58: 7.4 | B58: Lanterns | C58: 1 | D58: Item | E58: 24000 | F58: 24000
A59: 7.5 | B59: Controller | C59: 1 | D59: Item | E59: 82500 | F59: 82500
A60: 7.6 | B60: Detectors | C60: 1 | D60: Item | E60: 15000 | F60: 15000
A61: 7.7 | B61: Cabling & connections | C61: 1 | D61: Item | E61: 45000 | F61: 45000
A62: 7.8 | B62: Clean-up | C62: 1 | D62: Item | E62: 11000 | F62: 11000
A63: 8 | B63: SIGNAL MAINTENANCE (10 YEARS) by Road Authority | C63: 1 | D63: item | E63: 100000 | F63: 100000 | G63: =F63 -> 100000
A64: 9 | B64: POWER & LIGHTING | G64: =SUM(F65:F70) -> 221000
A65: 9.1 | B65: Light pole (1-way) and luminous lights | C65: 20 | D65: No | E65: 8000 | F65: 160000
A66: 9.2 | B66: Light pole (2-way) and luminous lights | C66: 0 | D66: No | E66: 9000 | F66: 0
A67: 9.3 | B67: JUP lighting single | C67: 4 | D67: No | E67: 4000 | F67: 16000
A68: 9.4 | B68: JUP lighting dual | C68: 0 | D68: No | E68: 5000 | F68: 0
A69: 9.5 | B69: Cabling, conduits and pits | C69: 1 | D69: Item | E69: 30000 | F69: 30000
A70: 9.6 | B70: Electrical connection | C70: 1 | D70: Item | E70: 15000 | F70: 15000
A71: 10 | B71: LANDSCAPING WORKS | G71: =SUM(F71:F73) -> 25092
A72: 10.1 | B72: Topsoiling seeding | C72: =J12*1.5+J14*1 -> 2952 | D72: m² | E72: 8.5 | F72: =SUM(E72*C72) -> 25092
A73: 10.2 | B73: Landcape planting | C73: 0 | D73: NA
A74: 11 | B74: SIGNING | C74: 1 | D74: item | E74: 10000 | F74: 10000 | G74: =F74 -> 10000
A75: 12 | B75: LINEMARKING (Thermoplastic) | C75: 1 | D75: item | E75: 30000 | F75: 30000 | G75: =F75 -> 30000
A76: 13 | B76: SERVICE RELOCATION | G76: =SUM(F76:F78) -> 0
A77: 13.1 | B77: (Water, gas, telstra) No allowance | C77: 0 | D77: Item | E77: 0 | F77: =SUM(E77*C77) -> 0
A78: 13.2 | B78: (Overhead electrical) No allowance | C78: 0 | D78: Item | E78: 0 | F78: =SUM(E78*C78) -> 0
A79: 14 | B79: MISCELLANEOUS | G79: =SUM(F79:F79) -> 0
A80: 15 | B80: PROVISIONAL SUM - DAYWORK | D80: item | F80: =SUM(E80*C80) -> 0 | G80: =F80 -> 0
B82: TOTAL A - C | F82: =SUM(F25:F81,F7:F23) -> 4121899.515 | G82: =SUM(G24+G15+G7) -> 4121899.515
A84: D | B84: Contingency
B85: =Summary!B17 -> Contingency (15% of C) | F85: 0.15 | G85: =F85*G24 -> 547057.9785
A87: E | B87: PROJECT BUDGET
B88: Total Estimate | G88: =G85+G82 -> 4668957.494
A91: Notes:
A92: - | B92: Earthworks based on a concept vertical grade alignment
A94: Services
A95: 1 | B95: Service relocation / alterations have not been allowed for in the estimate
A96: 2 | B96: No allowance for water, gas, telstra, sewer
A97: Substations
A98: 3 | B98: No allowance for substations
A99: Preliminaries
A100: 4 | B100: Based on nominal rates
A101: Subsoil Drain
A102: 5 | B102: Assume same as kerb and channel
A103: Side Entry Pits
A104: 6 | B104: Based on 50 m intervals
A105: Tactile Pavers
A106: 7 | B106: Assume hazard TGSI's (no directional)
A107: Signing
A108: 8 | B108: Nominal rate
A109: Pavement
A110: 9 | B110: Assume deep lift asphalt pavement
A111: Tree Removal
A112: 10 | B112: Based on preliminary information
A113: Roads
A114: 11 | B114: Where applicable, existing road conditions based on limited crushed rock roads assumed to be of no consequence to works
A115: 12 | B115: Where applicable, existing asphalt roads to be demolished as part of intersection works
A116: Dry Stone Wall
A117: 13 | B117: Dry stone wall works allowance has assumed the wall is not heritage listed and does not need to be reconstructed
A119: AUTHOR: | B119: Jack Hume
A120: Date: | B120: 2014-10-21
A122: REVIEWER: | B122: Rob Henry
A123: Date: | B123: 2014-10-21

Sheet IN-20-T06
A1: PRELIMINARY ESTIMATE OF DEVELOPMENT COSTS | G1: =Summary!A5 -> 2015-05-14
A2: =Summary!A3 -> CG140690 | G2: =Summary!A6 -> Version 11
A3: =Summary!A4 -> Wollert PSP - Intersection Cost Estimate | C3: PM %: | D3: 0.0854 | I3: Click here for Nearmap Screenshots taken July 2014
A4: Intersection Ref: | B4: =J7 -> IN-20-VR | E4: DRAFT | I4: Do not Delete the below info
A5: Sheet Ref: | B5: =Summary!T9 -> T06-20P3
A6: ITEM | B6: DESCRIPTION | C6: QUANTITY | D6: UNIT | E6: RATE | F6: AMOUNT | G6: SUBTOTAL | I6: Sheet Specific Information | J6: Input | K6: Cell Reference
A7: A | B7: =Summary!B10 -> Project and Program Management (%) | G7: =SUM(F7:F14) -> 176664.3657 | I7: Intersection Name | J7: IN-20-VR | K7: A4
B8: Project Management | D8: 0.03 | E8: =($D$3/0.1)*D8 -> 0.02562 | F8: =E8*$G$24 -> 105998.6194 | I8: Existing road directions | J8: N-S and E-W | K8: B87
B9: Project scoping, planning, scheduling, monitoring, reporting and commissioning | I9: Previous Road area | J9: 0 | K9: m2
B10: Management of preconstruction activities, development of tender documents and management of contracts | I10: Total Roadway Area | J10: 16900 | K10: m2
B11: Managing external interfaces, including community liaison, environmental issues, traffic issues etc | I11: Island Area | J11: 7000 | K11: m2
B12: Records management | I12: Kerb and Channel | J12: =1500+300+400+300+350-735 -> 2115 | K12: Lm
B13: Program Administration | D13: 0.02 | E13: =($D$3/0.1)*D13 -> 0.01708 | F13: =E13*$G$24 -> 70665.74628 | I13: Shoulder | J13: =55+60+125+125+145+225 -> 735 | K13: Lm
I14: Footpath Length | J14: =160+160 -> 320 | K14: Lm
A15: B | B15: =Summary!B11 -> Design and Investigation (%) | G15: =SUM(F15:F23) -> 353328.7314 | I15: Pipe Length | J15: =2100 -> 2100 | K15: Lm
B16: Traffic Investigations | D16: 0.0085 | E16: =($D$3/0.1)*D16 -> 0.007259 | F16: =E16*$G$24 -> 30032.94217 | I16: Island Concrete infill | J16: =200+100+200+200+250+100+100+100 -> 1250 | K16: m2
B17: Cadastral and Engineering Survey | D17: 0.012 | E17: 0.010248 | F17: 42399.44777 | I17: Shared Path Length | J17: =180+8+225+160+5+5+200+175+5+7 -> 970 | K17: Lm
B18: Geotechnical investigations Pavement Investigations and Design | D18: 0.012 | E18: 0.010248 | F18: 42399.44777
B19: Environmental Investigations | E19: 0 | F19: 0
B20: Landscape Design | E20: 0 | F20: 0
B21: Preliminary and Final Design | D21: 0.0425 | E21: 0.036295 | F21: 150164.7108
B22: Construction Management | D22: 0.025 | E22: 0.02135 | F22: 88332.18285
I23: 2.5% of construction cost | J23: =0.025*G24 -> 103433.4694
A24: C | B24: Construction | F24: =SUM(F25:F80) -> 4137338.775 | G24: =SUM(G25:G79) -> 4137338.775
A25: 1 | B25: PRELIMINARIES | G25: =SUM(F25:F28) -> 85000
A26: 1.1 | B26: Site establishment | C26: 1 | D26: Item | E26: 10000 | F26: =E26*C26 -> 10000
A27: 1.2 | B27: Site management & supervision including QA | C27: 26 | D27: wks | E27: 2500 | F27: =SUM(E27*C27) -> 65000
A28: 1.3 | B28: Provision for traffic | C28: 1 | D28: Item | E28: 10000 | F28: =SUM(E28*C28) -> 10000
A29: 2 | B29: DEMOLITION | G29: =SUM(F29:F32) -> 27500
A30: 2.1 | B30: Trees | C30: 5 | D30: No | E30: 500 | F30: =SUM(E30*C30) -> 2500
A31: 2.2 | B31: Demolition of Dry Stone fence | C31: 1 | D31: item | E31: 25000 | F31: =SUM(E31*C31) -> 25000
A32: 3 | B32: EARTHWORKS | G32: =SUM(F32:F38) -> 699425.025
A33: 3.1 | B33: Stripping topsoil (150mm) | C33: =J10+J12*1+J13*1.3-J11-J9 -> 12970.5 | D33: m² | E33: 6 | F33: =SUM(E33*C33) -> 77823
A34: 3.2 | B34: Excavation and removal | C34: =C40*0.18 -> 2070.09 | D34: m³ | E34: 30 | F34: =SUM(E34*C34) -> 62102.7
A35: 3.3 | B35: Filling | C35: =C40*0.71 -> 8165.355 | D35: m³ | E35: 15 | F35: =C35*E35 -> 122480.325
A36: 3.4 | B36: Soft spot rectification (reclaimed FCR) | C36: =C40*20% -> 2300.1 | D36: m³ | E36: 15 | F36: =SUM(E36*C36) -> 34501.5
A37: 3.5 | B37: Rock excavation & sub-surface remediation 450mm | C37: =C40*50% -> 5750.25 | D37: m² | E37: =55+15 -> 70 | F37: =SUM(E37*C37) -> 402517.5
A38: 4 | B38: PAVEMENT | G38: =SUM(F38:F41) -> 1701427.5
A39: 4.1 | B39: Deep lift asphalt 195 mm | C39: =J10-J13-J11 -> 9165 | D39: m² | E39: =IF(C39<15000,105,85) -> 105 | F39: =SUM(E39*C39) -> 962325
A40: 4.2 | B40: Subbase course - 250 mm 3% CTCR | C40: =C39+(J12*1)+C41*0.3 -> 11500.5 | D40: m² | E40: =IF(C40<15000,55,45) -> 55 | F40: =SUM(E40*C40) -> 632527.5
A41: 4.3 | B41: Shoulder - full depth pavement | C41: =J13 -> 735 | D41: m² | E41: 145 | F41: =SUM(E41*C41) -> 106575
A42: 5 | B42: DRAINAGE | G42: =SUM(F42:F46) -> 530000
A43: 5.1 | B43: Subsoil drains 100mm dia - screenings | C43: =J12+J13 -> 2850 | D43: Lm | E43: 30 | F43: =SUM(E43*C43) -> 85500
A44: 5.2 | B44: Subsoil drains 100mm dia - no fines conc | C44: 0 | D44: Lm | E44: 45 | F44: =SUM(E44*C44) -> 0
A45: 5.3 | B45: 375 RCP (class 2) | C45: =J15 -> 2100 | D45: Lm | E45: 170 | F45: =SUM(E45*C45) -> 357000
A46: 5.4 | B46: Side entry pits | C46: 35 | D46: No | E46: 2500 | F46: =SUM(E46*C46) -> 87500
A47: 6 | B47: CONCRETE WORKS | G47: =SUM(F47:F52) -> 373300
A48: 6.1 | B48: Kerb &channel | C48: =J12 -> 2115 | D48: Lm | E48: 50 | F48: =SUM(E48*C48) -> 105750
A49: 6.2 | B49: Shared Paths (3.0m wide,125 mm, residential, as per MPA) | C49: =J17 -> 970 | D49: Lm | E49: 130 | F49: =SUM(E49*C49) -> 126100
A50: 6.3 | B50: Footpaths (1.5m wide,125 mm, residential, as per MPA) | C50: =J14 -> 320 | D50: No | E50: 65 | F50: =SUM(E50*C50) -> 20800
A51: 6.4 | B51: Laybacks and tactile pavers | C51: 12 | D51: m² | E51: 1200 | F51: =SUM(E51*C51) -> 14400
A52: 6.5 | B52: 10m concrete maintenance area end of all islands | C52: =J16 -> 1250 | D52: m² | E52: 85 | F52: =SUM(E52*C52) -> 106250
A53: 7 | B53: TRAFFIC SIGNAL WORKS | G53: =SUM(F53:F61) -> 302000
A54: 7.1 | B54: General items | C54: 1 | D54: Item | E54: 27500 | F54: =SUM(E54*C54) -> 27500
A55: 7.2 | B55: Conduits | C55: 1 | D55: Item | E55: 28000 | F55: 28000
A56: 7.3 | B56: Pedestals | C56: 1 | D56: Item | E56: 65000 | F56: 65000
A57: 7.4 | B57: Lanterns | C57: 1 | D57: Item | E57: 25000 | F57: 25000
A58: 7.5 | B58: Controller | C58: 1 | D58: Item | E58: 82500 | F58: 82500
A59: 7.6 | B59: Detectors | C59: 1 | D59: Item | E59: 15000 | F59: 15000
A60: 7.7 | B60: Cabling & connections | C60: 1 | D60: Item | E60: 48000 | F60: 48000
A61: 7.8 | B61: Clean-up | C61: 1 | D61: Item | E61: 11000 | F61: 11000
A62: 8 | B62: SIGNAL MAINTENANCE (10 YEARS) by Road Authority | C62: 1 | D62: item | E62: 100000 | F62: 100000 | G62: =F62 -> 100000
A63: 9 | B63: POWER & LIGHTING | G63: =SUM(F64:F69) -> 249000
A64: 9.1 | B64: Light pole (1-way) and luminous lights | C64: 15 | D64: No | E64: 8000 | F64: 120000
A65: 9.2 | B65: Light pole (2-way) and luminous lights | C65: 7 | D65: No | E65: 9000 | F65: 63000
A66: 9.3 | B66: JUP lighting single | C66: 4 | D66: No | E66: 4000 | F66: 16000
A67: 9.4 | B67: JUP lighting dual | C67: 1 | D67: No | E67: 5000 | F67: 5000
A68: 9.5 | B68: Cabling, conduits and pits | C68: 1 | D68: Item | E68: 30000 | F68: 30000
A69: 9.6 | B69: Electrical connection | C69: 1 | D69: Item | E69: 15000 | F69: 15000
A70: 10 | B70: LANDSCAPING WORKS | G70: =SUM(F70:F72) -> 29686.25
A71: 10.1 | B71: Topsoiling seeding | C71: =J12*1.5+J14*1 -> 3492.5 | D71: m² | E71: 8.5 | F71: =SUM(E71*C71) -> 29686.25
A72: 10.2 | B72: Landcape planting | C72: 0 | D72: NA
A73: 11 | B73: SIGNING | C73: 1 | D73: item | E73: 10000 | F73: 10000 | G73: =F73 -> 10000
A74: 12 | B74: LINEMARKING (Thermoplastic) | C74: 1 | D74: item | E74: 30000 | F74: 30000 | G74: =F74 -> 30000
A75: 13 | B75: SERVICE RELOCATION | G75: =SUM(F75:F77) -> 0
A76: 13.1 | B76: (Water, gas, telstra) No allowance | C76: 0 | D76: Item | E76: 0 | F76: =SUM(E76*C76) -> 0
A77: 13.2 | B77: (Overhead electrical) No allowance | C77: 0 | D77: Item | E77: 0 | F77: =SUM(E77*C77) -> 0
A78: 14 | B78: MISCELLANEOUS | G78: =SUM(F78:F78) -> 0
A79: 15 | B79: PROVISIONAL SUM - DAYWORK | D79: item | F79: =SUM(E79*C79) -> 0 | G79: =F79 -> 0
B81: TOTAL A - C | F81: =SUM(F25:F80,F7:F23) -> 4667331.872 | G81: =SUM(G24+G15+G7) -> 4667331.872
A83: D | B83: Contingency
B84: =Summary!B17 -> Contingency (15% of C) | F84: 0.15 | G84: =F84*G24 -> 620600.8162
A86: E | B86: PROJECT BUDGET
B87: Total Estimate | G87: =G84+G81 -> 5287932.688
A90: Notes:
A91: - | B91: Earthworks based on a concept vertical grade alignment
A93: Services
A94: 1 | B94: Service relocation / alterations have not been allowed for in the estimate
A95: 2 | B95: No allowance for water, gas, telstra, sewer
A96: Substations
A97: 3 | B97: No allowance for substations
A98: Preliminaries
A99: 4 | B99: Based on nominal rates
A100: Subsoil Drain
A101: 5 | B101: Assume same as kerb and channel
A102: Side Entry Pits
A103: 6 | B103: Based on 50 m intervals (please note due to large road width dual drainage has been allowed for
A104: Tactile Pavers
A105: 7 | B105: Assume hazard TGSI's (no directional)
A106: Signing
A107: 8 | B107: Nominal rate
A108: Pavement
A109: 9 | B109: Assume deep lift asphalt pavement
A110: Tree Removal
A111: 10 | B111: Based on preliminary information
A112: Roads
A113: 11 | B113: Where applicable, existing road conditions based on limited crushed rock roads assumed to be of no consequence to works
A114: 12 | B114: Where applicable, existing asphalt roads to be demolished as part of intersection works
A115: Dry Stone Wall
A116: 13 | B116: Dry stone wall works allowance has assumed the wall is not heritage listed and does not need to be reconstructed
A118: AUTHOR: | B118: Jack Hume
A119: Date: | B119: 2014-10-21
A121: REVIEWER: | B121: Rob Henry
A122: Date: | B122: 2014-10-21

Sheet IN-21
A1: PRELIMINARY ESTIMATE OF DEVELOPMENT COSTS | G1: =Summary!A5 -> 2015-05-14
A2: =Summary!A3 -> CG140690 | G2: =Summary!A6 -> Version 11
A3: =Summary!A4 -> Wollert PSP - Intersection Cost Estimate | C3: PM %: | D3: 0.0865 | I3: Click here for Nearmap Screenshots taken July 2014
A4: Intersection Ref: | B4: =J7 -> IN-21 | E4: DRAFT | I4: Do not Delete the below info
A5: Sheet Ref: | B5: =Summary!U9 -> (20-D)
A6: ITEM | B6: DESCRIPTION | C6: QUANTITY | D6: UNIT | E6: RATE | F6: AMOUNT | G6: SUBTOTAL | I6: Sheet Specific Information | J6: Input | K6: Cell Reference
A7: A | B7: =Summary!B10 -> Project and Program Management (%) | G7: =SUM(F7:F14) -> 162395.4239 | I7: Intersection Name | J7: IN-21 | K7: A4
B8: Project Management | D8: 0.03 | E8: =($D$3/0.1)*D8 -> 0.02595 | F8: =E8*$G$24 -> 97437.25437 | I8: Existing road directions | J8: N-S and E-W | K8: B87
B9: Project scoping, planning, scheduling, monitoring, reporting and commissioning | I9: Previous Road area | J9: 0 | K9: m2
B10: Management of preconstruction activities, development of tender documents and management of contracts | I10: Total Roadway Area | J10: 9500 | K10: m2
B11: Managing external interfaces, including community liaison, environmental issues, traffic issues etc | I11: Island Area | J11: 1290 | K11: m2
B12: Records management | I12: Kerb and Channel | J12: =1350+375+225+225+250-657 -> 1768 | K12: Lm
B13: Program Administration | D13: 0.02 | E13: =($D$3/0.1)*D13 -> 0.0173 | F13: =E13*$G$24 -> 64958.16958 | I13: Shoulder | J13: =91+216+130+220 -> 657 | K13: Lm
I14: Footpath Length | J14: 300 | K14: Lm
A15: B | B15: =Summary!B11 -> Design and Investigation (%) | G15: =SUM(F15:F23) -> 324790.8479 | I15: Pipe Length | J15: 1200 | K15: Lm
B16: Traffic Investigations | D16: 0.0085 | E16: =($D$3/0.1)*D16 -> 0.0073525 | F16: =E16*$G$24 -> 27607.22207 | I16: Island Concrete infill | J16: 250 | K16: m2
B17: Cadastral and Engineering Survey | D17: 0.012 | E17: 0.01038 | F17: 38974.90175 | I17: Shared Path Length | J17: =140+5+5+150+405+135+5 -> 845 | K17: Lm
B18: Geotechnical investigations Pavement Investigations and Design | D18: 0.012 | E18: 0.01038 | F18: 38974.90175
B19: Environmental Investigations | E19: 0 | F19: 0
B20: Landscape Design | E20: 0 | F20: 0
B21: Preliminary and Final Design | D21: 0.0425 | E21: 0.0367625 | F21: 138036.1104
B22: Construction Management | D22: 0.025 | E22: 0.021625 | F22: 81197.71197
I23: 2.5% of construction cost | J23: =0.025*G24 -> 93870.18725
A24: C | B24: Construction | F24: =SUM(F25:F83) -> 3754807.49 | G24: =SUM(G25:G82) -> 3754807.49
A25: 1 | B25: PRELIMINARIES | G25: =SUM(F25:F28) -> 75000
A26: 1.1 | B26: Site establishment | C26: 1 | D26: Item | E26: 10000 | F26: =E26*C26 -> 10000
A27: 1.2 | B27: Site management & supervision including QA | C27: 22 | D27: wks | E27: 2500 | F27: =SUM(E27*C27) -> 55000
A28: 1.3 | B28: Provision for traffic | C28: 1 | D28: Item | E28: 10000 | F28: =SUM(E28*C28) -> 10000
A29: 2 | B29: DEMOLITION | G29: =SUM(F29:F32) -> 27500
A30: 2.1 | B30: Trees | C30: 5 | D30: No | E30: 500 | F30: =SUM(E30*C30) -> 2500
A31: 2.2 | B31: Demolition of Dry Stone fence | C31: 1 | D31: item | E31: 25000 | F31: =SUM(E31*C31) -> 25000
A32: 3 | B32: EARTHWORKS | G32: =SUM(F32:F39) -> 760839.99
A33: 3.1 | B33: Stripping topsoil (150mm) | C33: =0.34*J10 -> 3230 | D33: m² | E33: 6 | F33: =SUM(E33*C33) -> 19380
A34: 3.2 | B34: Excavation and removal | C34: =C41*0.18 -> 1713.258 | D34: m³ | E34: 30 | F34: =SUM(E34*C34) -> 51397.74
A35: 3.3 | B35: Filling | C35: =C41*0.71 -> 6757.851 | D35: m³ | E35: 15 | F35: =C35*E35 -> 101367.765
A36: 3.4 | B36: Import Fill material | C36: =C35-C34 -> 5044.593 | D36: m³ | E36: 45 | F36: =C36*E36 -> 227006.685
A37: 3.5 | B37: Soft spot rectification (reclaimed FCR) | C37: =C41*20% -> 1903.62 | D37: m³ | E37: 15 | F37: =SUM(E37*C37) -> 28554.3
A38: 3.6 | B38: Rock excavation & sub-surface remediation 450mm | C38: =C41*50% -> 4759.05 | D38: m² | E38: =55+15 -> 70 | F38: =SUM(E38*C38) -> 333133.5
A39: 4 | B39: PAVEMENT | G39: =SUM(F39:F42) -> 1411825.5
A40: 4.1 | B40: Deep lift asphalt 195 mm | C40: =J10-J13-J11 -> 7553 | D40: m² | E40: =IF(C40<15000,105,85) -> 105 | F40: =SUM(E40*C40) -> 793065
A41: 4.2 | B41: Subbase course - 250 mm 3% CTCR | C41: =C40+(J12*1)+C42*0.3 -> 9518.1 | D41: m² | E41: =IF(C41<15000,55,45) -> 55 | F41: =SUM(E41*C41) -> 523495.5
A42: 4.3 | B42: Shoulder 1m wide - full depth pavement | C42: =J13 -> 657 | D42: m | E42: 145 | F42: =SUM(E42*C42) -> 95265
A43: 5 | B43: DRAINAGE | G43: =SUM(F43:F48) -> 475750
A44: 5.1 | B44: Subsoil drains 100mm dia - screenings | C44: =J12+J13 -> 2425 | D44: Lm | E44: 30 | F44: =SUM(E44*C44) -> 72750
A45: 5.2 | B45: Subsoil drains 100mm dia - no fines conc | C45: 0 | D45: Lm | E45: 45 | F45: =SUM(E45*C45) -> 0
A46: 5.3 | B46: 375 RCP (class 2) | C46: =J15 -> 1200 | D46: Lm | E46: 170 | F46: =SUM(E46*C46) -> 204000
A47: 5.4 | B47: Side entry pits | C47: 30 | D47: No | E47: 2500 | F47: =SUM(E47*C47) -> 75000
A48: 5.5 | B48: Allowance tomodify draiange to ultimate location | C48: 1 | D48: item | E48: =20*(2500+2000+10*E46) -> 124000 | F48: =SUM(E48*C48) -> 124000
A49: 6 | B49: CONCRETE WORKS | G49: =SUM(F49:F55) -> 327800
A50: 6.1 | B50: Kerb &channel | C50: =J12 -> 1768 | D50: Lm | E50: 50 | F50: =SUM(E50*C50) -> 88400
A51: 6.2 | B51: Shared Paths (3.0m wide,125 mm, residential, as per MPA) | C51: =J17 -> 845 | D51: Lm | E51: 130 | F51: =SUM(E51*C51) -> 109850
A52: 6.3 | B52: Footpaths (1.5m wide,125 mm, residential, as per MPA) | C52: =J14 -> 300 | D52: No | E52: 65 | F52: =SUM(E52*C52) -> 19500
A53: 6.4 | B53: Laybacks and tactile pavers | C53: 8 | D53: m² | E53: 1200 | F53: =SUM(E53*C53) -> 9600
A54: 6.5 | B54: 10m concrete maintenance area end of all islands | C54: =J16 -> 250 | D54: m² | E54: 85 | F54: =SUM(E54*C54) -> 21250
A55: 6.6 | B55: Transmission pipleline slab protection 200mm | C55: =240*2 -> 480 | D55: m² | E55: 165 | F55: =C55*E55 -> 79200
A56: 7 | B56: TRAFFIC SIGNAL WORKS | G56: =SUM(F56:F64) -> 290000
A57: 7.1 | B57: General items | C57: 1 | D57: Item | E57: 27500 | F57: =SUM(E57*C57) -> 27500
A58: 7.2 | B58: Conduits | C58: 1 | D58: Item | E58: 25000 | F58: 25000
A59: 7.3 | B59: Pedestals | C59: 1 | D59: Item | E59: 60000 | F59: 60000
A60: 7.4 | B60: Lanterns | C60: 1 | D60: Item | E60: 24000 | F60: 24000
A61: 7.5 | B61: Controller | C61: 1 | D61: Item | E61: 82500 | F61: 82500
A62: 7.6 | B62: Detectors | C62: 1 | D62: Item | E62: 15000 | F62: 15000
A63: 7.7 | B63: Cabling & connections | C63: 1 | D63: Item | E63: 45000 | F63: 45000
A64: 7.8 | B64: Clean-up | C64: 1 | D64: Item | E64: 11000 | F64: 11000
A65: 8 | B65: SIGNAL MAINTENANCE (10 YEARS) by Road Authority | C65: 1 | D65: item | E65: 100000 | F65: 100000 | G65: =F65 -> 100000
A66: 9 | B66: POWER & LIGHTING | G66: =SUM(F67:F72) -> 221000
A67: 9.1 | B67: Light pole (1-way) and luminous lights | C67: 20 | D67: No | E67: 8000 | F67: 160000
A68: 9.2 | B68: Light pole (2-way) and luminous lights | C68: 0 | D68: No | E68: 9000 | F68: 0
A69: 9.3 | B69: JUP lighting single | C69: 4 | D69: No | E69: 4000 | F69: 16000
A70: 9.4 | B70: JUP lighting dual | C70: 0 | D70: No | E70: 5000 | F70: 0
A71: 9.5 | B71: Cabling, conduits and pits | C71: 1 | D71: Item | E71: 30000 | F71: 30000
A72: 9.6 | B72: Electrical connection | C72: 1 | D72: Item | E72: 15000 | F72: 15000
A73: 10 | B73: LANDSCAPING WORKS | G73: =SUM(F73:F75) -> 25092
A74: 10.1 | B74: Topsoiling seeding | C74: =J12*1.5+J14*1 -> 2952 | D74: m² | E74: 8.5 | F74: =SUM(E74*C74) -> 25092
A75: 10.2 | B75: Landcape planting | C75: 0 | D75: NA
A76: 11 | B76: SIGNING | C76: 1 | D76: item | E76: 10000 | F76: 10000 | G76: =F76 -> 10000
A77: 12 | B77: LINEMARKING (Thermoplastic) | C77: 1 | D77: item | E77: 30000 | F77: 30000 | G77: =F77 -> 30000
A78: 13 | B78: SERVICE RELOCATION | G78: =SUM(F78:F80) -> 0
A79: 13.1 | B79: (Water, gas, telstra) No allowance | C79: 0 | D79: Item | E79: 0 | F79: =SUM(E79*C79) -> 0
A80: 13.2 | B80: (Overhead electrical) No allowance | C80: 0 | D80: Item | E80: 0 | F80: =SUM(E80*C80) -> 0
A81: 14 | B81: MISCELLANEOUS | G81: =SUM(F81:F81) -> 0
A82: 15 | B82: PROVISIONAL SUM - DAYWORK | D82: item | F82: =SUM(E82*C82) -> 0 | G82: =F82 -> 0
B84: TOTAL A - C | F84: =SUM(F25:F83,F7:F23) -> 4241993.762 | G84: =SUM(G24+G15+G7) -> 4241993.762
A86: D | B86: Contingency
B87: =Summary!B17 -> Contingency (15% of C) | F87: 0.15 | G87: =F87*G24 -> 563221.1235
A89: E | B89: PROJECT BUDGET
B90: Total Estimate | G90: =G87+G84 -> 4805214.885
A93: Notes:
A94: - | B94: Earthworks based on a concept vertical grade alignment
A96: Services
A97: 1 | B97: Service relocation / alterations have not been allowed for in the estimate
A98: 2 | B98: No allowance for water, gas, telstra, sewer
A99: Substations
A100: 3 | B100: No allowance for substations
A101: Preliminaries
A102: 4 | B102: Based on nominal rates
A103: Subsoil Drain
A104: 5 | B104: Assume same as kerb and channel
A105: Side Entry Pits
A106: 6 | B106: Based on 50 m intervals
A107: Tactile Pavers
A108: 7 | B108: Assume hazard TGSI's (no directional)
A109: Signing
A110: 8 | B110: Nominal rate
A111: Pavement
A112: 9 | B112: Assume deep lift asphalt pavement
A113: Tree Removal
A114: 10 | B114: Based on preliminary information
A115: Roads
A116: 11 | B116: Where applicable, existing road conditions based on limited crushed rock roads assumed to be of no consequence to works
A117: 12 | B117: Where applicable, existing asphalt roads to be demolished as part of intersection works
A118: Dry Stone Wall
A119: 13 | B119: Dry stone wall works allowance has assumed the wall is not heritage listed and does not need to be reconstructed
A121: AUTHOR: | B121: Jack Hume
A122: Date: | B122: 2014-10-21
A124: REVIEWER: | B124: Rob Henry
A125: Date: | B125: 2014-10-21

Sheet IN-22
A1: PRELIMINARY ESTIMATE OF DEVELOPMENT COSTS | G1: =Summary!A5 -> 2015-05-14
A2: =Summary!A3 -> CG140690 | G2: =Summary!A6 -> Version 11
A3: =Summary!A4 -> Wollert PSP - Intersection Cost Estimate | C3: PM %: | D3: 0.0899 | I3: Click here for Nearmap Screenshots taken July 2014
A4: Intersection Ref: | B4: =J7 -> IN-22 | E4: DRAFT | I4: Do not Delete the below info
A5: Sheet Ref: | B5: =Summary!V9 -> (26-VR)
A6: ITEM | B6: DESCRIPTION | C6: QUANTITY | D6: UNIT | E6: RATE | F6: AMOUNT | G6: SUBTOTAL | I6: Sheet Specific Information | J6: Input | K6: Cell Reference
A7: A | B7: =Summary!B10 -> Project and Program Management (%) | G7: =SUM(F7:F14) -> 123997.1709 | I7: Intersection Name | J7: IN-22 | K7: A4
B8: Project Management | D8: 0.03 | E8: =($D$3/0.1)*D8 -> 0.02697 | F8: =E8*$G$24 -> 74398.30252 | I8: Existing road directions | J8: N-S and E-W | K8: B87
B9: Project scoping, planning, scheduling, monitoring, reporting and commissioning | I9: Previous Road area | J9: 2800 | K9: m2
B10: Management of preconstruction activities, development of tender documents and management of contracts | I10: Total Roadway Area | J10: 9550 | K10: m2
B11: Managing external interfaces, including community liaison, environmental issues, traffic issues etc. | I11: Island Area | J11: 3600 | K11: m2
B12: Records management | I12: Kerb and Channel | J12: =1000+275+325+175+175-545 -> 1405 | K12: Lm
B13: Program Administration | D13: 0.02 | E13: =($D$3/0.1)*D13 -> 0.01798 | F13: =E13*$G$24 -> 49598.86834 | I13: Shoulder | J13: =85+40+100+120+115+85 -> 545 | K13: Lm
I14: Footpath Length | J14: =100+100+100 -> 300 | K14: Lm
A15: B | B15: =Summary!B11 -> Design and Investigation (%) | G15: =SUM(F15:F23) -> 247994.3417 | I15: Pipe Length | J15: 800 | K15: Lm
B16: Traffic Investigations | D16: 0.0085 | E16: =($D$3/0.1)*D16 -> 0.0076415 | F16: =E16*$G$24 -> 21079.51905 | I16: Island Concrete infill | J16: =25+25+100+125+30+30 -> 335 | K16: m2
B17: Cadastral and Engineering Survey | D17: 0.012 | E17: 0.010788 | F17: 29759.32101 | I17: Shared Path Length | J17: =150+100+175+175+100+150 -> 850 | K17: Lm
B18: Geotechnical investigations Pavement Investigations and Design | D18: 0.012 | E18: 0.010788 | F18: 29759.32101
B19: Environmental Investigations | E19: 0 | F19: 0
B20: Landscape Design | E20: 0 | F20: 0
B21: Preliminary and Final Design | D21: 0.0425 | E21: 0.0382075 | F21: 105397.5952
B22: Construction Management | D22: 0.025 | E22: 0.022475 | F22: 61998.58543
I23: 2.5% of construction cost | J23: =0.025*G24 -> 68963.94375
A24: C | B24: Construction | F24: =SUM(F25:F79) -> 2758557.75 | G24: =SUM(G25:G78) -> 2758557.75
A25: 1 | B25: PRELIMINARIES | G25: =SUM(F25:F28) -> 100000
A26: 1.1 | B26: Site establishment | C26: 1 | D26: Item | E26: 10000 | F26: =E26*C26 -> 10000
A27: 1.2 | B27: Site management & supervision including QA | C27: 20 | D27: wks | E27: 2500 | F27: =SUM(E27*C27) -> 50000
A28: 1.3 | B28: Provision for traffic | C28: 1 | D28: Item | E28: 40000 | F28: =SUM(E28*C28) -> 40000
A29: 2 | B29: DEMOLITION | G29: =SUM(F29:F32) -> 46000
A30: 2.1 | B30: Trees | C30: 17 | D30: No | E30: 500 | F30: =SUM(E30*C30) -> 8500
A31: 2.2 | B31: Demolition of existing Road | C31: 1 | D31: item | E31: 37500 | F31: =SUM(E31*C31) -> 37500
A32: 3 | B32: EARTHWORKS | G32: =SUM(F32:F37) -> 401176.5
A33: 3.1 | B33: Stripping topsoil (150mm) | C33: =J10+J12*1+J13*1.3-J11-J9 -> 5263.5 | D33: m² | E33: 6 | F33: =SUM(E33*C33) -> 31581
A34: 3.2 | B34: Excavation and removal | C34: =C39*0.5 -> 3486.75 | D34: m³ | E34: 30 | F34: =SUM(E34*C34) -> 104602.5
A35: 3.3 | B35: Soft spot rectification (reclaimed FCR) | C35: =C39*20% -> 1394.7 | D35: m³ | E35: 15 | F35: =SUM(E35*C35) -> 20920.5
A36: 3.4 | B36: Rock excavation & sub-surface remediation 450mm | C36: =C39*50% -> 3486.75 | D36: m² | E36: =55+15 -> 70 | F36: =SUM(E36*C36) -> 244072.5
A37: 4 | B37: PAVEMENT | G37: =SUM(F37:F40) -> 1030092.5
A38: 4.1 | B38: Deep lift asphalt 195 mm | C38: =J10-J13-J11 -> 5405 | D38: m² | E38: =IF(C38<15000,105,85) -> 105 | F38: =SUM(E38*C38) -> 567525
A39: 4.2 | B39: Subbase course - 250 mm 3% CTCR | C39: =C38+(J12*1)+C40*0.3 -> 6973.5 | D39: m² | E39: =IF(C39<15000,55,45) -> 55 | F39: =SUM(E39*C39) -> 383542.5
A40: 4.3 | B40: Shoulder - full depth pavement | C40: =J13 -> 545 | D40: m² | E40: 145 | F40: =SUM(E40*C40) -> 79025
A41: 5 | B41: DRAINAGE | G41: =SUM(F41:F45) -> 259500
A42: 5.1 | B42: Subsoil drains 100mm dia - screenings | C42: =J12+J13 -> 1950 | D42: Lm | E42: 30 | F42: =SUM(E42*C42) -> 58500
A43: 5.2 | B43: Subsoil drains 100mm dia - no fines conc | C43: 0 | D43: Lm | E43: 45 | F43: =SUM(E43*C43) -> 0
A44: 5.3 | B44: 375 RCP (class 2) | C44: =J15 -> 800 | D44: Lm | E44: 170 | F44: =SUM(E44*C44) -> 136000
A45: 5.4 | B45: Side entry pits | C45: 26 | D45: No | E45: 2500 | F45: =SUM(E45*C45) -> 65000
A46: 6 | B46: CONCRETE WORKS | G46: =SUM(F46:F51) -> 238325
A47: 6.1 | B47: Kerb &channel | C47: =J12 -> 1405 | D47: Lm | E47: 50 | F47: =SUM(E47*C47) -> 70250
A48: 6.2 | B48: Shared Paths (3.0m wide,125 mm, residential, as per MPA) | C48: =J17 -> 850 | D48: Lm | E48: 130 | F48: =SUM(E48*C48) -> 110500
A49: 6.3 | B49: Footpaths (1.5m wide,125 mm, residential, as per MPA) | C49: =J14 -> 300 | D49: No | E49: 65 | F49: =SUM(E49*C49) -> 19500
A50: 6.4 | B50: Laybacks and tactile pavers | C50: 8 | D50: m² | E50: 1200 | F50: =SUM(E50*C50) -> 9600
A51: 6.5 | B51: 10m concrete maintenance area end of all islands | C51: =J16 -> 335 | D51: m² | E51: 85 | F51: =SUM(E51*C51) -> 28475
A52: 7 | B52: TRAFFIC SIGNAL WORKS | G52: =SUM(F52:F60) -> 302000
A53: 7.1 | B53: General items | C53: 1 | D53: Item | E53: 27500 | F53: =SUM(E53*C53) -> 27500
A54: 7.2 | B54: Conduits | C54: 1 | D54: Item | E54: 28000 | F54: 28000
A55: 7.3 | B55: Pedestals | C55: 1 | D55: Item | E55: 65000 | F55: 65000
A56: 7.4 | B56: Lanterns | C56: 1 | D56: Item | E56: 25000 | F56: 25000
A57: 7.5 | B57: Controller | C57: 1 | D57: Item | E57: 82500 | F57: 82500
A58: 7.6 | B58: Detectors | C58: 1 | D58: Item | E58: 15000 | F58: 15000
A59: 7.7 | B59: Cabling & connections | C59: 1 | D59: Item | E59: 48000 | F59: 48000
A60: 7.8 | B60: Clean-up | C60: 1 | D60: Item | E60: 11000 | F60: 11000
A61: 8 | B61: SIGNAL MAINTENANCE (10 YEARS) by Road Authority | C61: 1 | D61: item | E61: 100000 | F61: 100000 | G61: =F61 -> 100000
A62: 9 | B62: POWER & LIGHTING | G62: =SUM(F63:F68) -> 221000
A63: 9.1 | B63: Light pole (1-way) and luminous lights | C63: 12 | D63: No | E63: 8000 | F63: 96000
A64: 9.2 | B64: Light pole (2-way) and luminous lights | C64: 6 | D64: No | E64: 9000 | F64: 54000
A65: 9.3 | B65: JUP lighting single | C65: 4 | D65: No | E65: 4000 | F65: 16000
A66: 9.4 | B66: JUP lighting dual | C66: 2 | D66: No | E66: 5000 | F66: 10000
A67: 9.5 | B67: Cabling, conduits and pits | C67: 1 | D67: Item | E67: 30000 | F67: 30000
A68: 9.6 | B68: Electrical connection | C68: 1 | D68: Item | E68: 15000 | F68: 15000
A69: 10 | B69: LANDSCAPING WORKS | G69: =SUM(F69:F71) -> 20463.75
A70: 10.1 | B70: Topsoiling seeding | C70: =J12*1.5+J14*1 -> 2407.5 | D70: m² | E70: 8.5 | F70: =SUM(E70*C70) -> 20463.75
A71: 10.2 | B71: Landcape planting | C71: 0 | D71: NA
A72: 11 | B72: SIGNING | C72: 1 | D72: item | E72: 10000 | F72: 10000 | G72: =F72 -> 10000
A73: 12 | B73: LINEMARKING (Thermoplastic) | C73: 1 | D73: item | E73: 30000 | F73: 30000 | G73: =F73 -> 30000
A74: 13 | B74: SERVICE RELOCATION | G74: =SUM(F74:F76) -> 0
A75: 13.1 | B75: (Water, gas, Telstra) No allowance | C75: 0 | D75: Item | E75: 0 | F75: =SUM(E75*C75) -> 0
A76: 13.2 | B76: (Overhead electrical) No allowance | C76: 0 | D76: Item | E76: 0 | F76: =SUM(E76*C76) -> 0
A77: 14 | B77: MISCELLANEOUS | G77: =SUM(F77:F77) -> 0
A78: 15 | B78: PROVISIONAL SUM - DAYWORK | D78: item | F78: =SUM(E78*C78) -> 0 | G78: =F78 -> 0
B80: TOTAL A - C | F80: =SUM(F25:F79,F7:F23) -> 3130549.263 | G80: =SUM(G24+G15+G7) -> 3130549.263
A82: D | B82: Contingency
B83: =Summary!B17 -> Contingency (15% of C) | F83: 0.15 | G83: =F83*G24 -> 413783.6625
A85: E | B85: PROJECT BUDGET
B86: Total Estimate | G86: =G83+G80 -> 3544332.925
A89: Notes:
A90: - | B90: Earthworks based on a concept vertical grade alignment
A92: Services
A93: 1 | B93: Service relocation / alterations have not been allowed for in the estimate
A94: 2 | B94: No allowance for water, gas, telstra, sewer
A95: Substations
A96: 3 | B96: No allowance for substations
A97: Preliminaries
A98: 4 | B98: Based on nominal rates
A99: Subsoil Drain
A100: 5 | B100: Assume same as kerb and channel
A101: Side Entry Pits
A102: 6 | B102: Based on 50 m intervals
A103: Tactile Pavers
A104: 7 | B104: Assume hazard TGSI's (no directional)
A105: Signing
A106: 8 | B106: Nominal rate
A107: Pavement
A108: 9 | B108: Assume deep lift asphalt pavement
A109: Tree Removal
A110: 10 | B110: Based on preliminary information
A111: Roads
A112: 11 | B112: Where applicable, existing road conditions based on limited crushed rock roads assumed to be of no consequence to works
A113: 12 | B113: Where applicable, existing asphalt roads to be demolished as part of intersection works
A114: Dry Stone Wall
A115: 13 | B115: Dry stone wall works allowance has assumed the wall is not heritage listed and does not need to be reconstructed
A117: AUTHOR: | B117: Jack Hume
A118: Date: | B118: 2014-10-21
A120: REVIEWER: | B120: Rob Henry
A121: Date: | B121: 2014-10-21

Sheet IN-23
A1: PRELIMINARY ESTIMATE OF DEVELOPMENT COSTS | G1: =Summary!A5 -> 2015-05-14
A2: =Summary!A3 -> CG140690 | G2: =Summary!A6 -> Version 11
A3: =Summary!A4 -> Wollert PSP - Intersection Cost Estimate | C3: PM %: | D3: 0.0929
A4: Intersection Ref: | B4: =J7 -> IN-23 | E4: DRAFT | I4: Do not Delete the below info
A5: Sheet Ref: | B5: =Summary!W9 -> (18-VR)
A6: ITEM | B6: DESCRIPTION | C6: QUANTITY | D6: UNIT | E6: RATE | F6: AMOUNT | G6: SUBTOTAL | I6: Sheet Specific Information | J6: Input | K6: Unit | L6: Cell Reference
A7: A | B7: =Summary!B10 -> Project and Program Management (%) | G7: =SUM(F7:F14) -> 97828.72821 | I7: Intersection Name | J7: IN-23 | L7: A4
B8: Project Management | D8: 0.03 | E8: =($D$3/0.1)*D8 -> 0.02787 | F8: =E8*$G$24 -> 58697.23693 | I8: Existing Road Directions | J8: N-S | L8: B105
B9: Project scoping, planning, scheduling, monitoring, reporting and commissioning | I9: Previous Road area | K9: m2
B10: Management of preconstruction activities, development of tender documents and management of contracts | I10: Total Roadway Area | J10: 6900 | K10: m2
B11: Managing external interfaces, including community liaison, environmental issues, traffic issues etc | I11: Island Area | J11: 2300 | K11: m2
B12: Records management | I12: Kerb and Channel | J12: =830+180+75+275+235-210 -> 1385 | K12: Lm
B13: Program Administration | D13: 0.02 | E13: =($D$3/0.1)*D13 -> 0.01858 | F13: =E13*$G$24 -> 39131.49128 | I13: Shoulder | J13: 210 | K13: Lm
I14: Footpath Length | J14: 185 | K14: Lm
A15: B | B15: =Summary!B11 -> Design and Investigation (%) | G15: =SUM(F15:F23) -> 195657.4564 | I15: Pipe Length | J15: 450 | K15: Lm
B16: Traffic Investigations | D16: 0.0085 | E16: =($D$3/0.1)*D16 -> 0.0078965 | F16: =E16*$G$24 -> 16630.8838 | I16: Island Concrete infill | J16: =100+25+25+150+30+170 -> 500 | K16: m2
B17: Cadastral and Engineering Survey | D17: 0.012 | E17: 0.011148 | F17: 23478.89477 | I17: Shared Path Length | J17: 390 | K17: Lm
B18: Geotechnical investigations Pavement Investigations and Design | D18: 0.012 | E18: 0.011148 | F18: 23478.89477
B19: Environmental Investigations | E19: 0 | F19: 0
B20: Landscape Design | E20: 0 | F20: 0
B21: Preliminary and Final Design | D21: 0.0425 | E21: 0.0394825 | F21: 83154.41898
B22: Construction Management | D22: 0.025 | E22: 0.023225 | F22: 48914.36411 | I22: 2.5% of construction cost | J22: =0.025*G24 -> 52652.70625
A24: C | B24: Construction | F24: =SUM(F25:F79) -> 2106108.25 | G24: =SUM(G25:G78) -> 2106108.25
A25: 1 | G25: =SUM(F25:F28) -> 58000
A26: 1.1 | B26: Site establishment | C26: 1 | D26: Item | E26: 8000 | F26: =SUM(E26*C26) -> 8000
A27: 1.2 | B27: Site management & supervision including QA | C27: 16 | D27: wks | E27: 2500 | F27: =SUM(E27*C27) -> 40000
A28: 1.3 | B28: Provision for traffic | C28: 1 | D28: Item | E28: 10000 | F28: =SUM(E28*C28) -> 10000
A29: 2 | B29: DEMOLITION | G29: =SUM(F29:F32) -> 7000
A30: 2.1 | B30: Trees | C30: 4 | D30: No | E30: 500 | F30: =SUM(E30*C30) -> 2000
A31: 2.2 | B31: Dry stone wall demolition & make good | C31: 1 | D31: item | E31: 5000 | F31: =SUM(E31*C31) -> 5000
A32: 3 | B32: EARTHWORKS | G32: =SUM(F32:F37) -> 346962
A33: 3.1 | B33: Stripping topsoil (150mm) | C33: =J10+J12*1+J13*1.3-J11-J9 -> 6258 | D33: m² | E33: 6 | F33: =SUM(E33*C33) -> 37548
A34: 3.2 | B34: Excavation and removal | C34: =C39*0.5 -> 2919 | D34: m³ | E34: 30 | F34: =SUM(E34*C34) -> 87570
A35: 3.4 | B35: Soft spot rectification | C35: =C39*20% -> 1167.6 | D35: m³ | E35: 15 | F35: =SUM(E35*C35) -> 17514
A36: 3.4 | B36: Rock excavation & sub-surface remediation 450mm | C36: =C39*50% -> 2919 | D36: m² | E36: =55+15 -> 70 | F36: =SUM(E36*C36) -> 204330
A37: 4 | B37: PAVEMENT | G37: =SUM(F37:F41) -> 812490
A38: 4.1 | B38: Deep lift asphalt 195 mm | C38: =J10-J11-J13 -> 4390 | D38: m² | E38: =IF(C38<15000,105,85) -> 105 | F38: =SUM(E38*C38) -> 460950
A39: 4.2 | B39: Subbase course - 250 mm 3% CTCR | C39: =C38+(J12*1)+C40*0.3 -> 5838 | D39: m² | E39: 55 | F39: =SUM(E39*C39) -> 321090
A40: 4.3 | B40: Shoulder 1m wide - full depth pavement | C40: =J13 -> 210 | D40: m | E40: 145 | F40: =SUM(E40*C40) -> 30450
A41: 5 | B41: DRAINAGE | G41: =SUM(F42:F46) -> 156850
A42: 5.1 | B42: Subsoil drains 100mm dia - screenings | C42: =J12+J13 -> 1595 | D42: Lm | E42: 30 | F42: =SUM(E42*C42) -> 47850
A43: 5.2 | B43: Subsoil drains 100mm dia - no fines conc | C43: 0 | D43: Lm | E43: 45 | F43: =SUM(E43*C43) -> 0
A44: 5.3 | B44: 375 RCP (class 2) | C44: =J15 -> 450 | D44: Lm | E44: 170 | F44: =SUM(E44*C44) -> 76500
A45: 5.4 | B45: Side entry pits | C45: 13 | D45: No | E45: 2500 | F45: =SUM(E45*C45) -> 32500
A46: 6 | B46: CONCRETE WORKS | G46: =SUM(F46:F51) -> 179575
A47: 6.1 | B47: Kerb &channel | C47: =J12 -> 1385 | D47: Lm | E47: 50 | F47: =SUM(E47*C47) -> 69250
A48: 6.2 | B48: Shared Paths (3.0m wide,125 mm, residential, as per MPA) | C48: =J17 -> 390 | D48: Lm | E48: 130 | F48: =SUM(E48*C48) -> 50700
A49: 6.3 | B49: Footpaths (1.5m wide,125 mm, residential, as per MPA) | C49: =J14 -> 185 | D49: Lm | E49: 65 | F49: =SUM(E49*C49) -> 12025
A50: 6.4 | B50: Laybacks and tactile pavers | C50: 6 | D50: No | E50: 850 | F50: =SUM(E50*C50) -> 5100
A51: 6.5 | B51: 10m concrete maintenance area end of all islands | C51: =J16 -> 500 | D51: m² | E51: 85 | F51: =SUM(E51*C51) -> 42500
A52: 7 | B52: TRAFFIC SIGNAL WORKS | G52: =SUM(F52:F60) -> 248500
A53: 7.1 | B53: General items | C53: 1 | D53: Item | E53: 23000 | F53: =SUM(E53*C53) -> 23000
A54: 7.2 | B54: Conduits | C54: 1 | D54: Item | E54: 20000 | F54: 20000
A55: 7.3 | B55: Pedestals | C55: 1 | D55: Item | E55: 47000 | F55: 47000
A56: 7.4 | B56: Lanterns | C56: 1 | D56: Item | E56: 20000 | F56: 20000
A57: 7.5 | B57: Controller | C57: 1 | D57: Item | E57: 75000 | F57: 75000
A58: 7.6 | B58: Detectors | C58: 1 | D58: Item | E58: 9500 | F58: 9500
A59: 7.7 | B59: Cabling & connections | C59: 1 | D59: Item | E59: 45000 | F59: 45000
A60: 7.8 | B60: Clean-up | C60: 1 | D60: Item | E60: 9000 | F60: 9000
A61: 8 | B61: SIGNAL MAINTENANCE (10 YEARS) by Road Authority | C61: 1 | D61: item | E61: 100000 | F61: 100000 | G61: =F61 -> 100000
A62: 9 | B62: POWER & LIGHTING | G62: =SUM(F63:F68) -> 150000
A63: 9.1 | B63: Light pole (1-way) and luminous lights | C63: 2 | D63: No | E63: 8000 | F63: 16000
A64: 9.2 | B64: Light pole (2-way) and luminous lights | C64: 7 | D64: No | E64: 9000 | F64: 63000
A65: 9.3 | B65: JUP lighting single | C65: 4 | D65: No | E65: 4000 | F65: 16000
A66: 9.4 | B66: JUP lighting dual | C66: 2 | D66: No | E66: 5000 | F66: 10000
A67: 9.5 | B67: Cabling, conduits and pits | C67: 1 | D67: Item | E67: 30000 | F67: 30000
A68: 9.6 | B68: Electrical connection | C68: 1 | D68: Item | E68: 15000 | F68: 15000
A69: 10 | B69: LANDSCAPING WORKS | G69: =SUM(F69:F71) -> 19231.25
A70: 10.1 | B70: Topsoiling seeding | C70: =J12*1.5+J14*1 -> 2262.5 | D70: m² | E70: 8.5 | F70: =SUM(E70*C70) -> 19231.25
A71: 10.2 | B71: Landcape planting | C71: 0 | D71: NA
A72: 11 | B72: SIGNING | C72: 1 | D72: item | E72: 7500 | F72: 7500 | G72: =F72 -> 7500
A73: 12 | B73: LINEMARKING (Thermoplastic) | C73: 1 | D73: item | E73: 20000 | F73: 20000 | G73: =F73 -> 20000
A74: 13 | B74: SERVICE RELOCATION | G74: =SUM(F74:F76) -> 0
A75: 13.1 | B75: (Water, gas, telstra) No allowance | D75: item
A76: 13.2 | B76: (Overhead electrical) No allowance | D76: item
A77: 14 | B77: MISCELLANEOUS | G77: =F77 -> 0
A78: 15 | B78: PROVISIONAL SUM - DAYWORK | D78: item | F78: =SUM(E78*C78) -> 0 | G78: =F78 -> 0
B80: TOTAL A - C | F80: =SUM(F25:F79,F7:F23) -> 2399594.435 | G80: =SUM(G24+G15+G7) -> 2399594.435
A82: D | B82: Contingency
B83: =Summary!B17 -> Contingency (15% of C) | F83: 0.15 | G83: =F83*G24 -> 315916.2375
A85: E | B85: PROJECT BUDGET
B86: Total Estimate | G86: =G83+G80 -> 2715510.672
A89: Notes:
A90: - | B90: Earthworks based on a concept vertical grade alignment
A92: Services
A93: 1 | B93: Service relocation / alterations have not been allowed for in the estimate
A94: 2 | B94: No allowance for water, gas, telstra, sewer
A95: Substations
A96: 3 | B96: No allowance for substations
A97: Preliminaries
A98: 4 | B98: Based on nominal rates
A99: Subsoil Drain
A100: 5 | B100: Assume same as kerb and channel
A101: Side Entry Pits
A102: 6 | B102: Based on 50 m intervals
A103: Tactile Pavers
A104: 7 | B104: Assume hazard TGSI's (no directional)
A105: Signing
A106: 8 | B106: Nominal rate
A107: Pavement
A108: 9 | B108: Assume deep lift asphalt pavement
A109: Tree Removal
A110: 10 | B110: Based on preliminary information
A111: Roads
A112: 11 | B112: Where applicable, existing road conditions based on limited crushed rock roads assumed to be of no consequence to works
A113: 12 | B113: Where applicable, existing asphalt roads to be demolished as part of intersection works
A114: Dry Stone Wall
A115: 13 | B115: Dry stone wall works allowance has assumed the wall is not heritage listed and does not need to be reconstructed
A117: AUTHOR: | B117: Jack Hume
A118: Date: | B118: 2014-10-21
A120: REVIEWER: | B120: Rob Henry
A121: Date: | B121: 2014-10-21

Sheet IN-24
A1: PRELIMINARY ESTIMATE OF DEVELOPMENT COSTS | G1: =Summary!A5 -> 2015-05-14
A2: =Summary!A3 -> CG140690 | G2: =Summary!A6 -> Version 11
A3: =Summary!A4 -> Wollert PSP - Intersection Cost Estimate | C3: PM %: | D3: 0.0929
A4: Intersection Ref: | B4: =J7 -> IN-24 | E4: DRAFT | I4: Do not Delete the below info
A5: Sheet Ref: | B5: =Summary!X9 -> (18-VR)
A6: ITEM | B6: DESCRIPTION | C6: QUANTITY | D6: UNIT | E6: RATE | F6: AMOUNT | G6: SUBTOTAL | I6: Sheet Specific Information | J6: Input | K6: Unit | L6: Cell Reference
A7: A | B7: =Summary!B10 -> Project and Program Management (%) | G7: =SUM(F7:F14) -> 97828.72821 | I7: Intersection Name | J7: IN-24 | L7: A4
B8: Project Management | D8: 0.03 | E8: =($D$3/0.1)*D8 -> 0.02787 | F8: =E8*$G$24 -> 58697.23693 | I8: Existing Road Directions | J8: N-S | L8: B105
B9: Project scoping, planning, scheduling, monitoring, reporting and commissioning | I9: Previous Road area | K9: m2
B10: Management of preconstruction activities, development of tender documents and management of contracts | I10: Total Roadway Area | J10: 6900 | K10: m2
B11: Managing external interfaces, including community liaison, environmental issues, traffic issues etc | I11: Island Area | J11: 2300 | K11: m2
B12: Records management | I12: Kerb and Channel | J12: =830+180+75+275+235-210 -> 1385 | K12: Lm
B13: Program Administration | D13: 0.02 | E13: =($D$3/0.1)*D13 -> 0.01858 | F13: =E13*$G$24 -> 39131.49128 | I13: Shoulder | J13: 210 | K13: Lm
I14: Footpath Length | J14: 185 | K14: Lm
A15: B | B15: =Summary!B11 -> Design and Investigation (%) | G15: =SUM(F15:F23) -> 195657.4564 | I15: Pipe Length | J15: 450 | K15: Lm
B16: Traffic Investigations | D16: 0.0085 | E16: =($D$3/0.1)*D16 -> 0.0078965 | F16: =E16*$G$24 -> 16630.8838 | I16: Island Concrete infill | J16: =100+25+25+150+30+170 -> 500 | K16: m2
B17: Cadastral and Engineering Survey | D17: 0.012 | E17: 0.011148 | F17: 23478.89477 | I17: Shared Path Length | J17: 390 | K17: Lm
B18: Geotechnical investigations Pavement Investigations and Design | D18: 0.012 | E18: 0.011148 | F18: 23478.89477
B19: Environmental Investigations | E19: 0 | F19: 0
B20: Landscape Design | E20: 0 | F20: 0
B21: Preliminary and Final Design | D21: 0.0425 | E21: 0.0394825 | F21: 83154.41898
B22: Construction Management | D22: 0.025 | E22: 0.023225 | F22: 48914.36411 | I22: 2.5% of construction cost | J22: =0.025*G24 -> 52652.70625
A24: C | B24: Construction | F24: =SUM(F25:F79) -> 2106108.25 | G24: =SUM(G25:G78) -> 2106108.25
A25: 1 | G25: =SUM(F25:F28) -> 58000
A26: 1.1 | B26: Site establishment | C26: 1 | D26: Item | E26: 8000 | F26: =SUM(E26*C26) -> 8000
A27: 1.2 | B27: Site management & supervision including QA | C27: 16 | D27: wks | E27: 2500 | F27: =SUM(E27*C27) -> 40000
A28: 1.3 | B28: Provision for traffic | C28: 1 | D28: Item | E28: 10000 | F28: =SUM(E28*C28) -> 10000
A29: 2 | B29: DEMOLITION | G29: =SUM(F29:F32) -> 7000
A30: 2.1 | B30: Trees | C30: 4 | D30: No | E30: 500 | F30: =SUM(E30*C30) -> 2000
A31: 2.2 | B31: Dry stone wall demolition & make good | C31: 1 | D31: item | E31: 5000 | F31: =SUM(E31*C31) -> 5000
A32: 3 | B32: EARTHWORKS | G32: =SUM(F32:F37) -> 346962
A33: 3.1 | B33: Stripping topsoil (150mm) | C33: =J10+J12*1+J13*1.3-J11-J9 -> 6258 | D33: m² | E33: 6 | F33: =SUM(E33*C33) -> 37548
A34: 3.2 | B34: Excavation and removal | C34: =C39*0.5 -> 2919 | D34: m³ | E34: 30 | F34: =SUM(E34*C34) -> 87570
A35: 3.4 | B35: Soft spot rectification | C35: =C39*20% -> 1167.6 | D35: m³ | E35: 15 | F35: =SUM(E35*C35) -> 17514
A36: 3.4 | B36: Rock excavation & sub-surface remediation 450mm | C36: =C39*50% -> 2919 | D36: m² | E36: =55+15 -> 70 | F36: =SUM(E36*C36) -> 204330
A37: 4 | B37: PAVEMENT | G37: =SUM(F37:F41) -> 812490
A38: 4.1 | B38: Deep lift asphalt 195 mm | C38: =J10-J11-J13 -> 4390 | D38: m² | E38: =IF(C38<15000,105,85) -> 105 | F38: =SUM(E38*C38) -> 460950
A39: 4.2 | B39: Subbase course - 250 mm 3% CTCR | C39: =C38+(J12*1)+C40*0.3 -> 5838 | D39: m² | E39: 55 | F39: =SUM(E39*C39) -> 321090
A40: 4.3 | B40: Shoulder 1m wide - full depth pavement | C40: =J13 -> 210 | D40: m | E40: 145 | F40: =SUM(E40*C40) -> 30450
A41: 5 | B41: DRAINAGE | G41: =SUM(F42:F46) -> 156850
A42: 5.1 | B42: Subsoil drains 100mm dia - screenings | C42: =J12+J13 -> 1595 | D42: Lm | E42: 30 | F42: =SUM(E42*C42) -> 47850
A43: 5.2 | B43: Subsoil drains 100mm dia - no fines conc | C43: 0 | D43: Lm | E43: 45 | F43: =SUM(E43*C43) -> 0
A44: 5.3 | B44: 375 RCP (class 2) | C44: =J15 -> 450 | D44: Lm | E44: 170 | F44: =SUM(E44*C44) -> 76500
A45: 5.4 | B45: Side entry pits | C45: 13 | D45: No | E45: 2500 | F45: =SUM(E45*C45) -> 32500
A46: 6 | B46: CONCRETE WORKS | G46: =SUM(F46:F51) -> 179575
A47: 6.1 | B47: Kerb &channel | C47: =J12 -> 1385 | D47: Lm | E47: 50 | F47: =SUM(E47*C47) -> 69250
A48: 6.2 | B48: Shared Paths (3.0m wide,125 mm, residential, as per MPA) | C48: =J17 -> 390 | D48: Lm | E48: 130 | F48: =SUM(E48*C48) -> 50700
A49: 6.3 | B49: Footpaths (1.5m wide,125 mm, residential, as per MPA) | C49: =J14 -> 185 | D49: Lm | E49: 65 | F49: =SUM(E49*C49) -> 12025
A50: 6.4 | B50: Laybacks and tactile pavers | C50: 6 | D50: No | E50: 850 | F50: =SUM(E50*C50) -> 5100
A51: 6.5 | B51: 10m concrete maintenance area end of all islands | C51: =J16 -> 500 | D51: m² | E51: 85 | F51: =SUM(E51*C51) -> 42500
A52: 7 | B52: TRAFFIC SIGNAL WORKS | G52: =SUM(F52:F60) -> 248500
A53: 7.1 | B53: General items | C53: 1 | D53: Item | E53: 23000 | F53: =SUM(E53*C53) -> 23000
A54: 7.2 | B54: Conduits | C54: 1 | D54: Item | E54: 20000 | F54: 20000
A55: 7.3 | B55: Pedestals | C55: 1 | D55: Item | E55: 47000 | F55: 47000
A56: 7.4 | B56: Lanterns | C56: 1 | D56: Item | E56: 20000 | F56: 20000
A57: 7.5 | B57: Controller | C57: 1 | D57: Item | E57: 75000 | F57: 75000
A58: 7.6 | B58: Detectors | C58: 1 | D58: Item | E58: 9500 | F58: 9500
A59: 7.7 | B59: Cabling & connections | C59: 1 | D59: Item | E59: 45000 | F59: 45000
A60: 7.8 | B60: Clean-up | C60: 1 | D60: Item | E60: 9000 | F60: 9000
A61: 8 | B61: SIGNAL MAINTENANCE (10 YEARS) by Road Authority | C61: 1 | D61: item | E61: 100000 | F61: 100000 | G61: =F61 -> 100000
A62: 9 | B62: POWER & LIGHTING | G62: =SUM(F63:F68) -> 150000
A63: 9.1 | B63: Light pole (1-way) and luminous lights | C63: 2 | D63: No | E63: 8000 | F63: 16000
A64: 9.2 | B64: Light pole (2-way) and luminous lights | C64: 7 | D64: No | E64: 9000 | F64: 63000
A65: 9.3 | B65: JUP lighting single | C65: 4 | D65: No | E65: 4000 | F65: 16000
A66: 9.4 | B66: JUP lighting dual | C66: 2 | D66: No | E66: 5000 | F66: 10000
A67: 9.5 | B67: Cabling, conduits and pits | C67: 1 | D67: Item | E67: 30000 | F67: 30000
A68: 9.6 | B68: Electrical connection | C68: 1 | D68: Item | E68: 15000 | F68: 15000
A69: 10 | B69: LANDSCAPING WORKS | G69: =SUM(F69:F71) -> 19231.25
A70: 10.1 | B70: Topsoiling seeding | C70: =J12*1.5+J14*1 -> 2262.5 | D70: m² | E70: 8.5 | F70: =SUM(E70*C70) -> 19231.25
A71: 10.2 | B71: Landcape planting | C71: 0 | D71: NA
A72: 11 | B72: SIGNING | C72: 1 | D72: item | E72: 7500 | F72: 7500 | G72: =F72 -> 7500
A73: 12 | B73: LINEMARKING (Thermoplastic) | C73: 1 | D73: item | E73: 20000 | F73: 20000 | G73: =F73 -> 20000
A74: 13 | B74: SERVICE RELOCATION | G74: =SUM(F74:F76) -> 0
A75: 13.1 | B75: (Water, gas, telstra) No allowance | D75: item
A76: 13.2 | B76: (Overhead electrical) No allowance | D76: item
A77: 14 | B77: MISCELLANEOUS | G77: =F77 -> 0
A78: 15 | B78: PROVISIONAL SUM - DAYWORK | D78: item | F78: =SUM(E78*C78) -> 0 | G78: =F78 -> 0
B80: TOTAL A - C | F80: =SUM(F25:F79,F7:F23) -> 2399594.435 | G80: =SUM(G24+G15+G7) -> 2399594.435
A82: D | B82: Contingency
B83: =Summary!B17 -> Contingency (15% of C) | F83: 0.15 | G83: =F83*G24 -> 315916.2375
A85: E | B85: PROJECT BUDGET
B86: Total Estimate | G86: =G83+G80 -> 2715510.672
A89: Notes:
A90: - | B90: Earthworks based on a concept vertical grade alignment
A92: Services
A93: 1 | B93: Service relocation / alterations have not been allowed for in the estimate
A94: 2 | B94: No allowance for water, gas, telstra, sewer
A95: Substations
A96: 3 | B96: No allowance for substations
A97: Preliminaries
A98: 4 | B98: Based on nominal rates
A99: Subsoil Drain
A100: 5 | B100: Assume same as kerb and channel
A101: Side Entry Pits
A102: 6 | B102: Based on 50 m intervals
A103: Tactile Pavers
A104: 7 | B104: Assume hazard TGSI's (no directional)
A105: Signing
A106: 8 | B106: Nominal rate
A107: Pavement
A108: 9 | B108: Assume deep lift asphalt pavement
A109: Tree Removal
A110: 10 | B110: Based on preliminary information
A111: Roads
A112: 11 | B112: Where applicable, existing road conditions based on limited crushed rock roads assumed to be of no consequence to works
A113: 12 | B113: Where applicable, existing asphalt roads to be demolished as part of intersection works
A114: Dry Stone Wall
A115: 13 | B115: Dry stone wall works allowance has assumed the wall is not heritage listed and does not need to be reconstructed
A117: AUTHOR: | B117: Jack Hume
A118: Date: | B118: 2014-10-21
A120: REVIEWER: | B120: Rob Henry
A121: Date: | B121: 2014-10-21

Sheet IN-26-T04
A1: PRELIMINARY ESTIMATE OF DEVELOPMENT COSTS | G1: =Summary!A5 -> 2015-05-14
A2: =Summary!A3 -> CG140690 | G2: =Summary!A6 -> Version 11
A3: =Summary!A4 -> Wollert PSP - Intersection Cost Estimate | C3: PM %: | D3: 0.0913 | I3: Click here for Nearmap Screenshots taken July 2014
A4: Intersection Ref: | B4: =J7 -> IN-26-D | E4: DRAFT | I4: Do not Delete the below info
A5: Sheet Ref: | B5: =Summary!Y9 -> T04-26P3
A6: ITEM | B6: DESCRIPTION | C6: QUANTITY | D6: UNIT | E6: RATE | F6: AMOUNT | G6: SUBTOTAL | I6: Sheet Specific Information | J6: Input | K6: Cell Reference
A7: A | B7: =Summary!B10 -> Project and Program Management (%) | G7: =SUM(F7:F14) -> 110701.3527 | I7: Intersection Name | J7: IN-26-D | K7: A4
B8: Project Management | D8: 0.03 | E8: =($D$3/0.1)*D8 -> 0.02739 | F8: =E8*$G$24 -> 66420.81163 | I8: Existing road directions | J8: N-S and E-W | K8: B87
B9: Project scoping, planning, scheduling, monitoring, reporting and commissioning | I9: Previous Road area | J9: 2500 | K9: m2
B10: Management of preconstruction activities, development of tender documents and management of contracts | I10: Total Roadway Area | J10: 6150 | K10: m2
B11: Managing external interfaces, including community liaison, environmental issues, traffic issues etc | I11: Island Area | J11: =270+300+310+400 -> 1280 | K11: m2
B12: Records management | I12: Kerb and Channel | J12: =900+200+200+200+240-J13 -> 1285 | K12: Lm
B13: Program Administration | D13: 0.02 | E13: =($D$3/0.1)*D13 -> 0.01826 | F13: =E13*$G$24 -> 44280.54109 | I13: Shoulder | J13: =70+90+120+85+90 -> 455 | K13: Lm
I14: Footpath Length | J14: =95+90 -> 185 | K14: Lm
A15: B | B15: =Summary!B11 -> Design and Investigation (%) | G15: =SUM(F15:F23) -> 221402.7054 | I15: Pipe Length | J15: 750 | K15: Lm
B16: Traffic Investigations | D16: 0.0085 | E16: =($D$3/0.1)*D16 -> 0.0077605 | F16: =E16*$G$24 -> 18819.22996 | I16: Island Concrete infill | J16: 50 | K16: m2
B17: Cadastral and Engineering Survey | D17: 0.012 | E17: 0.010956 | F17: 26568.32465 | I17: Shared Path Length | J17: =140+5+5+150+405+135+5 -> 845 | K17: Lm
B18: Geotechnical investigations Pavement Investigations and Design | D18: 0.012 | E18: 0.010956 | F18: 26568.32465
B19: Environmental Investigations | E19: 0 | F19: 0
B20: Landscape Design | E20: 0 | F20: 0
B21: Preliminary and Final Design | D21: 0.0425 | E21: 0.0388025 | F21: 94096.14981
B22: Construction Management | D22: 0.025 | E22: 0.022825 | F22: 55350.67636
I23: 2.5% of construction cost | J23: =0.025*G24 -> 60625.05625
A24: C | B24: Construction | F24: =SUM(F25:F80) -> 2425002.25 | G24: =SUM(G25:G79) -> 2425002.25
A25: 1 | B25: PRELIMINARIES | G25: =SUM(F25:F28) -> 95000
A26: 1.1 | B26: Site establishment | C26: 1 | D26: Item | E26: 10000 | F26: =E26*C26 -> 10000
A27: 1.2 | B27: Site management & supervision including QA | C27: 18 | D27: wks | E27: 2500 | F27: =SUM(E27*C27) -> 45000
A28: 1.3 | B28: Provision for traffic | C28: 1 | D28: Item | E28: 40000 | F28: =SUM(E28*C28) -> 40000
A29: 2 | B29: DEMOLITION | G29: =SUM(F29:F32) -> 46000
A30: 2.1 | B30: Trees | C30: 17 | D30: No | E30: 500 | F30: =SUM(E30*C30) -> 8500
A31: 2.2 | B31: Demolition of existing Road | C31: 1 | D31: item | E31: 37500 | F31: =SUM(E31*C31) -> 37500
A32: 3 | B32: EARTHWORKS | G32: =SUM(F32:F37) -> 334813.5
A33: 3.1 | B33: Stripping topsoil (150mm) | C33: =J10+J12*1+J13*1.3-J11-J9 -> 4246.5 | D33: m² | E33: 6 | F33: =SUM(E33*C33) -> 25479
A34: 3.2 | B34: Excavation and removal | C34: =C39*0.5 -> 2918.25 | D34: m³ | E34: 30 | F34: =SUM(E34*C34) -> 87547.5
A35: 3.3 | B35: Soft spot rectification (reclaimed FCR) | C35: =C39*20% -> 1167.3 | D35: m³ | E35: 15 | F35: =SUM(E35*C35) -> 17509.5
A36: 3.4 | B36: Rock excavation & sub-surface remediation 450mm | C36: =C39*50% -> 2918.25 | D36: m² | E36: =55+15 -> 70 | F36: =SUM(E36*C36) -> 204277.5
A37: 4 | B37: PAVEMENT | G37: =SUM(F37:F40) -> 850557.5
A38: 4.1 | B38: Deep lift asphalt 195 mm | C38: =J10-J13-J11 -> 4415 | D38: m² | E38: =IF(C38<15000,105,85) -> 105 | F38: =SUM(E38*C38) -> 463575
A39: 4.2 | B39: Subbase course - 250 mm 3% CTCR | C39: =C38+(J12*1)+C40*0.3 -> 5836.5 | D39: m² | E39: =IF(C39<15000,55,45) -> 55 | F39: =SUM(E39*C39) -> 321007.5
A40: 4.3 | B40: Shoulder - full depth pavement | C40: =J13 -> 455 | D40: m² | E40: 145 | F40: =SUM(E40*C40) -> 65975
A41: 5 | B41: DRAINAGE | G41: =SUM(F41:F46) -> 301700
A42: 5.1 | B42: Subsoil drains 100mm dia - screenings | C42: =J12+J13 -> 1740 | D42: Lm | E42: 30 | F42: =SUM(E42*C42) -> 52200
A43: 5.2 | B43: Subsoil drains 100mm dia - no fines conc | C43: 0 | D43: Lm | E43: 45 | F43: =SUM(E43*C43) -> 0
A44: 5.3 | B44: 375 RCP (class 2) | C44: =J15 -> 750 | D44: Lm | E44: 170 | F44: =SUM(E44*C44) -> 127500
A45: 5.4 | B45: Side entry pits | C45: 24 | D45: No | E45: 2500 | F45: =SUM(E45*C45) -> 60000
A46: 5.5 | B46: Allowance tomodify draiange to ultimate location | C46: 1 | D46: item | E46: =10*(2500+2000+10*E44) -> 62000 | F46: =SUM(E46*C46) -> 62000
A47: 6 | B47: CONCRETE WORKS | G47: =SUM(F47:F52) -> 199975
A48: 6.1 | B48: Kerb &channel | C48: =J12 -> 1285 | D48: Lm | E48: 50 | F48: =SUM(E48*C48) -> 64250
A49: 6.2 | B49: Shared Paths (3.0m wide,125 mm, residential, as per MPA) | C49: =J17 -> 845 | D49: Lm | E49: 130 | F49: =SUM(E49*C49) -> 109850
A50: 6.3 | B50: Footpaths (1.5m wide,125 mm, residential, as per MPA) | C50: =J14 -> 185 | D50: No | E50: 65 | F50: =SUM(E50*C50) -> 12025
A51: 6.4 | B51: Laybacks and tactile pavers | C51: 8 | D51: m² | E51: 1200 | F51: =SUM(E51*C51) -> 9600
A52: 6.5 | B52: 10m concrete maintenance area end of all islands | C52: =J16 -> 50 | D52: m² | E52: 85 | F52: =SUM(E52*C52) -> 4250
A53: 7 | B53: TRAFFIC SIGNAL WORKS | G53: =SUM(F53:F61) -> 290000
A54: 7.1 | B54: General items | C54: 1 | D54: Item | E54: 27500 | F54: =SUM(E54*C54) -> 27500
A55: 7.2 | B55: Conduits | C55: 1 | D55: Item | E55: 25000 | F55: 25000
A56: 7.3 | B56: Pedestals | C56: 1 | D56: Item | E56: 60000 | F56: 60000
A57: 7.4 | B57: Lanterns | C57: 1 | D57: Item | E57: 24000 | F57: 24000
A58: 7.5 | B58: Controller | C58: 1 | D58: Item | E58: 82500 | F58: 82500
A59: 7.6 | B59: Detectors | C59: 1 | D59: Item | E59: 15000 | F59: 15000
A60: 7.7 | B60: Cabling & connections | C60: 1 | D60: Item | E60: 45000 | F60: 45000
A61: 7.8 | B61: Clean-up | C61: 1 | D61: Item | E61: 11000 | F61: 11000
A62: 8 | B62: SIGNAL MAINTENANCE (10 YEARS) by Road Authority | C62: 1 | D62: item | E62: 100000 | F62: 100000 | G62: =F62 -> 100000
A63: 9 | B63: POWER & LIGHTING | G63: =SUM(F64:F69) -> 149000
A64: 9.1 | B64: Light pole (1-way) and luminous lights | C64: 11 | D64: No | E64: 8000 | F64: 88000
A65: 9.2 | B65: Light pole (2-way) and luminous lights | C65: 0 | D65: No | E65: 9000 | F65: 0
A66: 9.3 | B66: JUP lighting single | C66: 4 | D66: No | E66: 4000 | F66: 16000
A67: 9.4 | B67: JUP lighting dual | C67: 0 | D67: No | E67: 5000 | F67: 0
A68: 9.5 | B68: Cabling, conduits and pits | C68: 1 | D68: Item | E68: 30000 | F68: 30000
A69: 9.6 | B69: Electrical connection | C69: 1 | D69: Item | E69: 15000 | F69: 15000
A70: 10 | B70: LANDSCAPING WORKS | G70: =SUM(F70:F72) -> 17956.25
A71: 10.1 | B71: Topsoiling seeding | C71: =J12*1.5+J14*1 -> 2112.5 | D71: m² | E71: 8.5 | F71: =SUM(E71*C71) -> 17956.25
A72: 10.2 | B72: Landcape planting | C72: 0 | D72: NA
A73: 11 | B73: SIGNING | C73: 1 | D73: item | E73: 10000 | F73: 10000 | G73: =F73 -> 10000
A74: 12 | B74: LINEMARKING (Thermoplastic) | C74: 1 | D74: item | E74: 30000 | F74: 30000 | G74: =F74 -> 30000
A75: 13 | B75: SERVICE RELOCATION | G75: =SUM(F75:F77) -> 0
A76: 13.1 | B76: (Water, gas, telstra) No allowance | C76: 0 | D76: Item | E76: 0 | F76: =SUM(E76*C76) -> 0
A77: 13.2 | B77: (Overhead electrical) No allowance | C77: 0 | D77: Item | E77: 0 | F77: =SUM(E77*C77) -> 0
A78: 14 | B78: MISCELLANEOUS | G78: =SUM(F78:F78) -> 0
A79: 15 | B79: PROVISIONAL SUM - DAYWORK | D79: item | F79: =SUM(E79*C79) -> 0 | G79: =F79 -> 0
B81: TOTAL A - C | F81: =SUM(F25:F80,F7:F23) -> 2757106.308 | G81: =SUM(G24+G15+G7) -> 2757106.308
A83: D | B83: Contingency
B84: =Summary!B17 -> Contingency (15% of C) | F84: 0.15 | G84: =F84*G24 -> 363750.3375
A86: E | B86: PROJECT BUDGET
B87: Total Estimate | G87: =G84+G81 -> 3120856.646
A90: Notes:
A91: - | B91: Earthworks based on a concept vertical grade alignment
A93: Services
A94: 1 | B94: Service relocation / alterations have not been allowed for in the estimate
A95: 2 | B95: No allowance for water, gas, telstra, sewer
A96: Substations
A97: 3 | B97: No allowance for substations
A98: Preliminaries
A99: 4 | B99: Based on nominal rates
A100: Subsoil Drain
A101: 5 | B101: Assume same as kerb and channel
A102: Side Entry Pits
A103: 6 | B103: Based on 50 m intervals
A104: Tactile Pavers
A105: 7 | B105: Assume hazard TGSI's (no directional)
A106: Signing
A107: 8 | B107: Nominal rate
A108: Pavement
A109: 9 | B109: Assume deep lift asphalt pavement
A110: Tree Removal
A111: 10 | B111: Based on preliminary information
A112: Roads
A113: 11 | B113: Where applicable, existing road conditions based on limited crushed rock roads assumed to be of no consequence to works
A114: 12 | B114: Where applicable, existing asphalt roads to be demolished as part of intersection works
A115: Dry Stone Wall
A116: 13 | B116: Dry stone wall works allowance has assumed the wall is not heritage listed and does not need to be reconstructed
A118: AUTHOR: | B118: Jack Hume
A119: Date: | B119: 2014-10-21
A121: REVIEWER: | B121: Rob Henry
A122: Date: | B122: 2014-10-21

Sheet IN-26-T06
A1: PRELIMINARY ESTIMATE OF DEVELOPMENT COSTS | G1: =Summary!A5 -> 2015-05-14
A2: =Summary!A3 -> CG140690 | G2: =Summary!A6 -> Version 11
A3: =Summary!A4 -> Wollert PSP - Intersection Cost Estimate | C3: PM %: | D3: 0.0899 | I3: Click here for Nearmap Screenshots taken July 2014
A4: Intersection Ref: | B4: =J7 -> IN-26-VR | E4: DRAFT | I4: Do not Delete the below info
A5: Sheet Ref: | B5: =Summary!Z9 -> T06-26P3
A6: ITEM | B6: DESCRIPTION | C6: QUANTITY | D6: UNIT | E6: RATE | F6: AMOUNT | G6: SUBTOTAL | I6: Sheet Specific Information | J6: Input | K6: Cell Reference
A7: A | B7: =Summary!B10 -> Project and Program Management (%) | G7: =SUM(F7:F14) -> 123997.1709 | I7: Intersection Name | J7: IN-26-VR | K7: A4
B8: Project Management | D8: 0.03 | E8: =($D$3/0.1)*D8 -> 0.02697 | F8: =E8*$G$24 -> 74398.30252 | I8: Existing road directions | J8: N-S and E-W | K8: B87
B9: Project scoping, planning, scheduling, monitoring, reporting and commissioning | I9: Previous Road area | J9: 2800 | K9: m2
B10: Management of preconstruction activities, development of tender documents and management of contracts | I10: Total Roadway Area | J10: 9550 | K10: m2
B11: Managing external interfaces, including community liaison, environmental issues, traffic issues etc. | I11: Island Area | J11: 3600 | K11: m2
B12: Records management | I12: Kerb and Channel | J12: =1000+275+325+175+175-545 -> 1405 | K12: Lm
B13: Program Administration | D13: 0.02 | E13: =($D$3/0.1)*D13 -> 0.01798 | F13: =E13*$G$24 -> 49598.86834 | I13: Shoulder | J13: =85+40+100+120+115+85 -> 545 | K13: Lm
I14: Footpath Length | J14: =100+100+100 -> 300 | K14: Lm
A15: B | B15: =Summary!B11 -> Design and Investigation (%) | G15: =SUM(F15:F23) -> 247994.3417 | I15: Pipe Length | J15: 800 | K15: Lm
B16: Traffic Investigations | D16: 0.0085 | E16: =($D$3/0.1)*D16 -> 0.0076415 | F16: =E16*$G$24 -> 21079.51905 | I16: Island Concrete infill | J16: =25+25+100+125+30+30 -> 335 | K16: m2
B17: Cadastral and Engineering Survey | D17: 0.012 | E17: 0.010788 | F17: 29759.32101 | I17: Shared Path Length | J17: =150+100+175+175+100+150 -> 850 | K17: Lm
B18: Geotechnical investigations Pavement Investigations and Design | D18: 0.012 | E18: 0.010788 | F18: 29759.32101
B19: Environmental Investigations | E19: 0 | F19: 0
B20: Landscape Design | E20: 0 | F20: 0
B21: Preliminary and Final Design | D21: 0.0425 | E21: 0.0382075 | F21: 105397.5952
B22: Construction Management | D22: 0.025 | E22: 0.022475 | F22: 61998.58543
I23: 2.5% of construction cost | J23: =0.025*G24 -> 68963.94375
A24: C | B24: Construction | F24: =SUM(F25:F79) -> 2758557.75 | G24: =SUM(G25:G78) -> 2758557.75
A25: 1 | B25: PRELIMINARIES | G25: =SUM(F25:F28) -> 100000
A26: 1.1 | B26: Site establishment | C26: 1 | D26: Item | E26: 10000 | F26: =E26*C26 -> 10000
A27: 1.2 | B27: Site management & supervision including QA | C27: 20 | D27: wks | E27: 2500 | F27: =SUM(E27*C27) -> 50000
A28: 1.3 | B28: Provision for traffic | C28: 1 | D28: Item | E28: 40000 | F28: =SUM(E28*C28) -> 40000
A29: 2 | B29: DEMOLITION | G29: =SUM(F29:F32) -> 46000
A30: 2.1 | B30: Trees | C30: 17 | D30: No | E30: 500 | F30: =SUM(E30*C30) -> 8500
A31: 2.2 | B31: Demolition of existing Road | C31: 1 | D31: item | E31: 37500 | F31: =SUM(E31*C31) -> 37500
A32: 3 | B32: EARTHWORKS | G32: =SUM(F32:F37) -> 401176.5
A33: 3.1 | B33: Stripping topsoil (150mm) | C33: =J10+J12*1+J13*1.3-J11-J9 -> 5263.5 | D33: m² | E33: 6 | F33: =SUM(E33*C33) -> 31581
A34: 3.2 | B34: Excavation and removal | C34: =C39*0.5 -> 3486.75 | D34: m³ | E34: 30 | F34: =SUM(E34*C34) -> 104602.5
A35: 3.3 | B35: Soft spot rectification (reclaimed FCR) | C35: =C39*20% -> 1394.7 | D35: m³ | E35: 15 | F35: =SUM(E35*C35) -> 20920.5
A36: 3.4 | B36: Rock excavation & sub-surface remediation 450mm | C36: =C39*50% -> 3486.75 | D36: m² | E36: =55+15 -> 70 | F36: =SUM(E36*C36) -> 244072.5
A37: 4 | B37: PAVEMENT | G37: =SUM(F37:F40) -> 1030092.5
A38: 4.1 | B38: Deep lift asphalt 195 mm | C38: =J10-J13-J11 -> 5405 | D38: m² | E38: =IF(C38<15000,105,85) -> 105 | F38: =SUM(E38*C38) -> 567525
A39: 4.2 | B39: Subbase course - 250 mm 3% CTCR | C39: =C38+(J12*1)+C40*0.3 -> 6973.5 | D39: m² | E39: =IF(C39<15000,55,45) -> 55 | F39: =SUM(E39*C39) -> 383542.5
A40: 4.3 | B40: Shoulder - full depth pavement | C40: =J13 -> 545 | D40: m² | E40: 145 | F40: =SUM(E40*C40) -> 79025
A41: 5 | B41: DRAINAGE | G41: =SUM(F41:F45) -> 259500
A42: 5.1 | B42: Subsoil drains 100mm dia - screenings | C42: =J12+J13 -> 1950 | D42: Lm | E42: 30 | F42: =SUM(E42*C42) -> 58500
A43: 5.2 | B43: Subsoil drains 100mm dia - no fines conc | C43: 0 | D43: Lm | E43: 45 | F43: =SUM(E43*C43) -> 0
A44: 5.3 | B44: 375 RCP (class 2) | C44: =J15 -> 800 | D44: Lm | E44: 170 | F44: =SUM(E44*C44) -> 136000
A45: 5.4 | B45: Side entry pits | C45: 26 | D45: No | E45: 2500 | F45: =SUM(E45*C45) -> 65000
A46: 6 | B46: CONCRETE WORKS | G46: =SUM(F46:F51) -> 238325
A47: 6.1 | B47: Kerb &channel | C47: =J12 -> 1405 | D47: Lm | E47: 50 | F47: =SUM(E47*C47) -> 70250
A48: 6.2 | B48: Shared Paths (3.0m wide,125 mm, residential, as per MPA) | C48: =J17 -> 850 | D48: Lm | E48: 130 | F48: =SUM(E48*C48) -> 110500
A49: 6.3 | B49: Footpaths (1.5m wide,125 mm, residential, as per MPA) | C49: =J14 -> 300 | D49: No | E49: 65 | F49: =SUM(E49*C49) -> 19500
A50: 6.4 | B50: Laybacks and tactile pavers | C50: 8 | D50: m² | E50: 1200 | F50: =SUM(E50*C50) -> 9600
A51: 6.5 | B51: 10m concrete maintenance area end of all islands | C51: =J16 -> 335 | D51: m² | E51: 85 | F51: =SUM(E51*C51) -> 28475
A52: 7 | B52: TRAFFIC SIGNAL WORKS | G52: =SUM(F52:F60) -> 302000
A53: 7.1 | B53: General items | C53: 1 | D53: Item | E53: 27500 | F53: =SUM(E53*C53) -> 27500
A54: 7.2 | B54: Conduits | C54: 1 | D54: Item | E54: 28000 | F54: 28000
A55: 7.3 | B55: Pedestals | C55: 1 | D55: Item | E55: 65000 | F55: 65000
A56: 7.4 | B56: Lanterns | C56: 1 | D56: Item | E56: 25000 | F56: 25000
A57: 7.5 | B57: Controller | C57: 1 | D57: Item | E57: 82500 | F57: 82500
A58: 7.6 | B58: Detectors | C58: 1 | D58: Item | E58: 15000 | F58: 15000
A59: 7.7 | B59: Cabling & connections | C59: 1 | D59: Item | E59: 48000 | F59: 48000
A60: 7.8 | B60: Clean-up | C60: 1 | D60: Item | E60: 11000 | F60: 11000
A61: 8 | B61: SIGNAL MAINTENANCE (10 YEARS) by Road Authority | C61: 1 | D61: item | E61: 100000 | F61: 100000 | G61: =F61 -> 100000
A62: 9 | B62: POWER & LIGHTING | G62: =SUM(F63:F68) -> 221000
A63: 9.1 | B63: Light pole (1-way) and luminous lights | C63: 12 | D63: No | E63: 8000 | F63: 96000
A64: 9.2 | B64: Light pole (2-way) and luminous lights | C64: 6 | D64: No | E64: 9000 | F64: 54000
A65: 9.3 | B65: JUP lighting single | C65: 4 | D65: No | E65: 4000 | F65: 16000
A66: 9.4 | B66: JUP lighting dual | C66: 2 | D66: No | E66: 5000 | F66: 10000
A67: 9.5 | B67: Cabling, conduits and pits | C67: 1 | D67: Item | E67: 30000 | F67: 30000
A68: 9.6 | B68: Electrical connection | C68: 1 | D68: Item | E68: 15000 | F68: 15000
A69: 10 | B69: LANDSCAPING WORKS | G69: =SUM(F69:F71) -> 20463.75
A70: 10.1 | B70: Topsoiling seeding | C70: =J12*1.5+J14*1 -> 2407.5 | D70: m² | E70: 8.5 | F70: =SUM(E70*C70) -> 20463.75
A71: 10.2 | B71: Landcape planting | C71: 0 | D71: NA
A72: 11 | B72: SIGNING | C72: 1 | D72: item | E72: 10000 | F72: 10000 | G72: =F72 -> 10000
A73: 12 | B73: LINEMARKING (Thermoplastic) | C73: 1 | D73: item | E73: 30000 | F73: 30000 | G73: =F73 -> 30000
A74: 13 | B74: SERVICE RELOCATION | G74: =SUM(F74:F76) -> 0
A75: 13.1 | B75: (Water, gas, Telstra) No allowance | C75: 0 | D75: Item | E75: 0 | F75: =SUM(E75*C75) -> 0
A76: 13.2 | B76: (Overhead electrical) No allowance | C76: 0 | D76: Item | E76: 0 | F76: =SUM(E76*C76) -> 0
A77: 14 | B77: MISCELLANEOUS | G77: =SUM(F77:F77) -> 0
A78: 15 | B78: PROVISIONAL SUM - DAYWORK | D78: item | F78: =SUM(E78*C78) -> 0 | G78: =F78 -> 0
B80: TOTAL A - C | F80: =SUM(F25:F79,F7:F23) -> 3130549.263 | G80: =SUM(G24+G15+G7) -> 3130549.263
A82: D | B82: Contingency
B83: =Summary!B17 -> Contingency (15% of C) | F83: 0.15 | G83: =F83*G24 -> 413783.6625
A85: E | B85: PROJECT BUDGET
B86: Total Estimate | G86: =G83+G80 -> 3544332.925
A89: Notes:
A90: - | B90: Earthworks based on a concept vertical grade alignment
A92: Services
A93: 1 | B93: Service relocation / alterations have not been allowed for in the estimate
A94: 2 | B94: No allowance for water, gas, telstra, sewer
A95: Substations
A96: 3 | B96: No allowance for substations
A97: Preliminaries
A98: 4 | B98: Based on nominal rates
A99: Subsoil Drain
A100: 5 | B100: Assume same as kerb and channel
A101: Side Entry Pits
A102: 6 | B102: Based on 50 m intervals
A103: Tactile Pavers
A104: 7 | B104: Assume hazard TGSI's (no directional)
A105: Signing
A106: 8 | B106: Nominal rate
A107: Pavement
A108: 9 | B108: Assume deep lift asphalt pavement
A109: Tree Removal
A110: 10 | B110: Based on preliminary information
A111: Roads
A112: 11 | B112: Where applicable, existing road conditions based on limited crushed rock roads assumed to be of no consequence to works
A113: 12 | B113: Where applicable, existing asphalt roads to be demolished as part of intersection works
A114: Dry Stone Wall
A115: 13 | B115: Dry stone wall works allowance has assumed the wall is not heritage listed and does not need to be reconstructed
A117: AUTHOR: | B117: Jack Hume
A118: Date: | B118: 2014-10-21
A120: REVIEWER: | B120: Rob Henry
A121: Date: | B121: 2014-10-21

Sheet IN-31-T08
A1: PRELIMINARY ESTIMATE OF DEVELOPMENT COSTS | G1: =Summary!A5 -> 2015-05-14
A2: =Summary!A3 -> CG140690 | G2: =Summary!A6 -> Version 11
A3: =Summary!A4 -> Wollert PSP - Intersection Cost Estimate | C3: PM %: | D3: 0.0917 | I3: Click here for Nearmap Screenshots taken July 2014
A4: Intersection Ref: | B4: =J7 -> IN-31-VR | E4: DRAFT | I4: Do not Delete the below info
A5: Sheet Ref: | B5: =Summary!AA9 -> T08-31P1
A6: ITEM | B6: DESCRIPTION | C6: QUANTITY | D6: UNIT | E6: RATE | F6: AMOUNT | G6: SUBTOTAL | I6: Sheet Specific Information | J6: Input | K6: Cell Reference
A7: A | B7: =Summary!B10 -> Project and Program Management (%) | G7: =SUM(F7:F14) -> 107853.3718 | I7: Intersection Name | J7: IN-31-VR | K7: A4
B8: Project Management | D8: 0.03 | E8: =($D$3/0.1)*D8 -> 0.02751 | F8: =E8*$G$24 -> 64712.02307 | I8: Existing road directions | J8: N-S and E-W | K8: B87
B9: Project scoping, planning, scheduling, monitoring, reporting and commissioning | I9: Previous Road area | J9: 0 | K9: m2
B10: Management of preconstruction activities, development of tender documents and management of contracts | I10: Total Roadway Area | J10: 8366 | K10: m2
B11: Managing external interfaces, including community liaison, environmental issues, traffic issues etc. | I11: Island Area | J11: 1452 | K11: m2
B12: Records management | I12: Kerb and Channel | J12: 1533 | K12: Lm
B13: Program Administration | D13: 0.02 | E13: =($D$3/0.1)*D13 -> 0.01834 | F13: =E13*$G$24 -> 43141.34871 | I13: Shoulder | J13: 0 | K13: Lm
I14: Footpath Length | J14: 244 | K14: Lm
A15: B | B15: =Summary!B11 -> Design and Investigation (%) | G15: =SUM(F15:F23) -> 215706.7436 | I15: Pipe Length | J15: 0 | K15: Lm
B16: Traffic Investigations | D16: 0.0085 | E16: =($D$3/0.1)*D16 -> 0.0077945 | F16: =E16*$G$24 -> 18335.0732 | I16: Island Concrete infill | J16: 328 | K16: m2
B17: Cadastral and Engineering Survey | D17: 0.012 | E17: 0.011004 | F17: 25884.80923 | I17: Shared Path Length | J17: 914 | K17: Lm
B18: Geotechnical investigations Pavement Investigations and Design | D18: 0.012 | E18: 0.011004 | F18: 25884.80923
B19: Environmental Investigations | E19: 0 | F19: 0
B20: Landscape Design | E20: 0 | F20: 0
B21: Preliminary and Final Design | D21: 0.0425 | E21: 0.0389725 | F21: 91675.36601
B22: Construction Management | D22: 0.025 | E22: 0.022925 | F22: 53926.68589
I23: 2.5% of construction cost | J23: =0.025*G24 -> 58807.72725
A24: C | B24: Construction | F24: =SUM(F25:F82) -> 2352309.09 | G24: =SUM(G25:G81) -> 2352309.09
A25: 1 | B25: PRELIMINARIES | G25: =SUM(F25:F28) -> 140000
A26: 1.1 | B26: Site establishment | C26: 1 | D26: Item | E26: 10000 | F26: =E26*C26 -> 10000
A27: 1.2 | B27: Site management & supervision including QA | C27: 22 | D27: wks | E27: 2500 | F27: =SUM(E27*C27) -> 55000
A28: 1.3 | B28: Provision for traffic | C28: 1 | D28: Item | E28: 75000 | F28: =SUM(E28*C28) -> 75000
A29: 2 | B29: DEMOLITION | G29: =SUM(F29:F32) -> 8575
A30: 2.1 | B30: Trees | C30: 0 | D30: No | E30: 500 | F30: =SUM(E30*C30) -> 0
A31: 2.2 | B31: Demolition of existing road pavement | C31: 1715 | D31: m² | E31: 5 | F31: =SUM(E31*C31) -> 8575
A32: 3 | B32: EARTHWORKS | G32: =SUM(F32:F38) -> 422824.34
A33: 3.1 | B33: Stripping topsoil (150mm) | C33: =0.54*J10 -> 4517.64 | D33: m² | E33: 6 | F33: =SUM(E33*C33) -> 27105.84
A34: 3.2 | B34: Excavation and removal | C34: =C41*1.1 -> 5545.1 | D34: m³ | E34: 30 | F34: =SUM(E34*C34) -> 166353
A35: 3.2 | B35: Filling | C35: =0.5*C41 -> 2520.5 | D35: m³ | E35: 15 | F35: =C35*E35 -> 37807.5
A36: 3.3 | B36: Soft spot rectification (reclaimed FCR) | C36: =C41*20% -> 1008.2 | D36: m³ | E36: 15 | F36: =SUM(E36*C36) -> 15123
A37: 3.4 | B37: Rock excavation & sub-surface remediation 450mm | C37: =C41*50% -> 2520.5 | D37: m² | E37: =55+15 -> 70 | F37: =SUM(E37*C37) -> 176435
A38: 4 | B38: PAVEMENT | G38: =SUM(F38:F43) -> 847225
A39: 4.1 | B39: Wearing course | C39: =J10-J13-J11 -> 6914 | D39: m² | E39: =IF(C39<15000,25,20) -> 25 | F39: =SUM(E39*C39) -> 172850
A40: 4.2 | B40: Deep lift asphalt 195 mm | C40: 3508 | D40: m² | E40: =IF(C40<15000,85,75) -> 85 | F40: =SUM(E40*C40) -> 298180
A41: 4.3 | B41: Subbase course - 250 mm 3% CTCR | C41: =C40+(J12*1)+C43*0.3 -> 5041 | D41: m² | E41: =IF(C41<15000,55,45) -> 55 | F41: =SUM(E41*C41) -> 277255
A42: 4.4 | B42: Asphalt regulation | C42: 3298 | D42: m² | E42: 30 | F42: =SUM(E42*C42) -> 98940
A43: 4.5 | B43: Shoulder - full depth pavement | C43: =J13 -> 0 | D43: m² | E43: 145 | F43: =SUM(E43*C43) -> 0
A44: 5 | B44: DRAINAGE | G44: =SUM(F44:F48) -> 236980
A45: 5.1 | B45: Subsoil drains 100mm dia - screenings | C45: =J12+J13 -> 1533 | D45: Lm | E45: 30 | F45: =SUM(E45*C45) -> 45990
A46: 5.2 | B46: Subsoil drains 100mm dia - no fines conc | C46: 0 | D46: Lm | E46: 45 | F46: =SUM(E46*C46) -> 0
A47: 5.3 | B47: 375 RCP (class 2) | C47: 697 | D47: Lm | E47: 170 | F47: =SUM(E47*C47) -> 118490
A48: 5.4 | B48: Side entry pits | C48: 29 | D48: No | E48: 2500 | F48: =SUM(E48*C48) -> 72500
A49: 6 | B49: CONCRETE WORKS | G49: =SUM(F49:F54) -> 278810
A50: 6.1 | B50: Kerb &channel | C50: =J12 -> 1533 | D50: Lm | E50: 50 | F50: =SUM(E50*C50) -> 76650
A51: 6.2 | B51: Shared Paths (3.0m wide,125 mm, residential, as per MPA) | C51: =J17 -> 914 | D51: Lm | E51: 130 | F51: =SUM(E51*C51) -> 118820
A52: 6.3 | B52: Footpaths (1.5m wide,125 mm, residential, as per MPA) | C52: =J14 -> 244 | D52: No | E52: 65 | F52: =SUM(E52*C52) -> 15860
A53: 6.4 | B53: Laybacks and tactile pavers | C53: 33 | D53: m² | E53: 1200 | F53: =SUM(E53*C53) -> 39600
A54: 6.5 | B54: 10m concrete maintenance area end of all islands | C54: =J16 -> 328 | D54: m² | E54: 85 | F54: =SUM(E54*C54) -> 27880
A55: 7 | B55: TRAFFIC SIGNAL WORKS | C55: NA | G55: =SUM(F55:F63) -> 0
A56: 7.1 | B56: General items | C56: 0 | D56: Item | E56: 27500 | F56: =SUM(E56*C56) -> 0
A57: 7.2 | B57: Conduits | C57: 0 | D57: Item | E57: 28000 | F57: 0
A58: 7.3 | B58: Pedestals | C58: 0 | D58: Item | E58: 65000 | F58: 0
A59: 7.4 | B59: Lanterns | C59: 0 | D59: Item | E59: 25000 | F59: 0
A60: 7.5 | B60: Controller | C60: 0 | D60: Item | E60: 82500 | F60: 0
A61: 7.6 | B61: Detectors | C61: 0 | D61: Item | E61: 15000 | F61: 0
A62: 7.7 | B62: Cabling & connections | C62: 0 | D62: Item | E62: 48000 | F62: 0
A63: 7.8 | B63: Clean-up | C63: 0 | D63: Item | E63: 11000 | F63: 0
A64: 8 | B64: SIGNAL MAINTENANCE (10 YEARS) by Road Authority | C64: 0 | D64: item | E64: 100000 | F64: 0 | G64: =F64 -> 0
A65: 9 | B65: POWER & LIGHTING | G65: =SUM(F66:F71) -> 206275
A66: 9.1 | B66: Light pole (1-way) and luminous lights | C66: 11 | D66: No | E66: 8000 | F66: 88000
A67: 9.2 | B67: Light pole (2-way) and luminous lights | C67: 5 | D67: No | E67: 9000 | F67: 45000
A68: 9.3 | B68: JUP lighting single | C68: 0 | D68: No | E68: 4000 | F68: 0
A69: 9.4 | B69: JUP lighting dual | C69: 0 | D69: No | E69: 5000 | F69: 0
A70: 9.5 | B70: Cabling, conduits and pits | C70: 777 | D70: Lm | E70: 75 | F70: 58275
A71: 9.6 | B71: Electrical connection | C71: 1 | D71: Item | E71: 15000 | F71: 15000
A72: 10 | B72: LANDSCAPING WORKS | G72: =SUM(F72:F74) -> 21619.75
A73: 10.1 | B73: Topsoiling seeding | C73: =J12*1.5+J14*1 -> 2543.5 | D73: m² | E73: 8.5 | F73: =SUM(E73*C73) -> 21619.75
A74: 10.2 | B74: Landcape planting | C74: 0 | D74: NA
A75: 11 | B75: SIGNING | C75: 1 | D75: item | E75: 10000 | F75: 10000 | G75: =F75 -> 10000
A76: 12 | B76: LINEMARKING (Thermoplastic) | C76: 1 | D76: item | E76: 30000 | F76: 30000 | G76: =F76 -> 30000
A77: 13 | B77: SERVICE RELOCATION | G77: =SUM(F77:F79) -> 150000
A78: 13.1 | B78: (Water, gas, Telstra) No allowance | C78: 0 | D78: Item | E78: 0 | F78: =SUM(E78*C78) -> 0
A79: 13.2 | B79: (Overhead electrical) removal/undergrounding | C79: 1 | D79: Item | E79: 150000 | F79: =SUM(E79*C79) -> 150000
A80: 14 | B80: MISCELLANEOUS | G80: =SUM(F80:F80) -> 0
A81: 15 | B81: PROVISIONAL SUM - DAYWORK | D81: item | F81: =SUM(E81*C81) -> 0 | G81: =F81 -> 0
B83: TOTAL A - C | F83: =SUM(F25:F82,F7:F23) -> 2675869.205 | G83: =SUM(G24+G15+G7) -> 2675869.205
A85: D | B85: Contingency
B86: =Summary!B17 -> Contingency (15% of C) | F86: 0.15 | G86: =F86*G24 -> 352846.3635
A88: E | B88: PROJECT BUDGET
B89: Total Estimate | G89: =G86+G83 -> 3028715.569
A92: Notes:
A93: - | B93: Earthworks based on a concept vertical grade alignment
A95: Services
A96: 1 | B96: Service relocation / alterations have not been allowed for in the estimate (undergrounding of 100m length of existing overhead electricity excepted)
A97: 2 | B97: No allowance for water, gas, telstra, sewer
A98: Substations
A99: 3 | B99: No allowance for substations
A100: Preliminaries
A101: 4 | B101: Based on nominal rates
A102: Subsoil Drain
A103: 5 | B103: Assume same as kerb and channel
A104: Side Entry Pits
A105: 6 | B105: Based on 50 m intervals
A106: Tactile Pavers
A107: 7 | B107: Assume hazard TGSI's (no directional)
A108: Signing
A109: 8 | B109: Nominal rate
A110: Pavement
A111: 9 | B111: Assume deep lift asphalt pavement
A112: Tree Removal
A113: 10 | B113: Based on preliminary information
A114: Roads
A115: 11 | B115: Where applicable, existing road conditions based on limited crushed rock roads assumed to be of no consequence to works
A116: 12 | B116: Where applicable, existing asphalt roads to be demolished as part of intersection works
A117: Dry Stone Wall
A118: 13 | B118: Dry stone wall works allowance has assumed the wall is not heritage listed and does not need to be reconstructed
A120: AUTHOR: | B120: Graeme Stenton
A121: Date: | B121: 2014-12-18
A123: REVIEWER: | B123: Rob Henry
A124: Date:

Sheet IN-31 (18-D)
A1: PRELIMINARY ESTIMATE OF DEVELOPMENT COSTS | G1: =Summary!A5 -> 2015-05-14
A2: =Summary!A3 -> CG140690 | G2: =Summary!A6 -> Version 11
A3: =Summary!A4 -> Wollert PSP - Intersection Cost Estimate | C3: PM %: | D3: 0.0937
A4: Intersection Ref: | B4: =J7 -> IN-31 | E4: DRAFT | I4: Do not Delete the below info
A5: Sheet Ref: | B5: =Summary!AB9 -> (18-D)
A6: ITEM | B6: DESCRIPTION | C6: QUANTITY | D6: UNIT | E6: RATE | F6: AMOUNT | G6: SUBTOTAL | I6: Sheet Specific Information | J6: Input | K6: Unit | L6: Cell Reference
A7: A | B7: =Summary!B10 -> Project and Program Management (%) | G7: =SUM(F7:F14) -> 92889.70583 | I7: Intersection Name | J7: IN-31 | L7: A4
B8: Project Management | D8: 0.03 | E8: =($D$3/0.1)*D8 -> 0.02811 | F8: =E8*$G$24 -> 55733.82349 | I8: Existing Road Directions | J8: N-S | L8: B105
B9: Project scoping, planning, scheduling, monitoring, reporting and commissioning | I9: Previous Road area | K9: m2
B10: Management of preconstruction activities, development of tender documents and management of contracts | I10: Total Roadway Area | J10: 4650 | K10: m2
B11: Managing external interfaces, including community liaison, environmental issues, traffic issues etc | I11: Island Area | J11: 575 | K11: m2
B12: Records management | I12: Kerb and Channel | J12: =700+200+120 -> 1020 | K12: Lm
B13: Program Administration | D13: 0.02 | E13: =($D$3/0.1)*D13 -> 0.01874 | F13: =E13*$G$24 -> 37155.88233 | I13: Shoulder | J13: 0 | K13: Lm
I14: Footpath Length | J14: =100+85 -> 185 | K14: Lm
A15: B | B15: =Summary!B11 -> Design and Investigation (%) | G15: =SUM(F15:F23) -> 185779.4117 | I15: Pipe Length | J15: 380 | K15: Lm
B16: Traffic Investigations | D16: 0.0085 | E16: =($D$3/0.1)*D16 -> 0.0079645 | F16: =E16*$G$24 -> 15791.24999 | I16: Island Concrete infill | J16: =25+25+30+40+150 -> 270 | K16: m2
B17: Cadastral and Engineering Survey | D17: 0.012 | E17: 0.011244 | F17: 22293.5294 | I17: Shared Path Length | J17: =270+15+105 -> 390 | K17: Lm
B18: Geotechnical investigations Pavement Investigations and Design | D18: 0.012 | E18: 0.011244 | F18: 22293.5294
B19: Environmental Investigations | E19: 0 | F19: 0
B20: Landscape Design | E20: 0 | F20: 0
B21: Preliminary and Final Design | D21: 0.0425 | E21: 0.0398225 | F21: 78956.24995
B22: Construction Management | D22: 0.025 | E22: 0.023425 | F22: 46444.85291 | I22: 2.5% of construction cost | J22: =0.025*G24 -> 49567.6125
A24: C | B24: Construction | F24: =SUM(F25:F82) -> 1982704.5 | G24: =SUM(G25:G81) -> 1982704.5
A25: 1 | G25: =SUM(F25:F28) -> 53000
A26: 1.1 | B26: Site establishment | C26: 1 | D26: Item | E26: 8000 | F26: =SUM(E26*C26) -> 8000
A27: 1.2 | B27: Site management & supervision including QA | C27: 14 | D27: wks | E27: 2500 | F27: =SUM(E27*C27) -> 35000
A28: 1.3 | B28: Provision for traffic | C28: 1 | D28: Item | E28: 10000 | F28: =SUM(E28*C28) -> 10000
A29: 2 | B29: DEMOLITION | G29: =SUM(F29:F32) -> 7000
A30: 2.1 | B30: Trees | C30: 4 | D30: No | E30: 500 | F30: =SUM(E30*C30) -> 2000
A31: 2.2 | B31: Dry stone wall demolition & make good | C31: 1 | D31: item | E31: 5000 | F31: =SUM(E31*C31) -> 5000
A32: 3 | B32: EARTHWORKS | G32: =SUM(F32:F38) -> 416552
A33: 3.1 | B33: Stripping topsoil (150mm) | C33: =0.54*J10 -> 2511 | D33: m² | E33: 6 | F33: =SUM(E33*C33) -> 15066
A34: 3.2 | B34: Excavation and removal | C34: =C40*1.11 -> 5655.45 | D34: m³ | E34: 30 | F34: =SUM(E34*C34) -> 169663.5
A35: 3.3 | B35: Filling | C35: =0.5*C40 -> 2547.5 | D35: m³ | E35: 15 | F35: =C35*E35 -> 38212.5
A36: 3.4 | B36: Soft spot rectification | C36: =C40*20% -> 1019 | D36: m³ | E36: 15 | F36: =SUM(E36*C36) -> 15285
A37: 3.5 | B37: Rock excavation & sub-surface remediation 450mm | C37: =C40*50% -> 2547.5 | D37: m² | E37: =55+15 -> 70 | F37: =SUM(E37*C37) -> 178325
A38: 4 | B38: PAVEMENT | G38: =SUM(F38:F42) -> 708100
A39: 4.1 | B39: Deep lift asphalt 195 mm | C39: =J10-J11-J13 -> 4075 | D39: m² | E39: =IF(C39<15000,105,85) -> 105 | F39: =SUM(E39*C39) -> 427875
A40: 4.2 | B40: Subbase course - 250 mm 3% CTCR | C40: =C39+(J12*1)+C41*0.3 -> 5095 | D40: m² | E40: 55 | F40: =SUM(E40*C40) -> 280225
A41: 4.3 | B41: Shoulder 1m wide - full depth pavement | C41: =J13 -> 0 | D41: m | E41: 145 | F41: =SUM(E41*C41) -> 0
A42: 5 | B42: DRAINAGE | G42: =SUM(F43:F48) -> 158700
A43: 5.1 | B43: Subsoil drains 100mm dia - screenings | C43: =J12+J13 -> 1020 | D43: Lm | E43: 30 | F43: =SUM(E43*C43) -> 30600
A44: 5.2 | B44: Subsoil drains 100mm dia - no fines conc | C44: 0 | D44: Lm | E44: 45 | F44: =SUM(E44*C44) -> 0
A45: 5.3 | B45: 375 RCP (class 2) | C45: =J15 -> 380 | D45: Lm | E45: 170 | F45: =SUM(E45*C45) -> 64600
A46: 5.4 | B46: Side entry pits | C46: 13 | D46: No | E46: 2500 | F46: =SUM(E46*C46) -> 32500
A47: 5.5 | B47: Allowance tomodify draiange to ultimate location | C47: 1 | D47: item | E47: =5*(2500+2000+10*E45) -> 31000 | F47: =SUM(E47*C47) -> 31000
A48: 6 | B48: CONCRETE WORKS | G48: =SUM(F48:F53) -> 141775
A49: 6.1 | B49: Kerb &channel | C49: =J12 -> 1020 | D49: Lm | E49: 50 | F49: =SUM(E49*C49) -> 51000
A50: 6.2 | B50: Shared Paths (3.0m wide,125 mm, residential, as per MPA) | C50: =J17 -> 390 | D50: Lm | E50: 130 | F50: =SUM(E50*C50) -> 50700
A51: 6.3 | B51: Footpaths (1.5m wide,125 mm, residential, as per MPA) | C51: =J14 -> 185 | D51: Lm | E51: 65 | F51: =SUM(E51*C51) -> 12025
A52: 6.4 | B52: Laybacks and tactile pavers | C52: 6 | D52: No | E52: 850 | F52: =SUM(E52*C52) -> 5100
A53: 6.5 | B53: 10m concrete maintenance area end of all islands | C53: =J16 -> 270 | D53: m² | E53: 85 | F53: =SUM(E53*C53) -> 22950
A54: 7 | B54: TRAFFIC SIGNAL WORKS | G54: =SUM(F54:F62) -> 237500
A55: 7.1 | B55: General items | C55: 1 | D55: Item | E55: 23000 | F55: =SUM(E55*C55) -> 23000
A56: 7.2 | B56: Conduits | C56: 1 | D56: Item | E56: 18000 | F56: 18000
A57: 7.3 | B57: Pedestals | C57: 1 | D57: Item | E57: 45000 | F57: 45000
A58: 7.4 | B58: Lanterns | C58: 1 | D58: Item | E58: 18000 | F58: 18000
A59: 7.5 | B59: Controller | C59: 1 | D59: Item | E59: 75000 | F59: 75000
A60: 7.6 | B60: Detectors | C60: 1 | D60: Item | E60: 9500 | F60: 9500
A61: 7.7 | B61: Cabling & connections | C61: 1 | D61: Item | E61: 40000 | F61: 40000
A62: 7.8 | B62: Clean-up | C62: 1 | D62: Item | E62: 9000 | F62: 9000
A63: 8 | B63: SIGNAL MAINTENANCE (10 YEARS) by Road Authority | C63: 1 | D63: item | E63: 100000 | F63: 100000 | G63: =F63 -> 100000
A64: 9 | B64: POWER & LIGHTING | G64: =SUM(F65:F70) -> 118000
A65: 9.1 | B65: Light pole (1-way) and luminous lights | C65: 3 | D65: No | E65: 8000 | F65: 24000
A66: 9.2 | B66: Light pole (2-way) and luminous lights | C66: 4 | D66: No | E66: 9000 | F66: 36000
A67: 9.3 | B67: JUP lighting single | C67: 2 | D67: No | E67: 4000 | F67: 8000
A68: 9.4 | B68: JUP lighting dual | C68: 1 | D68: No | E68: 5000 | F68: 5000
A69: 9.5 | B69: Cabling, conduits and pits | C69: 1 | D69: Item | E69: 30000 | F69: 30000
A70: 9.6 | B70: Electrical connection | C70: 1 | D70: Item | E70: 15000 | F70: 15000
A71: 10 | B71: LANDSCAPING WORKS | G71: =SUM(F71:F72) -> 14577.5
A72: 10.1 | B72: Topsoiling seeding | C72: =J12*1.5+J14*1 -> 1715 | D72: m² | E72: 8.5 | F72: =SUM(E72*C72) -> 14577.5
A73: 10.2 | B73: Landcape planting | C73: 0 | D73: NA
A74: 11 | B74: SIGNING | C74: 1 | D74: item | E74: 7500 | F74: 7500 | G74: =F74 -> 7500
A75: 12 | B75: LINEMARKING (Thermoplastic) | C75: 1 | D75: item | E75: 20000 | F75: 20000 | G75: =F75 -> 20000
A76: 13 | B76: SERVICE RELOCATION | G76: =SUM(F76:F78) -> 0
A77: 13.1 | B77: (Water, gas, telstra) No allowance | D77: item
A78: 13.2 | B78: (Overhead electrical) No allowance | D78: item
A79: 14 | B79: MISCELLANEOUS | G79: =F79 -> 0
A80: 14.1 | B80: (Water, gas, telstra) No allowance | D80: item
A81: 15 | B81: PROVISIONAL SUM - DAYWORK | D81: item | F81: =SUM(E81*C81) -> 0 | G81: =F81 -> 0
B83: TOTAL A - C | F83: =SUM(F25:F82,F7:F23) -> 2261373.617 | G83: =SUM(G24+G15+G7) -> 2261373.617
A85: D | B85: Contingency
B86: =Summary!B17 -> Contingency (15% of C) | F86: 0.15 | G86: =F86*G24 -> 297405.675
A88: E | B88: PROJECT BUDGET
B89: Total Estimate | G89: =G86+G83 -> 2558779.292
A92: Notes:
A93: - | B93: Earthworks based on a concept vertical grade alignment
A95: Services
A96: 1 | B96: Service relocation / alterations have not been allowed for in the estimate
A97: 2 | B97: No allowance for water, gas, telstra, sewer
A98: Substations
A99: 3 | B99: No allowance for substations
A100: Preliminaries
A101: 4 | B101: Based on nominal rates
A102: Subsoil Drain
A103: 5 | B103: Assume same as kerb and channel
A104: Side Entry Pits
A105: 6 | B105: Based on 50 m intervals
A106: Tactile Pavers
A107: 7 | B107: Assume hazard TGSI's (no directional)
A108: Signing
A109: 8 | B109: Nominal rate
A110: Pavement
A111: 9 | B111: Assume deep lift asphalt pavement
A112: Tree Removal
A113: 10 | B113: Based on preliminary information
A114: Roads
A115: 11 | B115: Where applicable, existing road conditions based on limited crushed rock roads assumed to be of no consequence to works
A116: 12 | B116: Where applicable, existing asphalt roads to be demolished as part of intersection works
A117: Dry Stone Wall
A118: 13 | B118: Dry stone wall works allowance has assumed the wall is not heritage listed and does not need to be reconstructed
A120: AUTHOR: | B120: Jack Hume
A121: Date: | B121: 2014-12-05
A123: REVIEWER: | B123: Rob Henry
A124: Date: | B124: 2014-12-05

Sheet IN-32
A1: PRELIMINARY ESTIMATE OF DEVELOPMENT COSTS | G1: =Summary!A5 -> 2015-05-14
A2: =Summary!A3 -> CG140690 | G2: =Summary!A6 -> Version 11
A3: =Summary!A4 -> Wollert PSP - Intersection Cost Estimate | C3: PM %: | D3: 0.0899 | I3: Click here for Nearmap Screenshots taken July 2014
A4: Intersection Ref: | B4: =J7 -> IN-32 | E4: DRAFT | I4: Do not Delete the below info
A5: Sheet Ref: | B5: =Summary!AC9 -> (26-VR)
A6: ITEM | B6: DESCRIPTION | C6: QUANTITY | D6: UNIT | E6: RATE | F6: AMOUNT | G6: SUBTOTAL | I6: Sheet Specific Information | J6: Input | K6: Cell Reference
A7: A | B7: =Summary!B10 -> Project and Program Management (%) | G7: =SUM(F7:F14) -> 123997.1709 | I7: Intersection Name | J7: IN-32 | K7: A4
B8: Project Management | D8: 0.03 | E8: =($D$3/0.1)*D8 -> 0.02697 | F8: =E8*$G$24 -> 74398.30252 | I8: Existing road directions | J8: N-S and E-W | K8: B87
B9: Project scoping, planning, scheduling, monitoring, reporting and commissioning | I9: Previous Road area | J9: 2800 | K9: m2
B10: Management of preconstruction activities, development of tender documents and management of contracts | I10: Total Roadway Area | J10: 9550 | K10: m2
B11: Managing external interfaces, including community liaison, environmental issues, traffic issues etc. | I11: Island Area | J11: 3600 | K11: m2
B12: Records management | I12: Kerb and Channel | J12: =1000+275+325+175+175-545 -> 1405 | K12: Lm
B13: Program Administration | D13: 0.02 | E13: =($D$3/0.1)*D13 -> 0.01798 | F13: =E13*$G$24 -> 49598.86834 | I13: Shoulder | J13: =85+40+100+120+115+85 -> 545 | K13: Lm
I14: Footpath Length | J14: =100+100+100 -> 300 | K14: Lm
A15: B | B15: =Summary!B11 -> Design and Investigation (%) | G15: =SUM(F15:F23) -> 247994.3417 | I15: Pipe Length | J15: 800 | K15: Lm
B16: Traffic Investigations | D16: 0.0085 | E16: =($D$3/0.1)*D16 -> 0.0076415 | F16: =E16*$G$24 -> 21079.51905 | I16: Island Concrete infill | J16: =25+25+100+125+30+30 -> 335 | K16: m2
B17: Cadastral and Engineering Survey | D17: 0.012 | E17: 0.010788 | F17: 29759.32101 | I17: Shared Path Length | J17: =150+100+175+175+100+150 -> 850 | K17: Lm
B18: Geotechnical investigations Pavement Investigations and Design | D18: 0.012 | E18: 0.010788 | F18: 29759.32101
B19: Environmental Investigations | E19: 0 | F19: 0
B20: Landscape Design | E20: 0 | F20: 0
B21: Preliminary and Final Design | D21: 0.0425 | E21: 0.0382075 | F21: 105397.5952
B22: Construction Management | D22: 0.025 | E22: 0.022475 | F22: 61998.58543
I23: 2.5% of construction cost | J23: =0.025*G24 -> 68963.94375
A24: C | B24: Construction | F24: =SUM(F25:F79) -> 2758557.75 | G24: =SUM(G25:G78) -> 2758557.75
A25: 1 | B25: PRELIMINARIES | G25: =SUM(F25:F28) -> 100000
A26: 1.1 | B26: Site establishment | C26: 1 | D26: Item | E26: 10000 | F26: =E26*C26 -> 10000
A27: 1.2 | B27: Site management & supervision including QA | C27: 20 | D27: wks | E27: 2500 | F27: =SUM(E27*C27) -> 50000
A28: 1.3 | B28: Provision for traffic | C28: 1 | D28: Item | E28: 40000 | F28: =SUM(E28*C28) -> 40000
A29: 2 | B29: DEMOLITION | G29: =SUM(F29:F32) -> 46000
A30: 2.1 | B30: Trees | C30: 17 | D30: No | E30: 500 | F30: =SUM(E30*C30) -> 8500
A31: 2.2 | B31: Demolition of existing Road | C31: 1 | D31: item | E31: 37500 | F31: =SUM(E31*C31) -> 37500
A32: 3 | B32: EARTHWORKS | G32: =SUM(F32:F37) -> 401176.5
A33: 3.1 | B33: Stripping topsoil (150mm) | C33: =J10+J12*1+J13*1.3-J11-J9 -> 5263.5 | D33: m² | E33: 6 | F33: =SUM(E33*C33) -> 31581
A34: 3.2 | B34: Excavation and removal | C34: =C39*0.5 -> 3486.75 | D34: m³ | E34: 30 | F34: =SUM(E34*C34) -> 104602.5
A35: 3.3 | B35: Soft spot rectification (reclaimed FCR) | C35: =C39*20% -> 1394.7 | D35: m³ | E35: 15 | F35: =SUM(E35*C35) -> 20920.5
A36: 3.4 | B36: Rock excavation & sub-surface remediation 450mm | C36: =C39*50% -> 3486.75 | D36: m² | E36: =55+15 -> 70 | F36: =SUM(E36*C36) -> 244072.5
A37: 4 | B37: PAVEMENT | G37: =SUM(F37:F40) -> 1030092.5
A38: 4.1 | B38: Deep lift asphalt 195 mm | C38: =J10-J13-J11 -> 5405 | D38: m² | E38: =IF(C38<15000,105,85) -> 105 | F38: =SUM(E38*C38) -> 567525
A39: 4.2 | B39: Subbase course - 250 mm 3% CTCR | C39: =C38+(J12*1)+C40*0.3 -> 6973.5 | D39: m² | E39: =IF(C39<15000,55,45) -> 55 | F39: =SUM(E39*C39) -> 383542.5
A40: 4.3 | B40: Shoulder - full depth pavement | C40: =J13 -> 545 | D40: m² | E40: 145 | F40: =SUM(E40*C40) -> 79025
A41: 5 | B41: DRAINAGE | G41: =SUM(F41:F45) -> 259500
A42: 5.1 | B42: Subsoil drains 100mm dia - screenings | C42: =J12+J13 -> 1950 | D42: Lm | E42: 30 | F42: =SUM(E42*C42) -> 58500
A43: 5.2 | B43: Subsoil drains 100mm dia - no fines conc | C43: 0 | D43: Lm | E43: 45 | F43: =SUM(E43*C43) -> 0
A44: 5.3 | B44: 375 RCP (class 2) | C44: =J15 -> 800 | D44: Lm | E44: 170 | F44: =SUM(E44*C44) -> 136000
A45: 5.4 | B45: Side entry pits | C45: 26 | D45: No | E45: 2500 | F45: =SUM(E45*C45) -> 65000
A46: 6 | B46: CONCRETE WORKS | G46: =SUM(F46:F51) -> 238325
A47: 6.1 | B47: Kerb &channel | C47: =J12 -> 1405 | D47: Lm | E47: 50 | F47: =SUM(E47*C47) -> 70250
A48: 6.2 | B48: Shared Paths (3.0m wide,125 mm, residential, as per MPA) | C48: =J17 -> 850 | D48: Lm | E48: 130 | F48: =SUM(E48*C48) -> 110500
A49: 6.3 | B49: Footpaths (1.5m wide,125 mm, residential, as per MPA) | C49: =J14 -> 300 | D49: No | E49: 65 | F49: =SUM(E49*C49) -> 19500
A50: 6.4 | B50: Laybacks and tactile pavers | C50: 8 | D50: m² | E50: 1200 | F50: =SUM(E50*C50) -> 9600
A51: 6.5 | B51: 10m concrete maintenance area end of all islands | C51: =J16 -> 335 | D51: m² | E51: 85 | F51: =SUM(E51*C51) -> 28475
A52: 7 | B52: TRAFFIC SIGNAL WORKS | G52: =SUM(F52:F60) -> 302000
A53: 7.1 | B53: General items | C53: 1 | D53: Item | E53: 27500 | F53: =SUM(E53*C53) -> 27500
A54: 7.2 | B54: Conduits | C54: 1 | D54: Item | E54: 28000 | F54: 28000
A55: 7.3 | B55: Pedestals | C55: 1 | D55: Item | E55: 65000 | F55: 65000
A56: 7.4 | B56: Lanterns | C56: 1 | D56: Item | E56: 25000 | F56: 25000
A57: 7.5 | B57: Controller | C57: 1 | D57: Item | E57: 82500 | F57: 82500
A58: 7.6 | B58: Detectors | C58: 1 | D58: Item | E58: 15000 | F58: 15000
A59: 7.7 | B59: Cabling & connections | C59: 1 | D59: Item | E59: 48000 | F59: 48000
A60: 7.8 | B60: Clean-up | C60: 1 | D60: Item | E60: 11000 | F60: 11000
A61: 8 | B61: SIGNAL MAINTENANCE (10 YEARS) by Road Authority | C61: 1 | D61: item | E61: 100000 | F61: 100000 | G61: =F61 -> 100000
A62: 9 | B62: POWER & LIGHTING | G62: =SUM(F63:F68) -> 221000
A63: 9.1 | B63: Light pole (1-way) and luminous lights | C63: 12 | D63: No | E63: 8000 | F63: 96000
A64: 9.2 | B64: Light pole (2-way) and luminous lights | C64: 6 | D64: No | E64: 9000 | F64: 54000
A65: 9.3 | B65: JUP lighting single | C65: 4 | D65: No | E65: 4000 | F65: 16000
A66: 9.4 | B66: JUP lighting dual | C66: 2 | D66: No | E66: 5000 | F66: 10000
A67: 9.5 | B67: Cabling, conduits and pits | C67: 1 | D67: Item | E67: 30000 | F67: 30000
A68: 9.6 | B68: Electrical connection | C68: 1 | D68: Item | E68: 15000 | F68: 15000
A69: 10 | B69: LANDSCAPING WORKS | G69: =SUM(F69:F71) -> 20463.75
A70: 10.1 | B70: Topsoiling seeding | C70: =J12*1.5+J14*1 -> 2407.5 | D70: m² | E70: 8.5 | F70: =SUM(E70*C70) -> 20463.75
A71: 10.2 | B71: Landcape planting | C71: 0 | D71: NA
A72: 11 | B72: SIGNING | C72: 1 | D72: item | E72: 10000 | F72: 10000 | G72: =F72 -> 10000
A73: 12 | B73: LINEMARKING (Thermoplastic) | C73: 1 | D73: item | E73: 30000 | F73: 30000 | G73: =F73 -> 30000
A74: 13 | B74: SERVICE RELOCATION | G74: =SUM(F74:F76) -> 0
A75: 13.1 | B75: (Water, gas, Telstra) No allowance | C75: 0 | D75: Item | E75: 0 | F75: =SUM(E75*C75) -> 0
A76: 13.2 | B76: (Overhead electrical) No allowance | C76: 0 | D76: Item | E76: 0 | F76: =SUM(E76*C76) -> 0
A77: 14 | B77: MISCELLANEOUS | G77: =SUM(F77:F77) -> 0
A78: 15 | B78: PROVISIONAL SUM - DAYWORK | D78: item | F78: =SUM(E78*C78) -> 0 | G78: =F78 -> 0
B80: TOTAL A - C | F80: =SUM(F25:F79,F7:F23) -> 3130549.263 | G80: =SUM(G24+G15+G7) -> 3130549.263
A82: D | B82: Contingency
B83: =Summary!B17 -> Contingency (15% of C) | F83: 0.15 | G83: =F83*G24 -> 413783.6625
A85: E | B85: PROJECT BUDGET
B86: Total Estimate | G86: =G83+G80 -> 3544332.925
A89: Notes:
A90: - | B90: Earthworks based on a concept vertical grade alignment
A92: Services
A93: 1 | B93: Service relocation / alterations have not been allowed for in the estimate
A94: 2 | B94: No allowance for water, gas, telstra, sewer
A95: Substations
A96: 3 | B96: No allowance for substations
A97: Preliminaries
A98: 4 | B98: Based on nominal rates
A99: Subsoil Drain
A100: 5 | B100: Assume same as kerb and channel
A101: Side Entry Pits
A102: 6 | B102: Based on 50 m intervals
A103: Tactile Pavers
A104: 7 | B104: Assume hazard TGSI's (no directional)
A105: Signing
A106: 8 | B106: Nominal rate
A107: Pavement
A108: 9 | B108: Assume deep lift asphalt pavement
A109: Tree Removal
A110: 10 | B110: Based on preliminary information
A111: Roads
A112: 11 | B112: Where applicable, existing road conditions based on limited crushed rock roads assumed to be of no consequence to works
A113: 12 | B113: Where applicable, existing asphalt roads to be demolished as part of intersection works
A114: Dry Stone Wall
A115: 13 | B115: Dry stone wall works allowance has assumed the wall is not heritage listed and does not need to be reconstructed
A117: AUTHOR: | B117: Jack Hume
A118: Date: | B118: 2014-10-21
A120: REVIEWER: | B120: Rob Henry
A121: Date: | B121: 2014-10-21

Sheet IN-33
A1: PRELIMINARY ESTIMATE OF DEVELOPMENT COSTS | G1: =Summary!A5 -> 2015-05-14
A2: =Summary!A3 -> CG140690 | G2: =Summary!A6 -> Version 11
A3: =Summary!A4 -> Wollert PSP - Intersection Cost Estimate | C3: PM %: | D3: 0.0929
A4: Intersection Ref: | B4: =J7 -> IN-33 | E4: DRAFT | I4: Do not Delete the below info
A5: Sheet Ref: | B5: =Summary!AD9 -> (18-VR)
A6: ITEM | B6: DESCRIPTION | C6: QUANTITY | D6: UNIT | E6: RATE | F6: AMOUNT | G6: SUBTOTAL | I6: Sheet Specific Information | J6: Input | K6: Unit | L6: Cell Reference
A7: A | B7: =Summary!B10 -> Project and Program Management (%) | G7: =SUM(F7:F14) -> 97828.72821 | I7: Intersection Name | J7: IN-33 | L7: A4
B8: Project Management | D8: 0.03 | E8: =($D$3/0.1)*D8 -> 0.02787 | F8: =E8*$G$24 -> 58697.23693 | I8: Existing Road Directions | J8: N-S | L8: B105
B9: Project scoping, planning, scheduling, monitoring, reporting and commissioning | I9: Previous Road area | K9: m2
B10: Management of preconstruction activities, development of tender documents and management of contracts | I10: Total Roadway Area | J10: 6900 | K10: m2
B11: Managing external interfaces, including community liaison, environmental issues, traffic issues etc | I11: Island Area | J11: 2300 | K11: m2
B12: Records management | I12: Kerb and Channel | J12: =830+180+75+275+235-210 -> 1385 | K12: Lm
B13: Program Administration | D13: 0.02 | E13: =($D$3/0.1)*D13 -> 0.01858 | F13: =E13*$G$24 -> 39131.49128 | I13: Shoulder | J13: 210 | K13: Lm
I14: Footpath Length | J14: 185 | K14: Lm
A15: B | B15: =Summary!B11 -> Design and Investigation (%) | G15: =SUM(F15:F23) -> 195657.4564 | I15: Pipe Length | J15: 450 | K15: Lm
B16: Traffic Investigations | D16: 0.0085 | E16: =($D$3/0.1)*D16 -> 0.0078965 | F16: =E16*$G$24 -> 16630.8838 | I16: Island Concrete infill | J16: =100+25+25+150+30+170 -> 500 | K16: m2
B17: Cadastral and Engineering Survey | D17: 0.012 | E17: 0.011148 | F17: 23478.89477 | I17: Shared Path Length | J17: 390 | K17: Lm
B18: Geotechnical investigations Pavement Investigations and Design | D18: 0.012 | E18: 0.011148 | F18: 23478.89477
B19: Environmental Investigations | E19: 0 | F19: 0
B20: Landscape Design | E20: 0 | F20: 0
B21: Preliminary and Final Design | D21: 0.0425 | E21: 0.0394825 | F21: 83154.41898
B22: Construction Management | D22: 0.025 | E22: 0.023225 | F22: 48914.36411 | I22: 2.5% of construction cost | J22: =0.025*G24 -> 52652.70625
A24: C | B24: Construction | F24: =SUM(F25:F79) -> 2106108.25 | G24: =SUM(G25:G78) -> 2106108.25
A25: 1 | G25: =SUM(F25:F28) -> 58000
A26: 1.1 | B26: Site establishment | C26: 1 | D26: Item | E26: 8000 | F26: =SUM(E26*C26) -> 8000
A27: 1.2 | B27: Site management & supervision including QA | C27: 16 | D27: wks | E27: 2500 | F27: =SUM(E27*C27) -> 40000
A28: 1.3 | B28: Provision for traffic | C28: 1 | D28: Item | E28: 10000 | F28: =SUM(E28*C28) -> 10000
A29: 2 | B29: DEMOLITION | G29: =SUM(F29:F32) -> 7000
A30: 2.1 | B30: Trees | C30: 4 | D30: No | E30: 500 | F30: =SUM(E30*C30) -> 2000
A31: 2.2 | B31: Dry stone wall demolition & make good | C31: 1 | D31: item | E31: 5000 | F31: =SUM(E31*C31) -> 5000
A32: 3 | B32: EARTHWORKS | G32: =SUM(F32:F37) -> 346962
A33: 3.1 | B33: Stripping topsoil (150mm) | C33: =J10+J12*1+J13*1.3-J11-J9 -> 6258 | D33: m² | E33: 6 | F33: =SUM(E33*C33) -> 37548
A34: 3.2 | B34: Excavation and removal | C34: =C39*0.5 -> 2919 | D34: m³ | E34: 30 | F34: =SUM(E34*C34) -> 87570
A35: 3.4 | B35: Soft spot rectification | C35: =C39*20% -> 1167.6 | D35: m³ | E35: 15 | F35: =SUM(E35*C35) -> 17514
A36: 3.4 | B36: Rock excavation & sub-surface remediation 450mm | C36: =C39*50% -> 2919 | D36: m² | E36: =55+15 -> 70 | F36: =SUM(E36*C36) -> 204330
A37: 4 | B37: PAVEMENT | G37: =SUM(F37:F41) -> 812490
A38: 4.1 | B38: Deep lift asphalt 195 mm | C38: =J10-J11-J13 -> 4390 | D38: m² | E38: =IF(C38<15000,105,85) -> 105 | F38: =SUM(E38*C38) -> 460950
A39: 4.2 | B39: Subbase course - 250 mm 3% CTCR | C39: =C38+(J12*1)+C40*0.3 -> 5838 | D39: m² | E39: 55 | F39: =SUM(E39*C39) -> 321090
A40: 4.3 | B40: Shoulder 1m wide - full depth pavement | C40: =J13 -> 210 | D40: m | E40: 145 | F40: =SUM(E40*C40) -> 30450
A41: 5 | B41: DRAINAGE | G41: =SUM(F42:F46) -> 156850
A42: 5.1 | B42: Subsoil drains 100mm dia - screenings | C42: =J12+J13 -> 1595 | D42: Lm | E42: 30 | F42: =SUM(E42*C42) -> 47850
A43: 5.2 | B43: Subsoil drains 100mm dia - no fines conc | C43: 0 | D43: Lm | E43: 45 | F43: =SUM(E43*C43) -> 0
A44: 5.3 | B44: 375 RCP (class 2) | C44: =J15 -> 450 | D44: Lm | E44: 170 | F44: =SUM(E44*C44) -> 76500
A45: 5.4 | B45: Side entry pits | C45: 13 | D45: No | E45: 2500 | F45: =SUM(E45*C45) -> 32500
A46: 6 | B46: CONCRETE WORKS | G46: =SUM(F46:F51) -> 179575
A47: 6.1 | B47: Kerb &channel | C47: =J12 -> 1385 | D47: Lm | E47: 50 | F47: =SUM(E47*C47) -> 69250
A48: 6.2 | B48: Shared Paths (3.0m wide,125 mm, residential, as per MPA) | C48: =J17 -> 390 | D48: Lm | E48: 130 | F48: =SUM(E48*C48) -> 50700
A49: 6.3 | B49: Footpaths (1.5m wide,125 mm, residential, as per MPA) | C49: =J14 -> 185 | D49: Lm | E49: 65 | F49: =SUM(E49*C49) -> 12025
A50: 6.4 | B50: Laybacks and tactile pavers | C50: 6 | D50: No | E50: 850 | F50: =SUM(E50*C50) -> 5100
A51: 6.5 | B51: 10m concrete maintenance area end of all islands | C51: =J16 -> 500 | D51: m² | E51: 85 | F51: =SUM(E51*C51) -> 42500
A52: 7 | B52: TRAFFIC SIGNAL WORKS | G52: =SUM(F52:F60) -> 248500
A53: 7.1 | B53: General items | C53: 1 | D53: Item | E53: 23000 | F53: =SUM(E53*C53) -> 23000
A54: 7.2 | B54: Conduits | C54: 1 | D54: Item | E54: 20000 | F54: 20000
A55: 7.3 | B55: Pedestals | C55: 1 | D55: Item | E55: 47000 | F55: 47000
A56: 7.4 | B56: Lanterns | C56: 1 | D56: Item | E56: 20000 | F56: 20000
A57: 7.5 | B57: Controller | C57: 1 | D57: Item | E57: 75000 | F57: 75000
A58: 7.6 | B58: Detectors | C58: 1 | D58: Item | E58: 9500 | F58: 9500
A59: 7.7 | B59: Cabling & connections | C59: 1 | D59: Item | E59: 45000 | F59: 45000
A60: 7.8 | B60: Clean-up | C60: 1 | D60: Item | E60: 9000 | F60: 9000
A61: 8 | B61: SIGNAL MAINTENANCE (10 YEARS) by Road Authority | C61: 1 | D61: item | E61: 100000 | F61: 100000 | G61: =F61 -> 100000
A62: 9 | B62: POWER & LIGHTING | G62: =SUM(F63:F68) -> 150000
A63: 9.1 | B63: Light pole (1-way) and luminous lights | C63: 2 | D63: No | E63: 8000 | F63: 16000
A64: 9.2 | B64: Light pole (2-way) and luminous lights | C64: 7 | D64: No | E64: 9000 | F64: 63000
A65: 9.3 | B65: JUP lighting single | C65: 4 | D65: No | E65: 4000 | F65: 16000
A66: 9.4 | B66: JUP lighting dual | C66: 2 | D66: No | E66: 5000 | F66: 10000
A67: 9.5 | B67: Cabling, conduits and pits | C67: 1 | D67: Item | E67: 30000 | F67: 30000
A68: 9.6 | B68: Electrical connection | C68: 1 | D68: Item | E68: 15000 | F68: 15000
A69: 10 | B69: LANDSCAPING WORKS | G69: =SUM(F69:F71) -> 19231.25
A70: 10.1 | B70: Topsoiling seeding | C70: =J12*1.5+J14*1 -> 2262.5 | D70: m² | E70: 8.5 | F70: =SUM(E70*C70) -> 19231.25
A71: 10.2 | B71: Landcape planting | C71: 0 | D71: NA
A72: 11 | B72: SIGNING | C72: 1 | D72: item | E72: 7500 | F72: 7500 | G72: =F72 -> 7500
A73: 12 | B73: LINEMARKING (Thermoplastic) | C73: 1 | D73: item | E73: 20000 | F73: 20000 | G73: =F73 -> 20000
A74: 13 | B74: SERVICE RELOCATION | G74: =SUM(F74:F76) -> 0
A75: 13.1 | B75: (Water, gas, telstra) No allowance | D75: item
A76: 13.2 | B76: (Overhead electrical) No allowance | D76: item
A77: 14 | B77: MISCELLANEOUS | G77: =F77 -> 0
A78: 15 | B78: PROVISIONAL SUM - DAYWORK | D78: item | F78: =SUM(E78*C78) -> 0 | G78: =F78 -> 0
B80: TOTAL A - C | F80: =SUM(F25:F79,F7:F23) -> 2399594.435 | G80: =SUM(G24+G15+G7) -> 2399594.435
A82: D | B82: Contingency
B83: =Summary!B17 -> Contingency (15% of C) | F83: 0.15 | G83: =F83*G24 -> 315916.2375
A85: E | B85: PROJECT BUDGET
B86: Total Estimate | G86: =G83+G80 -> 2715510.672
A89: Notes:
A90: - | B90: Due to flat topography of the area, no major cut/fill works have been included for road
A92: Services
A93: 1 | B93: Service relocation / alterations have not been allowed for in the estimate
A94: 2 | B94: No allowance for water, gas, telstra, sewer
A95: Substations
A96: 3 | B96: No allowance for substations
A97: Preliminaries
A98: 4 | B98: Based on nominal rates
A99: Subsoil Drain
A100: 5 | B100: Assume same as kerb and channel
A101: Side Entry Pits
A102: 6 | B102: Based on 50 m intervals
A103: Tactile Pavers
A104: 7 | B104: Assume hazard TGSI's (no directional)
A105: Signing
A106: 8 | B106: Nominal rate
A107: Pavement
A108: 9 | B108: Assume deep lift asphalt pavement
A109: Tree Removal
A110: 10 | B110: Based on preliminary information
A111: Roads
A112: 11 | B112: Where applicable, existing road conditions based on limited crushed rock roads assumed to be of no consequence to works
A113: 12 | B113: Where applicable, existing asphalt roads to be demolished as part of intersection works
A114: Dry Stone Wall
A115: 13 | B115: Dry stone wall works allowance has assumed the wall is not heritage listed and does not need to be reconstructed
A117: AUTHOR: | B117: Jack Hume
A118: Date: | B118: 2014-10-21
A120: REVIEWER: | B120: Rob Henry
A121: Date: | B121: 2014-10-21
